Body,Body Name,Date,Transaction Number,Invoice Number,Amount,Supplier Name,Supplier ID ,VAT Registration Number ,Expense Area,Expense Type,Expense Code,Purchase Order
http://statistics.data.gov.uk/id/local-authority/29UP,Tonbridge & Malling Borough Council,3/1/2023,0011045679/1,11045679, 60.00,REDACTED PERSONAL DATA,01040400,,Initiatives,Climate Change,D47SA000048135,
http://statistics.data.gov.uk/id/local-authority/29UP,Tonbridge & Malling Borough Council,3/1/2023,0011045680/1,11045680, 5000.00,Weald Gymnastics,01886900,,Economic Development & Regen,Eco Dev & Reg Gen Bus Support,D52TD000047027,
http://statistics.data.gov.uk/id/local-authority/29UP,Tonbridge & Malling Borough Council,3/1/2023,0011045681/1,11045681, 2189.60,Shaw & Sons Ltd,00090300,,Purchases,Conduct of Elections,D31MG000040101,110070000
http://statistics.data.gov.uk/id/local-authority/29UP,Tonbridge & Malling Borough Council,3/1/2023,0011045681/2,11045681, 50.00,Shaw & Sons Ltd,00090300,,Purchases,Conduct of Elections,D31MG000040101,110070000
http://statistics.data.gov.uk/id/local-authority/29UP,Tonbridge & Malling Borough Council,3/1/2023,0011045682/1,11045682, 270.00,SWEET SENSTATIONS EATS & TREATS LTD,01749200,,Economic Development & Regen,Eco Dev & Reg Gen Bus Support,D52TD000047027,110070069
http://statistics.data.gov.uk/id/local-authority/29UP,Tonbridge & Malling Borough Council,3/1/2023,0011045683/3,11045683, 1915.38,Venn Group Ltd,00914300,,Temporary Staff,Legal Sals&Overheads,D01ARDR0011300,
http://statistics.data.gov.uk/id/local-authority/29UP,Tonbridge & Malling Borough Council,3/1/2023,0011045684/3,11045684, 1217.80,Sellick Partnership Group Limited,01336800,,Temporary Staff,Legal Sals&Overheads,D01ARDR0011300,
http://statistics.data.gov.uk/id/local-authority/29UP,Tonbridge & Malling Borough Council,3/1/2023,0011045685/3,11045685, 1217.80,Sellick Partnership Group Limited,01336800,,Temporary Staff,Legal Sals&Overheads,D01ARDR0011300,
http://statistics.data.gov.uk/id/local-authority/29UP,Tonbridge & Malling Borough Council,3/1/2023,0011045686/3,11045686, 517.50,Sellick Partnership Group Limited,01336800,,Temporary Staff,Legal Sals&Overheads,D01ARDR0011300,
http://statistics.data.gov.uk/id/local-authority/29UP,Tonbridge & Malling Borough Council,3/1/2023,0011045687/3,11045687, 715.00,Cornerstones Barristers,01359100,,Legal Fees,Legal Sals&Overheads,D01ARDR0044002,
http://statistics.data.gov.uk/id/local-authority/29UP,Tonbridge & Malling Borough Council,3/1/2023,0011045688/1,11045688, 120.00,The North Tonbridge Community Centre,01535200,,Economic Development & Regen,Eco Dev & Reg Gen Bus Support,D52TD000047027,
http://statistics.data.gov.uk/id/local-authority/29UP,Tonbridge & Malling Borough Council,3/1/2023,0011045689/1,11045689, 4860.46,Kent Downs Dairy Limited,01887800,,Economic Development & Regen,Eco Dev & Reg Gen Bus Support,D52TD000047027,
http://statistics.data.gov.uk/id/local-authority/29UP,Tonbridge & Malling Borough Council,3/1/2023,0011045690/3,11045690, 1500.00,Cornerstones Barristers,01359100,,Legal Fees,Legal Sals&Overheads,D01ARDR0044002,
http://statistics.data.gov.uk/id/local-authority/29UP,Tonbridge & Malling Borough Council,3/1/2023,0011045691/3,11045691, 828.40,TMS Protection Ltd,01744300,,Office Security,Ton Castle Council Chamber,D21FC000044047,
http://statistics.data.gov.uk/id/local-authority/29UP,Tonbridge & Malling Borough Council,3/1/2023,0011045691/4,11045691, 2952.60,TMS Protection Ltd,01744300,,Office Security,Tonbridge Gateway,D23TG000044047,
http://statistics.data.gov.uk/id/local-authority/29UP,Tonbridge & Malling Borough Council,3/1/2023,0011045692/3,11045692, 9442.23,KCS - KCC,00054200,,Gas,Buildings,D21FEDD1021003,
http://statistics.data.gov.uk/id/local-authority/29UP,Tonbridge & Malling Borough Council,3/1/2023,0011045693/3,11045693, 1850.78,KCS - KCC,00054200,,Gas,Buildings,D21FEDD6021003,
http://statistics.data.gov.uk/id/local-authority/29UP,Tonbridge & Malling Borough Council,3/1/2023,0011045694/1,11045694, 38.00,REDACTED PERSONAL DATA,01528400,,Hospitality,Mayoral & Other Member Support,D29LX000048003,
http://statistics.data.gov.uk/id/local-authority/29UP,Tonbridge & Malling Borough Council,3/1/2023,0011045695/3,11045695, 914.28,Canon (UK) Limited,00298700,,Purchases - Paper,Printing,D22GA000040102,
http://statistics.data.gov.uk/id/local-authority/29UP,Tonbridge & Malling Borough Council,3/1/2023,0011045696/3,11045696, 8642.81,KCS - KCC,00054200,,Electricity,Buildings,D21FEDD1021002,
http://statistics.data.gov.uk/id/local-authority/29UP,Tonbridge & Malling Borough Council,3/1/2023,0011045697/3,11045697, 6597.27,KCS - KCC,00054200,,Electricity,Buildings,D21FEDD5021002,
http://statistics.data.gov.uk/id/local-authority/29UP,Tonbridge & Malling Borough Council,3/1/2023,0011045698/3,11045698, 4794.30,KCS - KCC,00054200,,Electricity,Buildings,D21FEDD6021002,
http://statistics.data.gov.uk/id/local-authority/29UP,Tonbridge & Malling Borough Council,3/1/2023,0011045699/3,11045699, 352.90,Antalis,01556800,317187204,Purchases - Paper,Printing,D22GA000040102,
http://statistics.data.gov.uk/id/local-authority/29UP,Tonbridge & Malling Borough Council,3/1/2023,0011045701/3,11045701, 255.00,Antalis,01556800,317187204,Purchases - Paper,Printing,D22GA000040102,
http://statistics.data.gov.uk/id/local-authority/29UP,Tonbridge & Malling Borough Council,3/1/2023,0011045702/3,11045702, 97.42,Atlas Facilities Managment Limited ,01075900,,Miscellaneous Services,Cleaning & Security,D21FDDD5044015,
http://statistics.data.gov.uk/id/local-authority/29UP,Tonbridge & Malling Borough Council,3/1/2023,0011045703/3,11045703, 1561.36,The Oyster Partnership,01196400,,Temporary Staff,Admin & Prop Sals&Overheads,D01AADA1111300,
http://statistics.data.gov.uk/id/local-authority/29UP,Tonbridge & Malling Borough Council,3/1/2023,0011045704/3,11045704, 377.37,Royal Mail,00086200,,Purchases,Business Reply Stock Account,K14AT000001002,
http://statistics.data.gov.uk/id/local-authority/29UP,Tonbridge & Malling Borough Council,3/1/2023,0011045705/3,11045705, 2059.53,Royal Mail,00086200,,Purchases,Mailsort Stock Account,K37BR000001002,
http://statistics.data.gov.uk/id/local-authority/29UP,Tonbridge & Malling Borough Council,3/1/2023,0011045705/4,11045705, 11.77,Royal Mail,00086200,,Purchases,Mailsort Stock Account,K37BR000001002,
http://statistics.data.gov.uk/id/local-authority/29UP,Tonbridge & Malling Borough Council,3/1/2023,0011045705/5,11045705, 7.70,Royal Mail,00086200,,Purchases,Mailsort Stock Account,K37BR000001002,
http://statistics.data.gov.uk/id/local-authority/29UP,Tonbridge & Malling Borough Council,3/1/2023,0011045706/3,11045706, 1561.36,The Oyster Partnership,01196400,,Temporary Staff,Admin & Prop Sals&Overheads,D01AADA0011300,
http://statistics.data.gov.uk/id/local-authority/29UP,Tonbridge & Malling Borough Council,3/1/2023,0011045707/1,11045707, 432.82,Scottish Water Business Stream Ltd,01641100,,Sewerage Charges,Buildings,D21FEDD1024003,
http://statistics.data.gov.uk/id/local-authority/29UP,Tonbridge & Malling Borough Council,3/1/2023,0011045708/1,11045708, 466.11,Scottish Water Business Stream Ltd,01641100,,Sewerage Charges,Buildings,D21FEDD6024003,
http://statistics.data.gov.uk/id/local-authority/29UP,Tonbridge & Malling Borough Council,3/1/2023,0011045709/1,11045709, 1170.00,GreenFish Consulting part of JCML Consul,01627700,,BRREP Energy Efficiency Regs,Shops & Maisonettes,M15NAP30001976,110070016
http://statistics.data.gov.uk/id/local-authority/29UP,Tonbridge & Malling Borough Council,3/1/2023,0011045710/3,11045710, 276.08,Royal Mail,00086200,,Postages - Business Reply,Electoral Registration,D31MF000045003,
http://statistics.data.gov.uk/id/local-authority/29UP,Tonbridge & Malling Borough Council,3/1/2023,0011045710/4,11045710, 9.16,Royal Mail,00086200,,Purchases,Business Reply Stock Account,K14AT000001002,
http://statistics.data.gov.uk/id/local-authority/29UP,Tonbridge & Malling Borough Council,3/1/2023,0011045711/3,11045711, 1360.22,Royal Mail,00086200,,Purchases,Mailsort Stock Account,K37BR000001002,
http://statistics.data.gov.uk/id/local-authority/29UP,Tonbridge & Malling Borough Council,3/1/2023,0011045711/4,11045711, 4.20,Royal Mail,00086200,,Purchases,Mailsort Stock Account,K37BR000001002,
http://statistics.data.gov.uk/id/local-authority/29UP,Tonbridge & Malling Borough Council,3/1/2023,0011045711/5,11045711, 12.91,Royal Mail,00086200,,Purchases,Mailsort Stock Account,K37BR000001002,
http://statistics.data.gov.uk/id/local-authority/29UP,Tonbridge & Malling Borough Council,3/1/2023,0011045712/3,11045712, 192.00,Premier Group Recycling Ltd,01365300,,Confidential Waste,Cleaning & Security,D21FD000044009,
http://statistics.data.gov.uk/id/local-authority/29UP,Tonbridge & Malling Borough Council,3/1/2023,0011045713/1,11045713, 590.00,G C Industrial Heating Services,00578100,,BRREP Servicing - Heating Syst,Gibson Building West,M15KBP20001934,110070054
http://statistics.data.gov.uk/id/local-authority/29UP,Tonbridge & Malling Borough Council,3/1/2023,0011045714/1,11045714, 90.00,G C Industrial Heating Services,00578100,,BRREP Response - General,Tonbridge Castle / CAB,M15KFP50001997,110070037
http://statistics.data.gov.uk/id/local-authority/29UP,Tonbridge & Malling Borough Council,3/1/2023,0011045715/1,11045715, 790.00,G Baker Roofing Ltd,01664400,522705274,Other Expenses,LLC Photovoltaic System,P05LR000009908,110070008
http://statistics.data.gov.uk/id/local-authority/29UP,Tonbridge & Malling Borough Council,3/1/2023,0011045716/1,11045716, 1089.00,Learnd UK,01226700,,BRREP BMS System Mntce/Upgrade,Tonbridge Swimming Pool,M15HBP20001912,110069930
http://statistics.data.gov.uk/id/local-authority/29UP,Tonbridge & Malling Borough Council,3/1/2023,0011045717/1,11045717, 1600.00,G C Industrial Heating Services,00578100,,BRREP Plant renewals,Larkfield Leisure Centre,M15HDP20001909,110069979
http://statistics.data.gov.uk/id/local-authority/29UP,Tonbridge & Malling Borough Council,3/1/2023,0011045718/1,11045718, 65.00,East Sussex Fire Ltd,01843100,,Repairs & Mtce to Buildings,Homelessness,C01AATNHS20101,110070063
http://statistics.data.gov.uk/id/local-authority/29UP,Tonbridge & Malling Borough Council,3/1/2023,0011045719/1,11045719, 61.60,East Sussex Fire Ltd,01843100,,Repairs & Mtce to Buildings,Homelessness,C01AATNHS20101,110070064
http://statistics.data.gov.uk/id/local-authority/29UP,Tonbridge & Malling Borough Council,3/1/2023,0011045720/1,11045720, 1479.00,Mood Signs Limited,01595800,,BRREP Signage Maintenance,Kings Hill Offices - Ext Areas,M15KAP20001948,110069920
http://statistics.data.gov.uk/id/local-authority/29UP,Tonbridge & Malling Borough Council,3/1/2023,0012008648/1,12008648, 1366.72,Bytes Software Services,01676900,823818226,Software Hire & Support,Information Technology,D27KD000044059,410032344
http://statistics.data.gov.uk/id/local-authority/29UP,Tonbridge & Malling Borough Council,3/1/2023,0012008648/2,12008648, 10763.06,Bytes Software Services,01676900,823818226,Software Hire & Support,Information Technology,D27KD000044059,410032344
http://statistics.data.gov.uk/id/local-authority/29UP,Tonbridge & Malling Borough Council,3/1/2023,0012008649/1,12008649, 6.00,Vanquish Tech,01798700,124406447,Delivery Expenses,Information Technology,D27KD000044069,410032353
http://statistics.data.gov.uk/id/local-authority/29UP,Tonbridge & Malling Borough Council,3/1/2023,0012008649/2,12008649, 757.90,Vanquish Tech,01798700,124406447,Initial Furniture & Equipment,Capital Renewals IT,P06FBFB1009906,410032353
http://statistics.data.gov.uk/id/local-authority/29UP,Tonbridge & Malling Borough Council,3/1/2023,0021038430/3,21038430, 87.48,REDACTED PERSONAL DATA,01217300,,Youth Initiatives,Youth Partnerships,B33PG000048124,
http://statistics.data.gov.uk/id/local-authority/29UP,Tonbridge & Malling Borough Council,3/1/2023,0021038430/4,21038430, 6.42,REDACTED PERSONAL DATA,01217300,,Youth Initiatives,Youth Partnerships,B33PG000048124,
http://statistics.data.gov.uk/id/local-authority/29UP,Tonbridge & Malling Borough Council,3/1/2023,0021038430/5,21038430, 2.60,REDACTED PERSONAL DATA,01217300,,Youth Initiatives,Youth Partnerships,B33PG000048124,
http://statistics.data.gov.uk/id/local-authority/29UP,Tonbridge & Malling Borough Council,3/1/2023,0021038431/1,21038431, 194.11,Landscape Services Ltd,00057600,,Maintenance of Grounds,Open Spaces & Amenity Areas,B22LE000020402,210057069
http://statistics.data.gov.uk/id/local-authority/29UP,Tonbridge & Malling Borough Council,3/1/2023,0021038432/1,21038432, 264.04,Landscape Services Ltd,00057600,,Contract Payments,TRSG Riverside Rivetment,P05DD000009904,210056990
http://statistics.data.gov.uk/id/local-authority/29UP,Tonbridge & Malling Borough Council,3/1/2023,0021038433/1,21038433, 180.00,Citiguard Security (UK) Ltd,01872100,200436269,Professional Fees,Parking Off-Street,E10HA000044001,310042927
http://statistics.data.gov.uk/id/local-authority/29UP,Tonbridge & Malling Borough Council,3/1/2023,0021038434/1,21038434, 4124.04,Playdale Playgrounds Ltd,01195000,,Maintenance of Grounds,Leybourne Lakes Country Park,B22LK000020402,210057103
http://statistics.data.gov.uk/id/local-authority/29UP,Tonbridge & Malling Borough Council,3/1/2023,0021038435/1,21038435, 4955.18,DSSL Group Ltd,01839500,,Initial Furniture & Equipment,Cap Ren CCTV,P01BA000009906,310042979
http://statistics.data.gov.uk/id/local-authority/29UP,Tonbridge & Malling Borough Council,3/1/2023,0021038436/1,21038436, 194.11,Landscape Services Ltd,00057600,,Tree Planting Schemes,Countryside/Woodland Mgt,B22LH000020405,210057078
http://statistics.data.gov.uk/id/local-authority/29UP,Tonbridge & Malling Borough Council,3/1/2023,0021038436/2,21038436, 194.11,Landscape Services Ltd,00057600,,Tree Planting Schemes,Countryside/Woodland Mgt,B22LH000020405,210057078
http://statistics.data.gov.uk/id/local-authority/29UP,Tonbridge & Malling Borough Council,3/1/2023,0021038437/1,21038437, 2516.50,Landscape Services Ltd,00057600,,Initiatives,Climate Change,D47SA000048135,210057086
http://statistics.data.gov.uk/id/local-authority/29UP,Tonbridge & Malling Borough Council,3/1/2023,0021038438/1,21038438, 5000.00,CJS Plants LTD,01596000,,Tonbridge Hanging Baskets,Tonbridge Castle Grounds,B22LB000050104,210057063
http://statistics.data.gov.uk/id/local-authority/29UP,Tonbridge & Malling Borough Council,3/1/2023,0021038439/1,21038439, 75.00,Amethyst Horticulture,01546900,,Purchases,Tonbridge Castle Grounds,B22LB000040101,210057133
http://statistics.data.gov.uk/id/local-authority/29UP,Tonbridge & Malling Borough Council,3/1/2023,0021038439/2,21038439, 174.20,Amethyst Horticulture,01546900,,Purchases,Tonbridge Castle Grounds,B22LB000040101,210057133
http://statistics.data.gov.uk/id/local-authority/29UP,Tonbridge & Malling Borough Council,3/1/2023,0021038439/3,21038439, 1926.00,Amethyst Horticulture,01546900,,Purchases,Tonbridge Castle Grounds,B22LB000040101,210057133
http://statistics.data.gov.uk/id/local-authority/29UP,Tonbridge & Malling Borough Council,3/1/2023,0022027490/1,22027490, 11056.50,Access & Automation Ltd,01773400,,Other Expenses,Disabled Facilities Grant Mand,P03AC000009908,
http://statistics.data.gov.uk/id/local-authority/29UP,Tonbridge & Malling Borough Council,3/1/2023,0022027491/1,22027491, 91128.00,Look Ahead,01746900,,Professional Fees,Homelessness,C01AAROUG44001,
http://statistics.data.gov.uk/id/local-authority/29UP,Tonbridge & Malling Borough Council,3/1/2023,0022027492/1,22027492, 59990.00,Look Ahead,01746900,,Professional Fees,Homelessness,C01AAROUG44001,
http://statistics.data.gov.uk/id/local-authority/29UP,Tonbridge & Malling Borough Council,3/1/2023,0022027493/1,22027493, 177.00,DM Marketing Communications,01742000,,Publicity & Promotion,Dry Recycling,H34SRZ99944217,220003307
http://statistics.data.gov.uk/id/local-authority/29UP,Tonbridge & Malling Borough Council,3/1/2023,0022027494/1,22027494, 8554.00,Craemer UK LTD,01616400,,Initial Furniture & Equipment,Green Waste Bin Growth/Replace,P02BC000009906,220003282
http://statistics.data.gov.uk/id/local-authority/29UP,Tonbridge & Malling Borough Council,3/1/2023,0022027494/2,22027494, 8151.00,Craemer UK LTD,01616400,,Initial Furniture & Equipment,Green Waste Bin Growth/Replace,P02BC000009906,220003282
http://statistics.data.gov.uk/id/local-authority/29UP,Tonbridge & Malling Borough Council,3/1/2023,0022027495/1,22027495, 2595.00,Craemer UK LTD,01616400,,Initial Furniture & Equipment,Refuse Bins Growth/Replacement,P02DA000009906,220003281
http://statistics.data.gov.uk/id/local-authority/29UP,Tonbridge & Malling Borough Council,3/1/2023,0022027496/3,22027496, 245.00,Countrystyle Group,00835900,781981681,Collection of Card,Dry Recycling,H34SR000054008,
http://statistics.data.gov.uk/id/local-authority/29UP,Tonbridge & Malling Borough Council,3/1/2023,0022027497/3,22027497, 245.00,Countrystyle Group,00835900,781981681,Collection of Card,Dry Recycling,H34SR000054008,
http://statistics.data.gov.uk/id/local-authority/29UP,Tonbridge & Malling Borough Council,3/1/2023,0022027498/1,22027498, 19049.35,Consultants in Care Ltd,01764200,,Temporary Accommodation,Homelessness,C01AA000044051,
http://statistics.data.gov.uk/id/local-authority/29UP,Tonbridge & Malling Borough Council,3/1/2023,0022027500/1,22027500, 4222.64,Clarion Housing,01078200,,Contribution from Other Bodies,Homelessness,C01AACV1995001,
http://statistics.data.gov.uk/id/local-authority/29UP,Tonbridge & Malling Borough Council,3/1/2023,0022027502/1,22027502, 21780.00,IPL Plastics (UK) Ltd,00709600,,Initial Furniture & Equipment,Green Waste Bin Growth/Replace,P02BC000009906,220003286
http://statistics.data.gov.uk/id/local-authority/29UP,Tonbridge & Malling Borough Council,3/1/2023,0022027503/1,22027503, 1365.90,Pure Cremation Ltd,01888100,,Funeral Expenses,Public Health Act 1984,H26SG000054002,
http://statistics.data.gov.uk/id/local-authority/29UP,Tonbridge & Malling Borough Council,3/1/2023,0022027504/1,22027504, 510.00,Town & Country Housing Group,01385400,,Countywide DFG Project,Private Sector Housing Renewal,C03BD000044031,
http://statistics.data.gov.uk/id/local-authority/29UP,Tonbridge & Malling Borough Council,3/1/2023,0022027505/3,22027505, 490.00,Countrystyle Group,00835900,781981681,Collection of Card,Dry Recycling,H34SR000054008,
http://statistics.data.gov.uk/id/local-authority/29UP,Tonbridge & Malling Borough Council,3/1/2023,0022027506/1,22027506, 4871.41,DSSL Group Ltd,01839500,,CCTV Monitoring Station,Security Services Management,E09GA000051020,310042959
http://statistics.data.gov.uk/id/local-authority/29UP,Tonbridge & Malling Borough Council,3/1/2023,0022027507/1,22027507, 3056.51,DSSL Group Ltd,01839500,,Initial Furniture & Equipment,Cap Ren CCTV,P01BATFSG09906,310042950
http://statistics.data.gov.uk/id/local-authority/29UP,Tonbridge & Malling Borough Council,3/1/2023,0022027508/1,22027508, 387.37,Urbaser LTD,01718800,,Maintenance of Grounds,Sports Grounds,B13ET000020402,
http://statistics.data.gov.uk/id/local-authority/29UP,Tonbridge & Malling Borough Council,3/1/2023,0022027508/10,22027508, 60.22,Urbaser LTD,01718800,,Maintenance of Grounds,Grounds,D21FF000020402,
http://statistics.data.gov.uk/id/local-authority/29UP,Tonbridge & Malling Borough Council,3/1/2023,0022027508/11,22027508, 184.19,Urbaser LTD,01718800,,Maintenance of Grounds,Parking Off-Street,E10HA000020402,
http://statistics.data.gov.uk/id/local-authority/29UP,Tonbridge & Malling Borough Council,3/1/2023,0022027508/12,22027508, 4686.59,Urbaser LTD,01718800,,Maintenance of Grounds,Parking Off-Street,E10HAE00120402,
http://statistics.data.gov.uk/id/local-authority/29UP,Tonbridge & Malling Borough Council,3/1/2023,0022027508/13,22027508, 504.84,Urbaser LTD,01718800,,Maintenance of Grounds,Parking Off-Street,E10HAE00220402,
http://statistics.data.gov.uk/id/local-authority/29UP,Tonbridge & Malling Borough Council,3/1/2023,0022027508/14,22027508, 315.82,Urbaser LTD,01718800,,Maintenance of Grounds,Parking Off-Street,E10HAE00320402,
http://statistics.data.gov.uk/id/local-authority/29UP,Tonbridge & Malling Borough Council,3/1/2023,0022027508/15,22027508, 1651.73,Urbaser LTD,01718800,,Maintenance of Grounds,Parking Off-Street,E10HAE00420402,
http://statistics.data.gov.uk/id/local-authority/29UP,Tonbridge & Malling Borough Council,3/1/2023,0022027508/16,22027508, 274.48,Urbaser LTD,01718800,,Maintenance of Grounds,Parking Off-Street,E10HAE00520402,
http://statistics.data.gov.uk/id/local-authority/29UP,Tonbridge & Malling Borough Council,3/1/2023,0022027508/17,22027508, 1023.71,Urbaser LTD,01718800,,Maintenance of Grounds,Parking Off-Street,E10HAE00620402,
http://statistics.data.gov.uk/id/local-authority/29UP,Tonbridge & Malling Borough Council,3/1/2023,0022027508/18,22027508, 8.63,Urbaser LTD,01718800,,Maintenance of Grounds,Parking Off-Street,E10HAE00820402,
http://statistics.data.gov.uk/id/local-authority/29UP,Tonbridge & Malling Borough Council,3/1/2023,0022027508/19,22027508, 8.52,Urbaser LTD,01718800,,Maintenance of Grounds,Parking Off-Street,E10HAE00920402,
http://statistics.data.gov.uk/id/local-authority/29UP,Tonbridge & Malling Borough Council,3/1/2023,0022027508/2,22027508, 82.44,Urbaser LTD,01718800,,Maintenance of Grounds,Poult Wood Golf Centre,B21KE000020402,
http://statistics.data.gov.uk/id/local-authority/29UP,Tonbridge & Malling Borough Council,3/1/2023,0022027508/20,22027508, 20.23,Urbaser LTD,01718800,,Maintenance of Grounds,Parking Off-Street,E10HAE01020402,
http://statistics.data.gov.uk/id/local-authority/29UP,Tonbridge & Malling Borough Council,3/1/2023,0022027508/21,22027508, 96.12,Urbaser LTD,01718800,,Maintenance of Grounds,Parking Off-Street,E10HAE01120402,
http://statistics.data.gov.uk/id/local-authority/29UP,Tonbridge & Malling Borough Council,3/1/2023,0022027508/22,22027508, 60.48,Urbaser LTD,01718800,,Maintenance of Grounds,Parking Off-Street,E10HAE01220402,
http://statistics.data.gov.uk/id/local-authority/29UP,Tonbridge & Malling Borough Council,3/1/2023,0022027508/23,22027508, 1146.81,Urbaser LTD,01718800,,Maintenance of Grounds,Parking Off-Street,E10HAE01320402,
http://statistics.data.gov.uk/id/local-authority/29UP,Tonbridge & Malling Borough Council,3/1/2023,0022027508/24,22027508, 87.22,Urbaser LTD,01718800,,Maintenance of Grounds,Parking Off-Street,E10HAE01420402,
http://statistics.data.gov.uk/id/local-authority/29UP,Tonbridge & Malling Borough Council,3/1/2023,0022027508/25,22027508, 268.78,Urbaser LTD,01718800,,Maintenance of Grounds,Parking Off-Street,E10HAE01520402,
http://statistics.data.gov.uk/id/local-authority/29UP,Tonbridge & Malling Borough Council,3/1/2023,0022027508/26,22027508, 289.08,Urbaser LTD,01718800,,Maintenance of Grounds,Parking Off-Street,E10HAE01620402,
http://statistics.data.gov.uk/id/local-authority/29UP,Tonbridge & Malling Borough Council,3/1/2023,0022027508/27,22027508, 853.41,Urbaser LTD,01718800,,Maintenance of Grounds,Parking Off-Street,E10HAE01720402,
http://statistics.data.gov.uk/id/local-authority/29UP,Tonbridge & Malling Borough Council,3/1/2023,0022027508/28,22027508, 244.95,Urbaser LTD,01718800,,Maintenance of Grounds,Parking Off-Street,E10HAE01920402,
http://statistics.data.gov.uk/id/local-authority/29UP,Tonbridge & Malling Borough Council,3/1/2023,0022027508/29,22027508, 538.07,Urbaser LTD,01718800,,Maintenance of Grounds,Parking Off-Street,E10HAE02020402,
http://statistics.data.gov.uk/id/local-authority/29UP,Tonbridge & Malling Borough Council,3/1/2023,0022027508/3,22027508, 34.02,Urbaser LTD,01718800,,Maintenance of Grounds,Haysden Country Park,B22LC000020402,
http://statistics.data.gov.uk/id/local-authority/29UP,Tonbridge & Malling Borough Council,3/1/2023,0022027508/30,22027508, 18.68,Urbaser LTD,01718800,,Maintenance of Grounds,Parking Off-Street,E10HAE02120402,
http://statistics.data.gov.uk/id/local-authority/29UP,Tonbridge & Malling Borough Council,3/1/2023,0022027508/31,22027508, 123.00,Urbaser LTD,01718800,,Maintenance of Grounds,Parking Off-Street,E10HAE02220402,
http://statistics.data.gov.uk/id/local-authority/29UP,Tonbridge & Malling Borough Council,3/1/2023,0022027508/32,22027508, 1034.02,Urbaser LTD,01718800,,Maintenance of Grounds,Parking Off-Street,E10HAE02320402,
http://statistics.data.gov.uk/id/local-authority/29UP,Tonbridge & Malling Borough Council,3/1/2023,0022027508/33,22027508, 2.67,Urbaser LTD,01718800,,Maintenance of Grounds,Parking Off-Street,E10HAE02720402,
http://statistics.data.gov.uk/id/local-authority/29UP,Tonbridge & Malling Borough Council,3/1/2023,0022027508/34,22027508, 375.72,Urbaser LTD,01718800,,Maintenance of Grounds,Parking Off-Street,E10HAE02820402,
http://statistics.data.gov.uk/id/local-authority/29UP,Tonbridge & Malling Borough Council,3/1/2023,0022027508/35,22027508, 6.77,Urbaser LTD,01718800,,Maintenance of Grounds,Parking Off-Street,E10HAE02920402,
http://statistics.data.gov.uk/id/local-authority/29UP,Tonbridge & Malling Borough Council,3/1/2023,0022027508/36,22027508, 39.82,Urbaser LTD,01718800,,Maintenance of Grounds,Parking Off-Street,E10HAE03020402,
http://statistics.data.gov.uk/id/local-authority/29UP,Tonbridge & Malling Borough Council,3/1/2023,0022027508/37,22027508, 33.88,Urbaser LTD,01718800,,Maintenance of Grounds,Parking Off-Street,E10HAE03120402,
http://statistics.data.gov.uk/id/local-authority/29UP,Tonbridge & Malling Borough Council,3/1/2023,0022027508/38,22027508, 718.40,Urbaser LTD,01718800,,Maintenance of Grounds,Parking Off-Street,E10HAE04020402,
http://statistics.data.gov.uk/id/local-authority/29UP,Tonbridge & Malling Borough Council,3/1/2023,0022027508/39,22027508, 498.26,Urbaser LTD,01718800,,Maintenance of Grounds,Parking Off-Street,E10HAE04220402,
http://statistics.data.gov.uk/id/local-authority/29UP,Tonbridge & Malling Borough Council,3/1/2023,0022027508/4,22027508, 26.13,Urbaser LTD,01718800,,Dog Bin Emptying,Haysden Country Park,B22LC000044012,
http://statistics.data.gov.uk/id/local-authority/29UP,Tonbridge & Malling Borough Council,3/1/2023,0022027508/40,22027508, 1430.15,Urbaser LTD,01718800,,Maintenance of Grounds,Parking Off-Street,E10HAE04520402,
http://statistics.data.gov.uk/id/local-authority/29UP,Tonbridge & Malling Borough Council,3/1/2023,0022027508/41,22027508, 92676.10,Urbaser LTD,01718800,,Contract Payments,Refuse Collection,H20SA000054001,
http://statistics.data.gov.uk/id/local-authority/29UP,Tonbridge & Malling Borough Council,3/1/2023,0022027508/42,22027508, 946.15,Urbaser LTD,01718800,,Responsible Dog Ownership,Street Scene,H23SD000044050,
http://statistics.data.gov.uk/id/local-authority/29UP,Tonbridge & Malling Borough Council,3/1/2023,0022027508/43,22027508, 56523.64,Urbaser LTD,01718800,,Contract Payments,Street Scene,H23SD000054001,
http://statistics.data.gov.uk/id/local-authority/29UP,Tonbridge & Malling Borough Council,3/1/2023,0022027508/44,22027508, 356.30,Urbaser LTD,01718800,,General Maintenance,Dry Recycling,H34SR000020301,
http://statistics.data.gov.uk/id/local-authority/29UP,Tonbridge & Malling Borough Council,3/1/2023,0022027508/45,22027508, 84198.36,Urbaser LTD,01718800,,Contract Payments,Dry Recycling,H34SR000054001,
http://statistics.data.gov.uk/id/local-authority/29UP,Tonbridge & Malling Borough Council,3/1/2023,0022027508/46,22027508, 32945.93,Urbaser LTD,01718800,,Contract Payments,Food Recycling,H34SS000054001,
http://statistics.data.gov.uk/id/local-authority/29UP,Tonbridge & Malling Borough Council,3/1/2023,0022027508/47,22027508, 17888.09,Urbaser LTD,01718800,,Contract Payments,Garden Waste Recycling,H34ST000054001,
http://statistics.data.gov.uk/id/local-authority/29UP,Tonbridge & Malling Borough Council,3/1/2023,0022027508/5,22027508, 740.63,Urbaser LTD,01718800,,Maintenance of Grounds,Open Spaces & Amenity Areas,B22LE000020402,
http://statistics.data.gov.uk/id/local-authority/29UP,Tonbridge & Malling Borough Council,3/1/2023,0022027508/6,22027508, 13.93,Urbaser LTD,01718800,,Dog Bin Emptying,Open Spaces & Amenity Areas,B22LE000044012,
http://statistics.data.gov.uk/id/local-authority/29UP,Tonbridge & Malling Borough Council,3/1/2023,0022027508/7,22027508, 24.04,Urbaser LTD,01718800,,Maintenance of Grounds,Countryside/Woodland Mgt,B22LG000020402,
http://statistics.data.gov.uk/id/local-authority/29UP,Tonbridge & Malling Borough Council,3/1/2023,0022027508/8,22027508, 72.20,Urbaser LTD,01718800,,Maintenance of Grounds,Leybourne Lakes Country Park,B22LK000020402,
http://statistics.data.gov.uk/id/local-authority/29UP,Tonbridge & Malling Borough Council,3/1/2023,0022027508/9,22027508, 26.13,Urbaser LTD,01718800,,Dog Bin Emptying,Leybourne Lakes Country Park,B22LK000044012,
http://statistics.data.gov.uk/id/local-authority/29UP,Tonbridge & Malling Borough Council,3/1/2023,0022027509/1,22027509, 5820.75,YMCA Thames Gateway Group,01887700,,Property Management,Homelessness,C01AATNPR56001,
http://statistics.data.gov.uk/id/local-authority/29UP,Tonbridge & Malling Borough Council,3/1/2023,0022027510/1,22027510, 5820.75,YMCA Thames Gateway Group,01887700,,Property Management,Homelessness,C01AATNPR56001,
http://statistics.data.gov.uk/id/local-authority/29UP,Tonbridge & Malling Borough Council,3/1/2023,0022027511/1,22027511, 5820.75,YMCA Thames Gateway Group,01887700,,Property Management,Homelessness,C01AATNPR56001,
http://statistics.data.gov.uk/id/local-authority/29UP,Tonbridge & Malling Borough Council,3/1/2023,0022027512/1,22027512, 385.49,Town & Country Housing Group,01385400,,Other Expenses,Disabled Facilities Grant Mand,P03AC000009908,
http://statistics.data.gov.uk/id/local-authority/29UP,Tonbridge & Malling Borough Council,3/1/2023,0022027513/1,22027513, 3177.00,Higher Elevation LTD,01298700,,Other Expenses,Disabled Facilities Grant Mand,P03AC000009908,
http://statistics.data.gov.uk/id/local-authority/29UP,Tonbridge & Malling Borough Council,3/1/2023,0022027514/1,22027514, 948.24,Town & Country Housing Group,01385400,,Other Expenses,Disabled Facilities Grant Mand,P03AC000009908,
http://statistics.data.gov.uk/id/local-authority/29UP,Tonbridge & Malling Borough Council,3/1/2023,0022027515/1,22027515, 6985.00,Dolphin Stairlifts,00698900,,Other Expenses,Disabled Facilities Grant Mand,P03AC000009908,
http://statistics.data.gov.uk/id/local-authority/29UP,Tonbridge & Malling Borough Council,3/1/2023,0022027516/1,22027516, 66881.00,Porchlight,01416700,,Professional Fees,Homelessness,C01AAROUG44001,
http://statistics.data.gov.uk/id/local-authority/29UP,Tonbridge & Malling Borough Council,3/1/2023,0022027517/1,22027517, 326.74,Town & Country Housing Group,01385400,,Other Expenses,Disabled Facilities Grant Mand,P03AC000009908,
http://statistics.data.gov.uk/id/local-authority/29UP,Tonbridge & Malling Borough Council,3/1/2023,0022027518/1,22027518, 2769.00,Higher Elevation LTD,01298700,,Other Expenses,Disabled Facilities Grant Mand,P03AC000009908,
http://statistics.data.gov.uk/id/local-authority/29UP,Tonbridge & Malling Borough Council,3/1/2023,0022027519/1,22027519, 682.52,Town & Country Housing Group,01385400,,Other Expenses,Disabled Facilities Grant Mand,P03AC000009908,
http://statistics.data.gov.uk/id/local-authority/29UP,Tonbridge & Malling Borough Council,3/1/2023,0022027520/1,22027520, 4739.76,Elite Complete Build LTD,01625900,,Other Expenses,Disabled Facilities Grant Mand,P03AC000009908,
http://statistics.data.gov.uk/id/local-authority/29UP,Tonbridge & Malling Borough Council,3/1/2023,0022027521/1,22027521, 1035.50,Town & Country Housing Group,01385400,,Other Expenses,Disabled Facilities Grant Mand,P03AC000009908,
http://statistics.data.gov.uk/id/local-authority/29UP,Tonbridge & Malling Borough Council,3/1/2023,0022027522/1,22027522, 7190.99,Daytrad,01425400,,Other Expenses,Disabled Facilities Grant Mand,P03AC000009908,
http://statistics.data.gov.uk/id/local-authority/29UP,Tonbridge & Malling Borough Council,3/1/2023,0022027523/1,22027523, 2249.57,Town & Country Housing Group,01385400,,Other Expenses,Disabled Facilities Grant Mand,P03AC000009908,
http://statistics.data.gov.uk/id/local-authority/29UP,Tonbridge & Malling Borough Council,3/1/2023,0022027524/1,22027524, 17853.80,Acorn Maintenance Services,01036000,,Other Expenses,Disabled Facilities Grant Mand,P03AC000009908,
http://statistics.data.gov.uk/id/local-authority/29UP,Tonbridge & Malling Borough Council,3/1/2023,0031019281/3,31019281, 58.51,Npower Ltd,01675800,,Electricity,Parking Off-Street,E10HA000021002,
http://statistics.data.gov.uk/id/local-authority/29UP,Tonbridge & Malling Borough Council,3/1/2023,0031019282/3,31019282, 114.40,Npower Ltd,01675800,,Electricity,Parking Off-Street,E10HA000021002,
http://statistics.data.gov.uk/id/local-authority/29UP,Tonbridge & Malling Borough Council,3/1/2023,0031019283/3,31019283, 266.08,Npower Ltd,01675800,,Electricity,Parking Off-Street,E10HA000021002,
http://statistics.data.gov.uk/id/local-authority/29UP,Tonbridge & Malling Borough Council,3/1/2023,0031019285/1,31019285, 72.00,Citiguard Security (UK) Ltd,01872100,200436269,Professional Fees,Parking Off-Street,E10HA000044001,310042927
http://statistics.data.gov.uk/id/local-authority/29UP,Tonbridge & Malling Borough Council,3/1/2023,0031019286/1,31019286, 500.00,Traffic Enforcement Centre,00604200,,Adjudication & Enforcement Ser,Parking Off-Street,E10HA000044230,
http://statistics.data.gov.uk/id/local-authority/29UP,Tonbridge & Malling Borough Council,3/1/2023,0031019286/2,31019286, 500.00,Traffic Enforcement Centre,00604200,,Adjudication & Enforcement Ser,Parking On-Street,E10HD000044230,
http://statistics.data.gov.uk/id/local-authority/29UP,Tonbridge & Malling Borough Council,3/1/2023,0031019287/1,31019287, 45.00,Archway Highway Services Ltd,01398000,,Premises Repairs & Maintenance,Parking Off-Street,E10HA000020601,310042961
http://statistics.data.gov.uk/id/local-authority/29UP,Tonbridge & Malling Borough Council,3/1/2023,0031019291/3,31019291, 850.44,CDER Group,01773300,,Adjudication & Enforcement Ser,Parking Off-Street,E10HA000044230,
http://statistics.data.gov.uk/id/local-authority/29UP,Tonbridge & Malling Borough Council,3/1/2023,0031019293/1,31019293, 3807.46,DSSL Group Ltd,01839500,,Initial Furniture & Equipment,Cap Ren CCTV,P01BATFSG09906,310042951
http://statistics.data.gov.uk/id/local-authority/29UP,Tonbridge & Malling Borough Council,3/1/2023,0031019294/1,31019294, 3242.62,Duke Contractors Ltd,00082900,,Maintenance of Grounds,Cemetery,B26MP000020402,210056538
http://statistics.data.gov.uk/id/local-authority/29UP,Tonbridge & Malling Borough Council,3/1/2023,0031019295/1,31019295, 157.55,Royal British Legion Industries Ltd,00139700,,Premises Repairs & Maintenance,Parking Off-Street,E10HA000020601,310042978
http://statistics.data.gov.uk/id/local-authority/29UP,Tonbridge & Malling Borough Council,3/1/2023,0032010080/1,32010080, 203.49,KM Media Group Ltd,00053900,,Advertising General,Development Management,A01ABZ99944216,320003483
http://statistics.data.gov.uk/id/local-authority/29UP,Tonbridge & Malling Borough Council,3/1/2023,0032010081/3,32010081, 2052.00,Vivid Resourcing,01773700,,Temporary Staff,Planning Sals&Overheads,D01AJDJ0111300,
http://statistics.data.gov.uk/id/local-authority/29UP,Tonbridge & Malling Borough Council,3/1/2023,0032010082/3,32010082, 1709.82,The Oyster Partnership,01196400,,Temporary Staff,Planning Sals&Overheads,D01AJDJ0111300,
http://statistics.data.gov.uk/id/local-authority/29UP,Tonbridge & Malling Borough Council,3/1/2023,0032010083/3,32010083, 1739.00,The Oyster Partnership,01196400,,Temporary Staff,Planning Sals&Overheads,D01AJDJ0111300,
http://statistics.data.gov.uk/id/local-authority/29UP,Tonbridge & Malling Borough Council,3/1/2023,0032010084/3,32010084, 1645.41,The Oyster Partnership,01196400,,Temporary Staff,Planning Sals&Overheads,D01AJDJ0111300,
http://statistics.data.gov.uk/id/local-authority/29UP,Tonbridge & Malling Borough Council,3/1/2023,0032010085/3,32010085, 1767.32,The Oyster Partnership,01196400,,Temporary Staff,Planning Sals&Overheads,D01AJDJ0111300,
http://statistics.data.gov.uk/id/local-authority/29UP,Tonbridge & Malling Borough Council,3/1/2023,0032010086/3,32010086, 1745.75,The Oyster Partnership,01196400,,Temporary Staff,Planning Sals&Overheads,D01AJDJ0111300,
http://statistics.data.gov.uk/id/local-authority/29UP,Tonbridge & Malling Borough Council,3/1/2023,0032010087/1,32010087, 171.36,KM Media Group Ltd,00053900,,Advertising General,Development Management,A01ABZ99944216,320003484
http://statistics.data.gov.uk/id/local-authority/29UP,Tonbridge & Malling Borough Council,3/1/2023,0032010088/3,32010088, 1609.50,G2 Recruitment Solutions,01786000,,Temporary Staff,Planning Sals&Overheads,D01AJDJ0111300,
http://statistics.data.gov.uk/id/local-authority/29UP,Tonbridge & Malling Borough Council,3/1/2023,0032010089/3,32010089, 4270.00,G2 Recruitment Solutions,01786000,,Temporary Staff,Planning Sals&Overheads,D01AJDJ0111300,
http://statistics.data.gov.uk/id/local-authority/29UP,Tonbridge & Malling Borough Council,3/1/2023,0032010090/3,32010090, 1609.50,G2 Recruitment Solutions,01786000,,Temporary Staff,Planning Sals&Overheads,D01AJDJ0111300,
http://statistics.data.gov.uk/id/local-authority/29UP,Tonbridge & Malling Borough Council,3/1/2023,0032010091/3,32010091, 1612.50,Carrington West Limited,01844500,,Temporary Staff,Planning Sals&Overheads,D01AJDJ0111300,
http://statistics.data.gov.uk/id/local-authority/29UP,Tonbridge & Malling Borough Council,3/1/2023,0032010092/3,32010092, 1612.50,Carrington West Limited,01844500,,Temporary Staff,Planning Sals&Overheads,D01AJDJ0111300,
http://statistics.data.gov.uk/id/local-authority/29UP,Tonbridge & Malling Borough Council,3/1/2023,0032010093/1,32010093, 128.43,British Gas Services LTD,01260000,,Electricity,Homelessness,C01AAMAUN21002,
http://statistics.data.gov.uk/id/local-authority/29UP,Tonbridge & Malling Borough Council,3/1/2023,0032010094/1,32010094, 8442.00,Kent County Council,00322500,,Archaeological Advice,Conservation,A01AG000044221,320003410
http://statistics.data.gov.uk/id/local-authority/29UP,Tonbridge & Malling Borough Council,3/1/2023,0041035221/1,41035221, 556.60,Morgan Hunt UK Ltd,01086900,,Temporary Staff,Finance Sals&Overheads,D01AFDF1111300,
http://statistics.data.gov.uk/id/local-authority/29UP,Tonbridge & Malling Borough Council,3/1/2023,0041035222/2,41035222, 3966.35,Maidstone Borough Council,01173700,,Bailiffs Commission,Local Revenue & NNDR Collect,D41QA000044075,
http://statistics.data.gov.uk/id/local-authority/29UP,Tonbridge & Malling Borough Council,3/1/2023,0041035223/1,41035223, 223.78,Maidstone Borough Council,01173700,,Bailiffs Commission,Local Revenue & NNDR Collect,D41QA000044075,
http://statistics.data.gov.uk/id/local-authority/29UP,Tonbridge & Malling Borough Council,3/1/2023,0041035225/1,41035225, 1870.00,LoCTA Ltd,01758700,,Tracing Services,Local Revenue & NNDR Collect,D41QA000044091,410032352
http://statistics.data.gov.uk/id/local-authority/29UP,Tonbridge & Malling Borough Council,3/1/2023,0041035228/1,41035228, 12000.00,Grant Thornton UK LLP,01407400,,Audit Fees,Housing Benefits,C05CL000044223,410032354
http://statistics.data.gov.uk/id/local-authority/29UP,Tonbridge & Malling Borough Council,3/1/2023,0041035236/1,41035236, 10000.00,The East Malling Centre/Community Larder,01168000,,Charitable / Voluntary Organis,Grants & Payments to Vol Orgn,D37PACV1947005,
http://statistics.data.gov.uk/id/local-authority/29UP,Tonbridge & Malling Borough Council,3/1/2023,0041035237/1,41035237, 1000.00,St James the Great Primary School & Nurs,00337800,,Charitable / Voluntary Organis,Grants & Payments to Vol Orgn,D37PACV1947005,
http://statistics.data.gov.uk/id/local-authority/29UP,Tonbridge & Malling Borough Council,3/2/2023,0041035239/1,41035239, 1000.00,Snodland CofE Primary School,01868600,,Charitable / Voluntary Organis,Grants & Payments to Vol Orgn,D37PACV1947005,
http://statistics.data.gov.uk/id/local-authority/29UP,Tonbridge & Malling Borough Council,3/2/2023,0041035240/1,41035240, 2000.00,Snodland Food Assist,01830700,,Charitable / Voluntary Organis,Grants & Payments to Vol Orgn,D37PACV1947005,
http://statistics.data.gov.uk/id/local-authority/29UP,Tonbridge & Malling Borough Council,3/2/2023,0041035241/1,41035241, 1000.00,Woodlands Primary School,01868500,,Charitable / Voluntary Organis,Grants & Payments to Vol Orgn,D37PACV1947005,
http://statistics.data.gov.uk/id/local-authority/29UP,Tonbridge & Malling Borough Council,3/3/2023,0041035242/1,41035242, 1000.00,Long Mead Community Primary School,01868100,,Charitable / Voluntary Organis,Grants & Payments to Vol Orgn,D37PACV1947005,
http://statistics.data.gov.uk/id/local-authority/29UP,Tonbridge & Malling Borough Council,3/3/2023,0041035243/1,41035243, 1000.00,Cage Green Primary School,01868000,,Charitable / Voluntary Organis,Grants & Payments to Vol Orgn,D37PACV1947005,
http://statistics.data.gov.uk/id/local-authority/29UP,Tonbridge & Malling Borough Council,3/6/2023,0041035245/1,41035245, 3000.00,FeastFamiliesEating and Sharing Together,01786600,,Charitable / Voluntary Organis,Grants & Payments to Vol Orgn,D37PACV1947005,
http://statistics.data.gov.uk/id/local-authority/29UP,Tonbridge & Malling Borough Council,3/6/2023,0041035246/1,41035246, 3000.00,St Peter & St Pauls Church Aylesford,01786400,,Charitable / Voluntary Organis,Grants & Payments to Vol Orgn,D37PACV1947005,
http://statistics.data.gov.uk/id/local-authority/29UP,Tonbridge & Malling Borough Council,3/6/2023,0041035247/1,41035247, 5000.00,The East Malling Centre/Community Larder,01168000,,Charitable / Voluntary Organis,Grants & Payments to Vol Orgn,D37PACV1947005,
http://statistics.data.gov.uk/id/local-authority/29UP,Tonbridge & Malling Borough Council,3/6/2023,0041035248/1,41035248, 5000.00,Citizens Advice North and West Kent ,01617600,,Charitable / Voluntary Organis,Grants & Payments to Vol Orgn,D37PACV1947005,
http://statistics.data.gov.uk/id/local-authority/29UP,Tonbridge & Malling Borough Council,3/6/2023,0041035249/1,41035249, 1000.00,St Katherines School & Nursery,01868400,,Charitable / Voluntary Organis,Grants & Payments to Vol Orgn,D37PACV1947005,
http://statistics.data.gov.uk/id/local-authority/29UP,Tonbridge & Malling Borough Council,3/8/2023,0011045721/1,11045721, 40.00,Kent County Council,00322500,,Initiatives,Climate Change,D47SA000048135,110070004
http://statistics.data.gov.uk/id/local-authority/29UP,Tonbridge & Malling Borough Council,3/8/2023,0011045722/1,11045722, 76.20,Sideways Media,01836200,,Marketing,Ton Castle Council Chamber,D21FC000044215,
http://statistics.data.gov.uk/id/local-authority/29UP,Tonbridge & Malling Borough Council,3/8/2023,0011045724/1,11045724, 589.41,KH Recruitment Ltd,01738900,,Temporary Staff,Personnel Sals&Overheads,D01ABDB0311300,
http://statistics.data.gov.uk/id/local-authority/29UP,Tonbridge & Malling Borough Council,3/8/2023,0011045725/1,11045725, 360.00,G C Industrial Heating Services,00578100,,BRREP Response - General,Leis Man Poult Wood Golf Centr,M15HEP50001997,
http://statistics.data.gov.uk/id/local-authority/29UP,Tonbridge & Malling Borough Council,3/8/2023,0011045726/1,11045726, 140.00,K T Fire Protection Ltd,00057000,,BRREP Servicing - FireAlarmSys,Larkfield Leisure Centre,M15HDP20001937,
http://statistics.data.gov.uk/id/local-authority/29UP,Tonbridge & Malling Borough Council,3/8/2023,0011045727/1,11045727, 75.00,GreenFish Consulting part of JCML Consul,01627700,,Repairs & Mtce to Buildings,Homelessness,C01AATNHS20101,
http://statistics.data.gov.uk/id/local-authority/29UP,Tonbridge & Malling Borough Council,3/8/2023,0011045728/1,11045728, 420.00,G C Industrial Heating Services,00578100,,BRREP Servicing - Sadia Tea,Gibson Building West,M15KBP20001932,
http://statistics.data.gov.uk/id/local-authority/29UP,Tonbridge & Malling Borough Council,3/8/2023,0011045729/1,11045729, 387.00,BML Building Services Ltd,01505000,,BRREP Window/door repairs,PC - General,M15JAP20001919,
http://statistics.data.gov.uk/id/local-authority/29UP,Tonbridge & Malling Borough Council,3/8/2023,0011045730/1,11045730, 1043.44,Canon (UK) Limited,00298700,,Purchases - Paper,Printing,D22GA000040102,
http://statistics.data.gov.uk/id/local-authority/29UP,Tonbridge & Malling Borough Council,3/8/2023,0011045731/1,11045731, 207.43,Thomas Fattorini Ltd,00101500,,Other Expenses,Mayoral & Other Member Support,D29LX000048010,
http://statistics.data.gov.uk/id/local-authority/29UP,Tonbridge & Malling Borough Council,3/8/2023,0011045732/1,11045732, 768.00,Canon (UK) Limited,00298700,,Purchases - Paper,Printing,D22GA000040102,
http://statistics.data.gov.uk/id/local-authority/29UP,Tonbridge & Malling Borough Council,3/8/2023,0011045733/1,11045733, 75.44,Royal Mail,00086200,,Postages - Business Reply,Electoral Registration,D31MF000045003,
http://statistics.data.gov.uk/id/local-authority/29UP,Tonbridge & Malling Borough Council,3/8/2023,0011045733/2,11045733, 15.00,Royal Mail,00086200,,Purchases,Business Reply Stock Account,K14AT000001002,
http://statistics.data.gov.uk/id/local-authority/29UP,Tonbridge & Malling Borough Council,3/8/2023,0011045734/1,11045734, 12.04,Royal Mail,00086200,,Purchases,Mailsort Stock Account,K37BR000001002,
http://statistics.data.gov.uk/id/local-authority/29UP,Tonbridge & Malling Borough Council,3/8/2023,0011045734/2,11045734, 1.75,Royal Mail,00086200,,Purchases,Mailsort Stock Account,K37BR000001002,
http://statistics.data.gov.uk/id/local-authority/29UP,Tonbridge & Malling Borough Council,3/8/2023,0011045734/3,11045734, 1647.43,Royal Mail,00086200,,Purchases,Mailsort Stock Account,K37BR000001002,
http://statistics.data.gov.uk/id/local-authority/29UP,Tonbridge & Malling Borough Council,3/8/2023,0011045735/1,11045735, 1109.44,VIPSystem Ltd,01422600,,Purchases,Licences - Fee Paying,H27SH000040101,110070074
http://statistics.data.gov.uk/id/local-authority/29UP,Tonbridge & Malling Borough Council,3/8/2023,0011045735/10,11045735, 278.46,VIPSystem Ltd,01422600,,Purchases,Licences - Fee Paying,H27SH000040101,110070074
http://statistics.data.gov.uk/id/local-authority/29UP,Tonbridge & Malling Borough Council,3/8/2023,0011045735/2,11045735, 1534.38,VIPSystem Ltd,01422600,,Purchases,Licences - Fee Paying,H27SH000040101,110070074
http://statistics.data.gov.uk/id/local-authority/29UP,Tonbridge & Malling Borough Council,3/8/2023,0011045735/3,11045735, 138.56,VIPSystem Ltd,01422600,,Purchases,Licences - Fee Paying,H27SH000040101,110070074
http://statistics.data.gov.uk/id/local-authority/29UP,Tonbridge & Malling Borough Council,3/8/2023,0011045735/4,11045735, 540.44,VIPSystem Ltd,01422600,,Purchases,Licences - Fee Paying,H27SH000040101,110070074
http://statistics.data.gov.uk/id/local-authority/29UP,Tonbridge & Malling Borough Council,3/8/2023,0011045735/5,11045735, 277.14,VIPSystem Ltd,01422600,,Purchases,Licences - Fee Paying,H27SH000040101,110070074
http://statistics.data.gov.uk/id/local-authority/29UP,Tonbridge & Malling Borough Council,3/8/2023,0011045735/6,11045735, 675.55,VIPSystem Ltd,01422600,,Purchases,Licences - Fee Paying,H27SH000040101,110070074
http://statistics.data.gov.uk/id/local-authority/29UP,Tonbridge & Malling Borough Council,3/8/2023,0011045735/7,11045735, 226.34,VIPSystem Ltd,01422600,,Purchases,Licences - Fee Paying,H27SH000040101,110070074
http://statistics.data.gov.uk/id/local-authority/29UP,Tonbridge & Malling Borough Council,3/8/2023,0011045735/8,11045735, 56.06,VIPSystem Ltd,01422600,,Purchases,Licences - Fee Paying,H27SH000040101,110070074
http://statistics.data.gov.uk/id/local-authority/29UP,Tonbridge & Malling Borough Council,3/8/2023,0011045735/9,11045735, 139.23,VIPSystem Ltd,01422600,,Purchases,Licences - Fee Paying,H27SH000040101,110070074
http://statistics.data.gov.uk/id/local-authority/29UP,Tonbridge & Malling Borough Council,3/8/2023,0011045737/1,11045737, 2381.50,Encore Envelopes Ltd,01750600,,Purchases,Conduct of Elections,D31MG000040101,110070009
http://statistics.data.gov.uk/id/local-authority/29UP,Tonbridge & Malling Borough Council,3/8/2023,0011045738/1,11045738, 407.42,Wessex Lift Co Ltd,00332600,,BRREP Servicing - lifts,Tonbridge Castle / CAB,M15KFP20001930,110070027
http://statistics.data.gov.uk/id/local-authority/29UP,Tonbridge & Malling Borough Council,3/8/2023,0011045739/1,11045739, 400.00,Triple S Lift Services,01344900,,BRREP Servicing - lifts,Gibson Building East,M15KGP20001930,110069990
http://statistics.data.gov.uk/id/local-authority/29UP,Tonbridge & Malling Borough Council,3/8/2023,0011045740/1,11045740, 421.88,Triple S Lift Services,01344900,,BRREP Servicing - lifts,Gibson Building East,M15KGP20001930,110069932
http://statistics.data.gov.uk/id/local-authority/29UP,Tonbridge & Malling Borough Council,3/8/2023,0011045741/1,11045741, 871.00,BML Building Services Ltd,01505000,,BRREP Response - General,Gibson Building West,M15KBP50001997,110069977
http://statistics.data.gov.uk/id/local-authority/29UP,Tonbridge & Malling Borough Council,3/8/2023,0011045742/1,11045742, 375.00,BML Building Services Ltd,01505000,,BRREP Response - General,Shops & Maisonettes,M15NAP50001997,110070012
http://statistics.data.gov.uk/id/local-authority/29UP,Tonbridge & Malling Borough Council,3/8/2023,0011045743/1,11045743, 415.00,East Sussex Fire Ltd,01843100,,Repairs & Mtce to Buildings,Homelessness,C01AATNHS20101,110070051
http://statistics.data.gov.uk/id/local-authority/29UP,Tonbridge & Malling Borough Council,3/8/2023,0011045744/1,11045744, 529.00,BML Building Services Ltd,01505000,,BRREP Response - General,PC - General,M15JAP50001997,110070061
http://statistics.data.gov.uk/id/local-authority/29UP,Tonbridge & Malling Borough Council,3/8/2023,0011045745/1,11045745, 1971.00,Westcountry Group,00656400,,Purchases,Central Stationery Stock A/c,K03AD000001002,110070043
http://statistics.data.gov.uk/id/local-authority/29UP,Tonbridge & Malling Borough Council,3/8/2023,0011045746/1,11045746, 100.00,Intercom repair Ltd,01861200,140598900,Repairs & Mtce to Buildings,Homelessness,C01AATNHS20101,110070070
http://statistics.data.gov.uk/id/local-authority/29UP,Tonbridge & Malling Borough Council,3/8/2023,0011045747/1,11045747, 61.00,BML Building Services Ltd,01505000,,Repairs & Mtce to Buildings,Homelessness,C01AATNHS20101,110070060
http://statistics.data.gov.uk/id/local-authority/29UP,Tonbridge & Malling Borough Council,3/8/2023,0011045748/1,11045748, 182.74,BML Building Services Ltd,01505000,,BRREP Servicing - air handling,Larkfield Leisure Centre,M15HDP20001936,110070062
http://statistics.data.gov.uk/id/local-authority/29UP,Tonbridge & Malling Borough Council,3/8/2023,0011045749/1,11045749, 1089.00,Learnd UK,01226700,,BRREP BMS System Mntce/Upgrade,Larkfield Leisure Centre,M15HDP20001912,110069931
http://statistics.data.gov.uk/id/local-authority/29UP,Tonbridge & Malling Borough Council,3/8/2023,0011045750/1,11045750, 4050.00,KD Drainage and Asbestos Ltd,01840800,335158603,BRREP Response - General,Angel Centre,M15HAP50001997,110070048
http://statistics.data.gov.uk/id/local-authority/29UP,Tonbridge & Malling Borough Council,3/8/2023,0011045751/1,11045751, 225.00,Broadwater Technologies,01534500,,BRREP Plant renewals,Larkfield Leisure Centre,M15HDP20001909,110070071
http://statistics.data.gov.uk/id/local-authority/29UP,Tonbridge & Malling Borough Council,3/8/2023,0011045752/1,11045752, 112.00,East Sussex Fire Ltd,01843100,,Repairs & Mtce to Buildings,Homelessness,C01AATNHS20101,110069587
http://statistics.data.gov.uk/id/local-authority/29UP,Tonbridge & Malling Borough Council,3/8/2023,0011045753/1,11045753, 50.00,G C Industrial Heating Services,00578100,,BRREP Response - General,Gibson Building East,M15KGP50001997,110070065
http://statistics.data.gov.uk/id/local-authority/29UP,Tonbridge & Malling Borough Council,3/8/2023,0011045754/1,11045754, 233.33,G C Industrial Heating Services,00578100,,BRREP Response - General,Gibson Building West,M15KBP50001997,110070066
http://statistics.data.gov.uk/id/local-authority/29UP,Tonbridge & Malling Borough Council,3/8/2023,0011045755/1,11045755, 208.33,G C Industrial Heating Services,00578100,,BRREP Plant renewals,Tonbridge Swimming Pool,M15HBP20001909,110070077
http://statistics.data.gov.uk/id/local-authority/29UP,Tonbridge & Malling Borough Council,3/8/2023,0011045756/1,11045756, 100.00,G C Industrial Heating Services,00578100,,BRREP Servicing - Sadia Tea,Gibson Building West,M15KBP20001932,
http://statistics.data.gov.uk/id/local-authority/29UP,Tonbridge & Malling Borough Council,3/8/2023,0011045757/1,11045757, 60.00,G C Industrial Heating Services,00578100,,BRREP Response - General,Tonbridge Castle / CAB,M15KFP50001997,110070078
http://statistics.data.gov.uk/id/local-authority/29UP,Tonbridge & Malling Borough Council,3/8/2023,0011045758/1,11045758, 338.00,BML Building Services Ltd,01505000,,BRREP Response - General,Leybourne Lakes Country Park,M15HLP50001997,110070052
http://statistics.data.gov.uk/id/local-authority/29UP,Tonbridge & Malling Borough Council,3/8/2023,0011045759/1,11045759, 16.15,KCS - KCC,00054200,,Stationery,Admin & Prop Sals&Overheads,D01AA000043003,110070072
http://statistics.data.gov.uk/id/local-authority/29UP,Tonbridge & Malling Borough Council,3/8/2023,0011045760/1,11045760, 4432.00,BML Building Services Ltd,01505000,,Other Expenses,Homeless Accommodation,P03AX000009908,110070021
http://statistics.data.gov.uk/id/local-authority/29UP,Tonbridge & Malling Borough Council,3/8/2023,0011045761/1,11045761, 4256.00,BML Building Services Ltd,01505000,,Other Expenses,Homeless Accommodation,P03AX000009908,110070022
http://statistics.data.gov.uk/id/local-authority/29UP,Tonbridge & Malling Borough Council,3/8/2023,0011045762/1,11045762, 300.00,BML Building Services Ltd,01505000,,BRREP Drain and gully cleaning,PC - General,M15JAP20001975,
http://statistics.data.gov.uk/id/local-authority/29UP,Tonbridge & Malling Borough Council,3/8/2023,0011045763/1,11045763, 50.00,BML Building Services Ltd,01505000,,BRREP Response - General,Pleasure Grounds & Open Spaces,M15HHP50001997,
http://statistics.data.gov.uk/id/local-authority/29UP,Tonbridge & Malling Borough Council,3/8/2023,0011045764/1,11045764, 300.00,BML Building Services Ltd,01505000,,BRREP Drain and gully cleaning,PC - General,M15JAP20001975,
http://statistics.data.gov.uk/id/local-authority/29UP,Tonbridge & Malling Borough Council,3/8/2023,0011045765/1,11045765, 155.88,TwoFold Limited,00518000,,Purchases,Printing,D22GA000040101,
http://statistics.data.gov.uk/id/local-authority/29UP,Tonbridge & Malling Borough Council,3/8/2023,0011045766/1,11045766, 951.83,Fuller Long Planning and Heritage Consul,01883200,,Professional Fees,Land Review,D40PSTON144001,
http://statistics.data.gov.uk/id/local-authority/29UP,Tonbridge & Malling Borough Council,3/8/2023,0011045767/1,11045767, 50.00,BML Building Services Ltd,01505000,,BRREP Response - General,Gibson Building West,M15KBP50001997,
http://statistics.data.gov.uk/id/local-authority/29UP,Tonbridge & Malling Borough Council,3/8/2023,0011045768/1,11045768, 150.00,BML Building Services Ltd,01505000,,BRREP Response - General,Larkfield Leisure Centre,M15HDP50001997,
http://statistics.data.gov.uk/id/local-authority/29UP,Tonbridge & Malling Borough Council,3/8/2023,0011045769/1,11045769, 912.31,Castle Water,01696500,,Water Charges (Metered),Buildings,D21FEDD6024001,
http://statistics.data.gov.uk/id/local-authority/29UP,Tonbridge & Malling Borough Council,3/8/2023,0011045770/1,11045770, 372.79,Castle Water,01696500,,Estate Management Charge,Land Review,D40PS000020400,
http://statistics.data.gov.uk/id/local-authority/29UP,Tonbridge & Malling Borough Council,3/8/2023,0011045771/1,11045771, 1778.79,Little Linens Ltd,01888700,,Economic Development & Regen,Eco Dev & Reg Gen Bus Support,D52TD000047027,
http://statistics.data.gov.uk/id/local-authority/29UP,Tonbridge & Malling Borough Council,3/8/2023,0011045772/3,11045772, 70.00,Spy Alarms Ltd,01608800,,BRREP Servicing-IntruderAlarm,Leybourne Lakes Country Park,M15HLP20001939,
http://statistics.data.gov.uk/id/local-authority/29UP,Tonbridge & Malling Borough Council,3/8/2023,0011045773/3,11045773, 20.00,Spy Alarms Ltd,01608800,,BRREP Servicing-IntruderAlarm,Leybourne Lakes Country Park,M15HLP20001939,
http://statistics.data.gov.uk/id/local-authority/29UP,Tonbridge & Malling Borough Council,3/8/2023,0011045774/3,11045774, 130.00,Spy Alarms Ltd,01608800,,BRREP Servicing-IntruderAlarm,Leybourne Lakes Country Park,M15HLP20001939,
http://statistics.data.gov.uk/id/local-authority/29UP,Tonbridge & Malling Borough Council,3/8/2023,0012008650/3,12008650, 17503.99,Capita Secure Information Solutions Ltd,00817100,,Software Hire & Support,Information Technology,D27KD000044059,
http://statistics.data.gov.uk/id/local-authority/29UP,Tonbridge & Malling Borough Council,3/8/2023,0012008650/4,12008650, 3820.42,Capita Secure Information Solutions Ltd,00817100,,Software Hire & Support,Information Technology,D27KD000044059,
http://statistics.data.gov.uk/id/local-authority/29UP,Tonbridge & Malling Borough Council,3/8/2023,0012008651/1,12008651, 772.26,NEC Software Solutions UK Ltd,01073900,202159745,Software Hire & Support,Information Technology,D27KD000044059,410032335
http://statistics.data.gov.uk/id/local-authority/29UP,Tonbridge & Malling Borough Council,3/8/2023,0012008652/1,12008652, 494.00,Buchanan Computing,00528900,,Software Hire & Support,Information Technology,D27KD000044059,410032356
http://statistics.data.gov.uk/id/local-authority/29UP,Tonbridge & Malling Borough Council,3/8/2023,0012008653/1,12008653, 12231.81,Kent County Council,00322500,,Leased Lines & Modems,Information Technology,D27KD000045011,410032358
http://statistics.data.gov.uk/id/local-authority/29UP,Tonbridge & Malling Borough Council,3/8/2023,0012008654/1,12008654, 10455.11,Trustmarque Solutions Ltd,01673200,,Software Hire & Support,Information Technology,D27KD000044059,410032360
http://statistics.data.gov.uk/id/local-authority/29UP,Tonbridge & Malling Borough Council,3/8/2023,0012008655/3,12008655, 4.61,Daisy Communications,01068100,,Telephones - Rentals,General Admin Telephones,D24GT000045005,
http://statistics.data.gov.uk/id/local-authority/29UP,Tonbridge & Malling Borough Council,3/8/2023,0012008655/4,12008655, 285.76,Daisy Communications,01068100,,Telephones - Call Costs,General Admin Telephones,D24GT000045006,
http://statistics.data.gov.uk/id/local-authority/29UP,Tonbridge & Malling Borough Council,3/8/2023,0012008655/5,12008655, 95.92,Daisy Communications,01068100,,Leased Lines & Modems,Information Technology,D27KD000045011,
http://statistics.data.gov.uk/id/local-authority/29UP,Tonbridge & Malling Borough Council,3/8/2023,0012008655/6,12008655, 74.46,Daisy Communications,01068100,,Maintenance - General,Security Services Management,E09GA000040135,
http://statistics.data.gov.uk/id/local-authority/29UP,Tonbridge & Malling Borough Council,3/8/2023,0012008656/3,12008656, 1444.78,NTT Cloud Communications UK Ltd,01794600,,Software Hire & Support,Information Technology,D27KD000044059,
http://statistics.data.gov.uk/id/local-authority/29UP,Tonbridge & Malling Borough Council,3/8/2023,0021038377/3,21038377, 1600.00,Flex Flooring Ltd,01208600,,BRREP General Maintenance,Larkfield Leisure Centre,M15HDP10001900,
http://statistics.data.gov.uk/id/local-authority/29UP,Tonbridge & Malling Borough Council,3/8/2023,0021038377/4,21038377, 3525.00,Flex Flooring Ltd,01208600,,Initial Furniture & Equipment,Capital Renewals Leisure,P05KGBC0209906,
http://statistics.data.gov.uk/id/local-authority/29UP,Tonbridge & Malling Borough Council,3/8/2023,0021038440/1,21038440, 707.70,Streetmaster (South Wales) Ltd,00222100,,Maintenance of Grounds,Sports Grounds,B13ET000020402,210057046
http://statistics.data.gov.uk/id/local-authority/29UP,Tonbridge & Malling Borough Council,3/8/2023,0021038441/1,21038441, 430.00,EE Olley & Sons,01830300,,Bridge Maintenance,Open Spaces & Amenity Areas,B22LE000020505,210057117
http://statistics.data.gov.uk/id/local-authority/29UP,Tonbridge & Malling Borough Council,3/8/2023,0021038444/1,21038444, 11.25,G.L. & R.G. Bourne,00737500,,Maintenance of Grounds,Countryside/Woodland Mgt,B22LG000020402,
http://statistics.data.gov.uk/id/local-authority/29UP,Tonbridge & Malling Borough Council,3/8/2023,0021038445/1,21038445, 67.48,G.L. & R.G. Bourne,00737500,,Gates / Security,Haysden Country Park,B22LC000044017,210056722
http://statistics.data.gov.uk/id/local-authority/29UP,Tonbridge & Malling Borough Council,3/8/2023,0021038446/1,21038446, 492.24,G.L. & R.G. Bourne,00737500,,Gates / Security,Haysden Country Park,B22LC000044017,210056722
http://statistics.data.gov.uk/id/local-authority/29UP,Tonbridge & Malling Borough Council,3/8/2023,0021038447/1,21038447, 145.36,Royal British Legion Industries Ltd,00139700,,Maintenance of Grounds,Haysden Country Park,B22LCCARP20402,210057109
http://statistics.data.gov.uk/id/local-authority/29UP,Tonbridge & Malling Borough Council,3/8/2023,0021038448/1,21038448, 44.66,Castle Water,01696500,,Water Charges (Metered),Cemetery,B26MP000024001,
http://statistics.data.gov.uk/id/local-authority/29UP,Tonbridge & Malling Borough Council,3/8/2023,0021038449/1,21038449, 388.22,Landscape Services Ltd,00057600,,Tree Planting Schemes,Countryside/Woodland Mgt,B22LH000020405,210057084
http://statistics.data.gov.uk/id/local-authority/29UP,Tonbridge & Malling Borough Council,3/8/2023,0021038450/10,21038450, 4577.19,Landscape Services Ltd,00057600,,Grounds Maintenance Contract,Cemetery,B26MP000050103,
http://statistics.data.gov.uk/id/local-authority/29UP,Tonbridge & Malling Borough Council,3/8/2023,0021038450/11,21038450, 216.11,Landscape Services Ltd,00057600,,Grounds Maintenance Contract,Churchyards St Peter & St Paul,B28MX000050103,
http://statistics.data.gov.uk/id/local-authority/29UP,Tonbridge & Malling Borough Council,3/8/2023,0021038450/12,21038450, 157.16,Landscape Services Ltd,00057600,,Grounds Maintenance Contract,Churchyards St Stephens,B28MY000050103,
http://statistics.data.gov.uk/id/local-authority/29UP,Tonbridge & Malling Borough Council,3/8/2023,0021038450/13,21038450, 173.71,Landscape Services Ltd,00057600,,Grounds Maintenance Contract,Grounds,D21FF000050103,
http://statistics.data.gov.uk/id/local-authority/29UP,Tonbridge & Malling Borough Council,3/8/2023,0021038450/14,21038450, 329.46,Landscape Services Ltd,00057600,,Maintenance of Grounds,Parking Off-Street,E10HA000020402,
http://statistics.data.gov.uk/id/local-authority/29UP,Tonbridge & Malling Borough Council,3/8/2023,0021038450/15,21038450, 1033.20,Landscape Services Ltd,00057600,,Maintenance of Grounds,Parking Off-Street,E10HAE00120402,
http://statistics.data.gov.uk/id/local-authority/29UP,Tonbridge & Malling Borough Council,3/8/2023,0021038450/16,21038450, 98.11,Landscape Services Ltd,00057600,,Maintenance of Grounds,Parking Off-Street,E10HAE00220402,
http://statistics.data.gov.uk/id/local-authority/29UP,Tonbridge & Malling Borough Council,3/8/2023,0021038450/17,21038450, 88.97,Landscape Services Ltd,00057600,,Maintenance of Grounds,Parking Off-Street,E10HAE00320402,
http://statistics.data.gov.uk/id/local-authority/29UP,Tonbridge & Malling Borough Council,3/8/2023,0021038450/18,21038450, 22.19,Landscape Services Ltd,00057600,,Maintenance of Grounds,Parking Off-Street,E10HAE00420402,
http://statistics.data.gov.uk/id/local-authority/29UP,Tonbridge & Malling Borough Council,3/8/2023,0021038450/19,21038450, 0.57,Landscape Services Ltd,00057600,,Maintenance of Grounds,Parking Off-Street,E10HAE00520402,
http://statistics.data.gov.uk/id/local-authority/29UP,Tonbridge & Malling Borough Council,3/8/2023,0021038450/20,21038450, 62.11,Landscape Services Ltd,00057600,,Maintenance of Grounds,Parking Off-Street,E10HAE00620402,
http://statistics.data.gov.uk/id/local-authority/29UP,Tonbridge & Malling Borough Council,3/8/2023,0021038450/21,21038450, 145.01,Landscape Services Ltd,00057600,,Maintenance of Grounds,Parking Off-Street,E10HAE01020402,
http://statistics.data.gov.uk/id/local-authority/29UP,Tonbridge & Malling Borough Council,3/8/2023,0021038450/22,21038450, 3.21,Landscape Services Ltd,00057600,,Maintenance of Grounds,Parking Off-Street,E10HAE01220402,
http://statistics.data.gov.uk/id/local-authority/29UP,Tonbridge & Malling Borough Council,3/8/2023,0021038450/23,21038450, 7.09,Landscape Services Ltd,00057600,,Maintenance of Grounds,Parking Off-Street,E10HAE01320402,
http://statistics.data.gov.uk/id/local-authority/29UP,Tonbridge & Malling Borough Council,3/8/2023,0021038450/24,21038450, 29.50,Landscape Services Ltd,00057600,,Maintenance of Grounds,Parking Off-Street,E10HAE01520402,
http://statistics.data.gov.uk/id/local-authority/29UP,Tonbridge & Malling Borough Council,3/8/2023,0021038450/25,21038450, 57.64,Landscape Services Ltd,00057600,,Maintenance of Grounds,Parking Off-Street,E10HAE01620402,
http://statistics.data.gov.uk/id/local-authority/29UP,Tonbridge & Malling Borough Council,3/8/2023,0021038450/26,21038450, 23.42,Landscape Services Ltd,00057600,,Maintenance of Grounds,Parking Off-Street,E10HAE01720402,
http://statistics.data.gov.uk/id/local-authority/29UP,Tonbridge & Malling Borough Council,3/8/2023,0021038450/27,21038450, 14.39,Landscape Services Ltd,00057600,,Maintenance of Grounds,Parking Off-Street,E10HAE02120402,
http://statistics.data.gov.uk/id/local-authority/29UP,Tonbridge & Malling Borough Council,3/8/2023,0021038450/28,21038450, 22.91,Landscape Services Ltd,00057600,,Maintenance of Grounds,Parking Off-Street,E10HAE02320402,
http://statistics.data.gov.uk/id/local-authority/29UP,Tonbridge & Malling Borough Council,3/8/2023,0021038450/29,21038450, 87.83,Landscape Services Ltd,00057600,,Maintenance of Grounds,Parking Off-Street,E10HAE02820402,
http://statistics.data.gov.uk/id/local-authority/29UP,Tonbridge & Malling Borough Council,3/8/2023,0021038450/3,21038450, 21497.43,Landscape Services Ltd,00057600,,Grounds Maintenance Contract,Sports Grounds,B13ET000050103,
http://statistics.data.gov.uk/id/local-authority/29UP,Tonbridge & Malling Borough Council,3/8/2023,0021038450/30,21038450, 23.78,Landscape Services Ltd,00057600,,Maintenance of Grounds,Parking Off-Street,E10HAE04020402,
http://statistics.data.gov.uk/id/local-authority/29UP,Tonbridge & Malling Borough Council,3/8/2023,0021038450/31,21038450, 78.42,Landscape Services Ltd,00057600,,Maintenance of Grounds,Parking Off-Street,E10HAE04520402,
http://statistics.data.gov.uk/id/local-authority/29UP,Tonbridge & Malling Borough Council,3/8/2023,0021038450/4,21038450, 7461.13,Landscape Services Ltd,00057600,,Grounds Maintenance Contract,Tonbridge Castle Grounds,B22LB000050103,
http://statistics.data.gov.uk/id/local-authority/29UP,Tonbridge & Malling Borough Council,3/8/2023,0021038450/5,21038450, 56.77,Landscape Services Ltd,00057600,,Trade Refuse Charges,Haysden Country Park,B22LC000044008,
http://statistics.data.gov.uk/id/local-authority/29UP,Tonbridge & Malling Borough Council,3/8/2023,0021038450/6,21038450, 487.02,Landscape Services Ltd,00057600,,Litter Collection,Haysden Country Park,B22LC000044061,
http://statistics.data.gov.uk/id/local-authority/29UP,Tonbridge & Malling Borough Council,3/8/2023,0021038450/7,21038450, 1674.08,Landscape Services Ltd,00057600,,Grounds Maintenance Contract,Haysden Country Park,B22LC000050103,
http://statistics.data.gov.uk/id/local-authority/29UP,Tonbridge & Malling Borough Council,3/8/2023,0021038450/8,21038450, 583.97,Landscape Services Ltd,00057600,,Grounds Maintenance Contract,Haysden Country Park,B22LC000050103,
http://statistics.data.gov.uk/id/local-authority/29UP,Tonbridge & Malling Borough Council,3/8/2023,0021038450/9,21038450, 12393.51,Landscape Services Ltd,00057600,,Grounds Maintenance Contract,Open Spaces & Amenity Areas,B22LE000050103,
http://statistics.data.gov.uk/id/local-authority/29UP,Tonbridge & Malling Borough Council,3/8/2023,0021038451/1,21038451, 165.19,Landscape Services Ltd,00057600,,Grounds Maintenance Contract,Cemetery,B26MP000050103,
http://statistics.data.gov.uk/id/local-authority/29UP,Tonbridge & Malling Borough Council,3/8/2023,0021038453/3,21038453, 10.36,B&Q/Screwfix Direct(TradeUKAccount),00141300,,Purchases,Open Spaces & Amenity Areas,B22LE000040101,
http://statistics.data.gov.uk/id/local-authority/29UP,Tonbridge & Malling Borough Council,3/8/2023,0021038454/3,21038454, 9.07,B&Q/Screwfix Direct(TradeUKAccount),00141300,,Purchases,Open Spaces & Amenity Areas,B22LE000040101,
http://statistics.data.gov.uk/id/local-authority/29UP,Tonbridge & Malling Borough Council,3/8/2023,0021038455/1,21038455, 135.00,Mr Mark Williams,01184500,,Marketing,Events Development,B41TJZ99944215,210057120
http://statistics.data.gov.uk/id/local-authority/29UP,Tonbridge & Malling Borough Council,3/8/2023,0021038456/10,21038456, 5538.39,Landscape Services Ltd,00057600,,Grounds Maintenance Contract,Cemetery,B26MP000050103,
http://statistics.data.gov.uk/id/local-authority/29UP,Tonbridge & Malling Borough Council,3/8/2023,0021038456/11,21038456, 261.49,Landscape Services Ltd,00057600,,Grounds Maintenance Contract,Churchyards St Peter & St Paul,B28MX000050103,
http://statistics.data.gov.uk/id/local-authority/29UP,Tonbridge & Malling Borough Council,3/8/2023,0021038456/12,21038456, 190.16,Landscape Services Ltd,00057600,,Grounds Maintenance Contract,Churchyards St Stephens,B28MY000050103,
http://statistics.data.gov.uk/id/local-authority/29UP,Tonbridge & Malling Borough Council,3/8/2023,0021038456/13,21038456, 210.19,Landscape Services Ltd,00057600,,Grounds Maintenance Contract,Grounds,D21FF000050103,
http://statistics.data.gov.uk/id/local-authority/29UP,Tonbridge & Malling Borough Council,3/8/2023,0021038456/14,21038456, 398.64,Landscape Services Ltd,00057600,,Maintenance of Grounds,Parking Off-Street,E10HA000020402,
http://statistics.data.gov.uk/id/local-authority/29UP,Tonbridge & Malling Borough Council,3/8/2023,0021038456/15,21038456, 1250.18,Landscape Services Ltd,00057600,,Maintenance of Grounds,Parking Off-Street,E10HAE00120402,
http://statistics.data.gov.uk/id/local-authority/29UP,Tonbridge & Malling Borough Council,3/8/2023,0021038456/16,21038456, 118.71,Landscape Services Ltd,00057600,,Maintenance of Grounds,Parking Off-Street,E10HAE00220402,
http://statistics.data.gov.uk/id/local-authority/29UP,Tonbridge & Malling Borough Council,3/8/2023,0021038456/17,21038456, 107.65,Landscape Services Ltd,00057600,,Maintenance of Grounds,Parking Off-Street,E10HAE00320402,
http://statistics.data.gov.uk/id/local-authority/29UP,Tonbridge & Malling Borough Council,3/8/2023,0021038456/18,21038456, 26.85,Landscape Services Ltd,00057600,,Maintenance of Grounds,Parking Off-Street,E10HAE00420402,
http://statistics.data.gov.uk/id/local-authority/29UP,Tonbridge & Malling Borough Council,3/8/2023,0021038456/19,21038456, 0.69,Landscape Services Ltd,00057600,,Maintenance of Grounds,Parking Off-Street,E10HAE00520402,
http://statistics.data.gov.uk/id/local-authority/29UP,Tonbridge & Malling Borough Council,3/8/2023,0021038456/20,21038456, 75.15,Landscape Services Ltd,00057600,,Maintenance of Grounds,Parking Off-Street,E10HAE00620402,
http://statistics.data.gov.uk/id/local-authority/29UP,Tonbridge & Malling Borough Council,3/8/2023,0021038456/21,21038456, 175.47,Landscape Services Ltd,00057600,,Maintenance of Grounds,Parking Off-Street,E10HAE01020402,
http://statistics.data.gov.uk/id/local-authority/29UP,Tonbridge & Malling Borough Council,3/8/2023,0021038456/22,21038456, 3.89,Landscape Services Ltd,00057600,,Maintenance of Grounds,Parking Off-Street,E10HAE01220402,
http://statistics.data.gov.uk/id/local-authority/29UP,Tonbridge & Malling Borough Council,3/8/2023,0021038456/23,21038456, 8.57,Landscape Services Ltd,00057600,,Maintenance of Grounds,Parking Off-Street,E10HAE01320402,
http://statistics.data.gov.uk/id/local-authority/29UP,Tonbridge & Malling Borough Council,3/8/2023,0021038456/24,21038456, 35.70,Landscape Services Ltd,00057600,,Maintenance of Grounds,Parking Off-Street,E10HAE01520402,
http://statistics.data.gov.uk/id/local-authority/29UP,Tonbridge & Malling Borough Council,3/8/2023,0021038456/25,21038456, 69.74,Landscape Services Ltd,00057600,,Maintenance of Grounds,Parking Off-Street,E10HAE01620402,
http://statistics.data.gov.uk/id/local-authority/29UP,Tonbridge & Malling Borough Council,3/8/2023,0021038456/26,21038456, 28.34,Landscape Services Ltd,00057600,,Maintenance of Grounds,Parking Off-Street,E10HAE01720402,
http://statistics.data.gov.uk/id/local-authority/29UP,Tonbridge & Malling Borough Council,3/8/2023,0021038456/27,21038456, 17.41,Landscape Services Ltd,00057600,,Maintenance of Grounds,Parking Off-Street,E10HAE02120402,
http://statistics.data.gov.uk/id/local-authority/29UP,Tonbridge & Malling Borough Council,3/8/2023,0021038456/28,21038456, 27.73,Landscape Services Ltd,00057600,,Maintenance of Grounds,Parking Off-Street,E10HAE02320402,
http://statistics.data.gov.uk/id/local-authority/29UP,Tonbridge & Malling Borough Council,3/8/2023,0021038456/29,21038456, 106.27,Landscape Services Ltd,00057600,,Maintenance of Grounds,Parking Off-Street,E10HAE02820402,
http://statistics.data.gov.uk/id/local-authority/29UP,Tonbridge & Malling Borough Council,3/8/2023,0021038456/3,21038456, 26011.89,Landscape Services Ltd,00057600,,Grounds Maintenance Contract,Sports Grounds,B13ET000050103,
http://statistics.data.gov.uk/id/local-authority/29UP,Tonbridge & Malling Borough Council,3/8/2023,0021038456/30,21038456, 28.78,Landscape Services Ltd,00057600,,Maintenance of Grounds,Parking Off-Street,E10HAE04020402,
http://statistics.data.gov.uk/id/local-authority/29UP,Tonbridge & Malling Borough Council,3/8/2023,0021038456/31,21038456, 94.88,Landscape Services Ltd,00057600,,Maintenance of Grounds,Parking Off-Street,E10HAE04520402,
http://statistics.data.gov.uk/id/local-authority/29UP,Tonbridge & Malling Borough Council,3/8/2023,0021038456/4,21038456, 9027.97,Landscape Services Ltd,00057600,,Grounds Maintenance Contract,Tonbridge Castle Grounds,B22LB000050103,
http://statistics.data.gov.uk/id/local-authority/29UP,Tonbridge & Malling Borough Council,3/8/2023,0021038456/5,21038456, 68.69,Landscape Services Ltd,00057600,,Trade Refuse Charges,Haysden Country Park,B22LC000044008,
http://statistics.data.gov.uk/id/local-authority/29UP,Tonbridge & Malling Borough Council,3/8/2023,0021038456/6,21038456, 589.30,Landscape Services Ltd,00057600,,Litter Collection,Haysden Country Park,B22LC000044061,
http://statistics.data.gov.uk/id/local-authority/29UP,Tonbridge & Malling Borough Council,3/8/2023,0021038456/7,21038456, 2025.64,Landscape Services Ltd,00057600,,Grounds Maintenance Contract,Haysden Country Park,B22LC000050103,
http://statistics.data.gov.uk/id/local-authority/29UP,Tonbridge & Malling Borough Council,3/8/2023,0021038456/8,21038456, 706.61,Landscape Services Ltd,00057600,,Grounds Maintenance Contract,Haysden Country Park,B22LC000050103,
http://statistics.data.gov.uk/id/local-authority/29UP,Tonbridge & Malling Borough Council,3/8/2023,0021038456/9,21038456, 14996.15,Landscape Services Ltd,00057600,,Grounds Maintenance Contract,Open Spaces & Amenity Areas,B22LE000050103,
http://statistics.data.gov.uk/id/local-authority/29UP,Tonbridge & Malling Borough Council,3/8/2023,0021038457/1,21038457, 870.40,Hadlow Parish Council,00041400,,Borough Christmas Lighting,Eco Dev & Reg Boro Chris Light,D52TE000047014,
http://statistics.data.gov.uk/id/local-authority/29UP,Tonbridge & Malling Borough Council,3/8/2023,0022027499/1,22027499, 2350.00,Goldsmid Settled Estates,01885800,,Homelessness Reduction Initiat,Homelessness,C01AANSAP48019,
http://statistics.data.gov.uk/id/local-authority/29UP,Tonbridge & Malling Borough Council,3/8/2023,0022027525/3,22027525, 1320.00,On Site Wheelie Washers,01069700,,Other Expenses,Refuse Collection,H20SA000048010,
http://statistics.data.gov.uk/id/local-authority/29UP,Tonbridge & Malling Borough Council,3/8/2023,0022027526/3,22027526, 1397.00,Specialist Hygiene Services,01466100,,Cleaning & Domestic Supplies,Haysden Country Park,B22LC000026001,
http://statistics.data.gov.uk/id/local-authority/29UP,Tonbridge & Malling Borough Council,3/8/2023,0022027526/4,22027526, 3708.50,Specialist Hygiene Services,01466100,,Contract Payments,Public Conveniences,H22SC000054001,
http://statistics.data.gov.uk/id/local-authority/29UP,Tonbridge & Malling Borough Council,3/8/2023,0022027527/1,22027527, 800.00,Green Recycling LTD,01563000,,Paper Recycling,Dry Recycling,H34SR000054024,
http://statistics.data.gov.uk/id/local-authority/29UP,Tonbridge & Malling Borough Council,3/8/2023,0022027528/1,22027528, 4645.60,Countrystyle Group,00835900,781981681,Plastic Recycling,Dry Recycling,H34SR000054019,
http://statistics.data.gov.uk/id/local-authority/29UP,Tonbridge & Malling Borough Council,3/8/2023,0022027529/1,22027529, 3.00,Tonbridge & Malling Borough Council,00103700,,Other Expenses,Housing Assistance,P03AD000009908,
http://statistics.data.gov.uk/id/local-authority/29UP,Tonbridge & Malling Borough Council,3/8/2023,0022027530/1,22027530, 906.84,Town & Country Housing Group,01385400,,Other Expenses,Disabled Facilities Grant Mand,P03AC000009908,
http://statistics.data.gov.uk/id/local-authority/29UP,Tonbridge & Malling Borough Council,3/8/2023,0022027531/1,22027531, 6255.86,Coldwell & Shawyer Ltd,01740300,,Other Expenses,Disabled Facilities Grant Mand,P03AC000009908,
http://statistics.data.gov.uk/id/local-authority/29UP,Tonbridge & Malling Borough Council,3/8/2023,0022027532/3,22027532, 125.00,Monitor Pest Control Ltd,01476700,,Other Expenses,Pest Control,H24SE000048010,
http://statistics.data.gov.uk/id/local-authority/29UP,Tonbridge & Malling Borough Council,3/8/2023,0022027533/3,22027533, 3141.60,Ward Security LTD,01490000,,Dog Warden,Street Scene,H23SD000044100,
http://statistics.data.gov.uk/id/local-authority/29UP,Tonbridge & Malling Borough Council,3/8/2023,0022027534/3,22027534, 4322.11,Ward Security LTD,01490000,,Dog Warden,Street Scene,H23SD000044100,
http://statistics.data.gov.uk/id/local-authority/29UP,Tonbridge & Malling Borough Council,3/8/2023,0022027536/1,22027536, 450.00,Ascendit Lifts Ltd,00446600,,Other Expenses,Disabled Facilities Grant Mand,P03AC000009908,
http://statistics.data.gov.uk/id/local-authority/29UP,Tonbridge & Malling Borough Council,3/8/2023,0022027537/1,22027537, 2335.50,Melba Products Ltd,00099400,,Purchases,Street Scene,H23SD000040101,220003303
http://statistics.data.gov.uk/id/local-authority/29UP,Tonbridge & Malling Borough Council,3/8/2023,0022027537/2,22027537, 89.10,Melba Products Ltd,00099400,,Purchases,Street Scene,H23SD000040101,220003303
http://statistics.data.gov.uk/id/local-authority/29UP,Tonbridge & Malling Borough Council,3/8/2023,0022027537/3,22027537, 75.00,Melba Products Ltd,00099400,,Purchases,Street Scene,H23SD000040101,220003303
http://statistics.data.gov.uk/id/local-authority/29UP,Tonbridge & Malling Borough Council,3/8/2023,0022027537/4,22027537, 209.00,Melba Products Ltd,00099400,,Purchases,Street Scene,H23SD000040101,220003303
http://statistics.data.gov.uk/id/local-authority/29UP,Tonbridge & Malling Borough Council,3/8/2023,0022027538/1,22027538, 999.00,Mallard Consultancy Ltd,01528600,,Abatement Initiatives,Street Scene,H23SD000044006,220003302
http://statistics.data.gov.uk/id/local-authority/29UP,Tonbridge & Malling Borough Council,3/8/2023,0022027539/3,22027539, 16.00,REDACTED PERSONAL DATA,01773200,,Repairs & Mtce to Buildings,Homelessness,C01AATNHS20101,
http://statistics.data.gov.uk/id/local-authority/29UP,Tonbridge & Malling Borough Council,3/8/2023,0022027540/3,22027540, 735.00,Countrystyle Group,00835900,781981681,Collection of Card,Dry Recycling,H34SR000054008,
http://statistics.data.gov.uk/id/local-authority/29UP,Tonbridge & Malling Borough Council,3/8/2023,0022027541/1,22027541, 7865.75,Premiere Projects,00201200,,Other Expenses,Disabled Facilities Grant Mand,P03AC000009908,
http://statistics.data.gov.uk/id/local-authority/29UP,Tonbridge & Malling Borough Council,3/8/2023,0022027542/1,22027542, 8491.96,Safespaces (Cornholme) LTD,01524300,,Other Expenses,Disabled Facilities Grant Mand,P03AC000009908,
http://statistics.data.gov.uk/id/local-authority/29UP,Tonbridge & Malling Borough Council,3/8/2023,0022027543/1,22027543, 4999.33,Elite Complete Build LTD,01625900,,Other Expenses,Disabled Facilities Grant Mand,P03AC000009908,
http://statistics.data.gov.uk/id/local-authority/29UP,Tonbridge & Malling Borough Council,3/8/2023,0022027544/1,22027544, 3530.81,Town & Country Housing Group,01385400,,Other Expenses,Disabled Facilities Grant Mand,P03AC000009908,
http://statistics.data.gov.uk/id/local-authority/29UP,Tonbridge & Malling Borough Council,3/8/2023,0022027545/1,22027545, 11549.47,Elite Complete Build LTD,01625900,,Other Expenses,Disabled Facilities Grant Mand,P03AC000009908,
http://statistics.data.gov.uk/id/local-authority/29UP,Tonbridge & Malling Borough Council,3/8/2023,0022027546/1,22027546, 123.75,Sevenoaks District Council,00089300,,Healthy Living Initiatives,Public Health - Healthy Living,H40SYVH0048145,220003220
http://statistics.data.gov.uk/id/local-authority/29UP,Tonbridge & Malling Borough Council,3/8/2023,0022027547/1,22027547, 241.92,Town & Country Housing Group,01385400,,Other Expenses,Disabled Facilities Grant Mand,P03AC000009908,
http://statistics.data.gov.uk/id/local-authority/29UP,Tonbridge & Malling Borough Council,3/8/2023,0022027548/1,22027548, 1680.00,Elite Complete Build LTD,01625900,,Other Expenses,Disabled Facilities Grant Mand,P03AC000009908,
http://statistics.data.gov.uk/id/local-authority/29UP,Tonbridge & Malling Borough Council,3/8/2023,0022027549/1,22027549, 1228.50,Access & Automation Ltd,01773400,,Other Expenses,Disabled Facilities Grant Mand,P03AC000009908,
http://statistics.data.gov.uk/id/local-authority/29UP,Tonbridge & Malling Borough Council,3/8/2023,0022027550/1,22027550, 10006.00,CJB Services,01823200,,Other Expenses,Disabled Facilities Grant Mand,P03AC000009908,
http://statistics.data.gov.uk/id/local-authority/29UP,Tonbridge & Malling Borough Council,3/8/2023,0022027551/1,22027551, 858.64,Town & Country Housing Group,01385400,,Other Expenses,Disabled Facilities Grant Mand,P03AC000009908,
http://statistics.data.gov.uk/id/local-authority/29UP,Tonbridge & Malling Borough Council,3/8/2023,0022027552/3,22027552, 42.18,Biffa Waste Services Ltd,01284500,,Trade Refuse Charges,Cleaning & Security,D21FD000044008,
http://statistics.data.gov.uk/id/local-authority/29UP,Tonbridge & Malling Borough Council,3/8/2023,0022027553/1,22027553, 320.00,REDACTED PERSONAL DATA,01890000,,Other Expenses,Disabled Facilities Grant Mand,P03AC000009908,
http://statistics.data.gov.uk/id/local-authority/29UP,Tonbridge & Malling Borough Council,3/8/2023,0022027554/1,22027554, 6634.06,Elite Complete Build LTD,01625900,,Other Expenses,Disabled Facilities Grant Mand,P03AC000009908,
http://statistics.data.gov.uk/id/local-authority/29UP,Tonbridge & Malling Borough Council,3/8/2023,0031019296/1,31019296, 35.00,Securemedia LTD,01724000,,Stationery,Parking Off-Street,E10HA000043003,310042972
http://statistics.data.gov.uk/id/local-authority/29UP,Tonbridge & Malling Borough Council,3/8/2023,0031019296/2,31019296, 799.60,Securemedia LTD,01724000,,Stationery,Parking Off-Street,E10HA000043003,310042972
http://statistics.data.gov.uk/id/local-authority/29UP,Tonbridge & Malling Borough Council,3/8/2023,0031019301/1,31019301, 2790.00,Marston,01485000,,Adjudication & Enforcement Ser,Parking Off-Street,E10HA000044230,
http://statistics.data.gov.uk/id/local-authority/29UP,Tonbridge & Malling Borough Council,3/8/2023,0031019302/1,31019302, 450.00,Wellden Land Surveys,01410600,,Professional Fees,Boro Drainage & Land Drainage,E20MA000044001,310042817
http://statistics.data.gov.uk/id/local-authority/29UP,Tonbridge & Malling Borough Council,3/8/2023,0031019303/3,31019303, 2957.50,Tonbridge & Malling Leisure Trust,01469100,,Ticket Refunds - Lower Castle,Parking Off-Street,E10HAE01344199,
http://statistics.data.gov.uk/id/local-authority/29UP,Tonbridge & Malling Borough Council,3/8/2023,0032010097/3,32010097, 1254.80,Tunbridge Wells Borough Council,00844600,,Temporary Staff,Planning Sals&Overheads,D01AJDJ0111300,
http://statistics.data.gov.uk/id/local-authority/29UP,Tonbridge & Malling Borough Council,3/8/2023,0032010098/3,32010098, 1483.50,Carrington West Limited,01844500,,Temporary Staff,Planning Sals&Overheads,D01AJDJ0111300,
http://statistics.data.gov.uk/id/local-authority/29UP,Tonbridge & Malling Borough Council,3/8/2023,0032010099/3,32010099, 4346.25,Vivid Resourcing,01773700,,Temporary Staff,Planning Sals&Overheads,D01AJDJ0111300,
http://statistics.data.gov.uk/id/local-authority/29UP,Tonbridge & Malling Borough Council,3/8/2023,0032010100/3,32010100, 1652.58,The Oyster Partnership,01196400,,Temporary Staff,Planning Sals&Overheads,D01AJDJ0111300,
http://statistics.data.gov.uk/id/local-authority/29UP,Tonbridge & Malling Borough Council,3/8/2023,0032010101/3,32010101, 1702.00,The Oyster Partnership,01196400,,Temporary Staff,Planning Sals&Overheads,D01AJDJ0111300,
http://statistics.data.gov.uk/id/local-authority/29UP,Tonbridge & Malling Borough Council,3/8/2023,0032010102/3,32010102, 1748.90,The Oyster Partnership,01196400,,Temporary Staff,Planning Sals&Overheads,D01AJDJ0111300,
http://statistics.data.gov.uk/id/local-authority/29UP,Tonbridge & Malling Borough Council,3/8/2023,0032010103/3,32010103, 1609.50,G2 Recruitment Solutions,01786000,,Temporary Staff,Planning Sals&Overheads,D01AJDJ0111300,
http://statistics.data.gov.uk/id/local-authority/29UP,Tonbridge & Malling Borough Council,3/8/2023,0032010104/3,32010104, 2065.00,G2 Recruitment Solutions,01786000,,Temporary Staff,Planning Sals&Overheads,D01AJDJ0111300,
http://statistics.data.gov.uk/id/local-authority/29UP,Tonbridge & Malling Borough Council,3/8/2023,0041035224/2,41035224, 1342.67,Rundle & Co Ltd,00087200,,Bailiffs Commission,Local Revenue & NNDR Collect,D41QA000044075,
http://statistics.data.gov.uk/id/local-authority/29UP,Tonbridge & Malling Borough Council,3/8/2023,0041035226/1,41035226, 5530.00,Reigate & Banstead Borough Council,01888400,,Temporary Staff,Finance Sals&Overheads,D01AFDF0511300,
http://statistics.data.gov.uk/id/local-authority/29UP,Tonbridge & Malling Borough Council,3/8/2023,0041035250/3,41035250, 20.00,Computershare Voucher Services,01212600,,Childcare Scheme,Finance Sals&Overheads,D01AFDF0911136,
http://statistics.data.gov.uk/id/local-authority/29UP,Tonbridge & Malling Borough Council,3/8/2023,0041035250/4,41035250, 1.40,Computershare Voucher Services,01212600,,National Insurance,Finance Sals&Overheads,D01AFDF0911191,
http://statistics.data.gov.uk/id/local-authority/29UP,Tonbridge & Malling Borough Council,3/8/2023,0041035250/5,41035250, 20.00,Computershare Voucher Services,01212600,,Childcare Scheme,Env Hlth & Hsg Sals&Overheads,D01AVDV0211136,
http://statistics.data.gov.uk/id/local-authority/29UP,Tonbridge & Malling Borough Council,3/8/2023,0041035250/6,41035250, 1.40,Computershare Voucher Services,01212600,,National Insurance,Env Hlth & Hsg Sals&Overheads,D01AVDV0211191,
http://statistics.data.gov.uk/id/local-authority/29UP,Tonbridge & Malling Borough Council,3/8/2023,0041035250/7,41035250, 243.00,Computershare Voucher Services,01212600,,Childcare Scheme,Env Hlth & Hsg Sals&Overheads,D01AVDV0711136,
http://statistics.data.gov.uk/id/local-authority/29UP,Tonbridge & Malling Borough Council,3/8/2023,0041035250/8,41035250, 17.01,Computershare Voucher Services,01212600,,National Insurance,Env Hlth & Hsg Sals&Overheads,D01AVDV0711191,
http://statistics.data.gov.uk/id/local-authority/29UP,Tonbridge & Malling Borough Council,3/8/2023,0041035251/1,41035251, 4053.00,Sevenoaks District Council,00089300,,Building Control Partnership,Building Control,A01AD000054023,
http://statistics.data.gov.uk/id/local-authority/29UP,Tonbridge & Malling Borough Council,3/8/2023,0041035251/2,41035251, 22500.00,Sevenoaks District Council,00089300,,Payment re Prev Yrs Cred Acc,Sundry Creditors PHEHS,J80TB000001101,
http://statistics.data.gov.uk/id/local-authority/29UP,Tonbridge & Malling Borough Council,3/8/2023,0041035256/3,41035256, 700000.00,Tonbridge & Malling Leisure Trust,01469100,,Leisure Trust Service Fee,T&M Leisure Trust,B10DA000050101,
http://statistics.data.gov.uk/id/local-authority/29UP,Tonbridge & Malling Borough Council,3/8/2023,0041035258/3,41035258, 53.41,Adelante Software Limited,01393800,812115871,Credit Card Commission,Banking Arrangements,D43QK000044082,
http://statistics.data.gov.uk/id/local-authority/29UP,Tonbridge & Malling Borough Council,3/8/2023,0051008788/1,51008788, 300.00,NEC Software Solutions UK Ltd,01073900,202159745,Ext Fees/Prof & Tech,Training,D10DCDF1113561,510010614
http://statistics.data.gov.uk/id/local-authority/29UP,Tonbridge & Malling Borough Council,3/8/2023,0051008789/1,51008789, 41.67,The Association of Building Engineers,00304300,,Ext Fees/Prof & Tech,Training,D10DCDJ0213561,510010616
http://statistics.data.gov.uk/id/local-authority/29UP,Tonbridge & Malling Borough Council,3/8/2023,0051008791/1,51008791, 1201.75,Redactive Publishing Limited,01791300,,Recruitment Advertising,Recruitment Expenses,D10DADF0213110,510010617
http://statistics.data.gov.uk/id/local-authority/29UP,Tonbridge & Malling Borough Council,3/9/2023,0041035271/1,41035271, 2000.00,St Johns Church - Hildenborough PC,01834400,,Charitable / Voluntary Organis,Grants & Payments to Vol Orgn,D37PACV1947005,
http://statistics.data.gov.uk/id/local-authority/29UP,Tonbridge & Malling Borough Council,3/9/2023,0041035272/1,41035272, 7000.00,Leybourne PC Fundraising,01834600,,Charitable / Voluntary Organis,Grants & Payments to Vol Orgn,D37PACV1947005,
http://statistics.data.gov.uk/id/local-authority/29UP,Tonbridge & Malling Borough Council,3/10/2023,0041035260/13,41035260, 51.65,National Westminster Bank Plc,00894500,,Public Transport,Information Technology,D27KD000033001,
http://statistics.data.gov.uk/id/local-authority/29UP,Tonbridge & Malling Borough Council,3/10/2023,0041035260/14,41035260, 98.05,National Westminster Bank Plc,00894500,,Purchases,Information Technology,D27KD000040101,
http://statistics.data.gov.uk/id/local-authority/29UP,Tonbridge & Malling Borough Council,3/10/2023,0041035260/15,41035260, 20.53,National Westminster Bank Plc,00894500,,Software Hire & Support,Information Technology,D27KD000044059,
http://statistics.data.gov.uk/id/local-authority/29UP,Tonbridge & Malling Borough Council,3/10/2023,0041035260/16,41035260, 1308.95,National Westminster Bank Plc,00894500,,Software Hire & Support,Information Technology,D27KD000044059,
http://statistics.data.gov.uk/id/local-authority/29UP,Tonbridge & Malling Borough Council,3/10/2023,0041035260/17,41035260, 85.58,National Westminster Bank Plc,00894500,,Software Hire & Support,Information Technology,D27KD000044059,
http://statistics.data.gov.uk/id/local-authority/29UP,Tonbridge & Malling Borough Council,3/10/2023,0041035260/18,41035260, 14.45,National Westminster Bank Plc,00894500,,Delivery Expenses,Information Technology,D27KD000044069,
http://statistics.data.gov.uk/id/local-authority/29UP,Tonbridge & Malling Borough Council,3/10/2023,0041035260/19,41035260, 48.62,National Westminster Bank Plc,00894500,,Information & Publicity,Information & Publicity,D32MJ000044076,
http://statistics.data.gov.uk/id/local-authority/29UP,Tonbridge & Malling Borough Council,3/10/2023,0041035260/20,41035260, 9.00,National Westminster Bank Plc,00894500,,Information & Publicity,Information & Publicity,D32MJ000044076,
http://statistics.data.gov.uk/id/local-authority/29UP,Tonbridge & Malling Borough Council,3/10/2023,0041035260/21,41035260, 67.00,National Westminster Bank Plc,00894500,,Vehicle Licences,Parking Off-Street,E10HA000030105,
http://statistics.data.gov.uk/id/local-authority/29UP,Tonbridge & Malling Borough Council,3/10/2023,0041035260/22,41035260, 67.00,National Westminster Bank Plc,00894500,,Vehicle Licences,Parking Off-Street,E10HA000030105,
http://statistics.data.gov.uk/id/local-authority/29UP,Tonbridge & Malling Borough Council,3/10/2023,0041035260/23,41035260, 124.50,National Westminster Bank Plc,00894500,,Purchases,Parking Off-Street,E10HA000040101,
http://statistics.data.gov.uk/id/local-authority/29UP,Tonbridge & Malling Borough Council,3/10/2023,0041035260/24,41035260, 124.50,National Westminster Bank Plc,00894500,,Purchases,Parking Off-Street,E10HA000040101,
http://statistics.data.gov.uk/id/local-authority/29UP,Tonbridge & Malling Borough Council,3/10/2023,0041035260/25,41035260, 124.50,National Westminster Bank Plc,00894500,,Purchases,Parking Off-Street,E10HA000040101,
http://statistics.data.gov.uk/id/local-authority/29UP,Tonbridge & Malling Borough Council,3/10/2023,0041035260/26,41035260, 73.87,National Westminster Bank Plc,00894500,,Purchases,Parking Off-Street,E10HA000040101,
http://statistics.data.gov.uk/id/local-authority/29UP,Tonbridge & Malling Borough Council,3/10/2023,0041035260/27,41035260, 100.50,National Westminster Bank Plc,00894500,,Vehicle Licences,Parking On-Street,E10HD000030105,
http://statistics.data.gov.uk/id/local-authority/29UP,Tonbridge & Malling Borough Council,3/10/2023,0041035260/28,41035260, 100.50,National Westminster Bank Plc,00894500,,Vehicle Licences,Parking On-Street,E10HD000030105,
http://statistics.data.gov.uk/id/local-authority/29UP,Tonbridge & Malling Borough Council,3/10/2023,0041035260/29,41035260, 83.00,National Westminster Bank Plc,00894500,,Purchases,Parking On-Street,E10HD000040101,
http://statistics.data.gov.uk/id/local-authority/29UP,Tonbridge & Malling Borough Council,3/10/2023,0041035260/3,41035260, 34.27,National Westminster Bank Plc,00894500,,Purchases,Haysden Country Park,B22LC000040101,
http://statistics.data.gov.uk/id/local-authority/29UP,Tonbridge & Malling Borough Council,3/10/2023,0041035260/30,41035260, 83.00,National Westminster Bank Plc,00894500,,Purchases,Parking On-Street,E10HD000040101,
http://statistics.data.gov.uk/id/local-authority/29UP,Tonbridge & Malling Borough Council,3/10/2023,0041035260/31,41035260, 83.00,National Westminster Bank Plc,00894500,,Purchases,Parking On-Street,E10HD000040101,
http://statistics.data.gov.uk/id/local-authority/29UP,Tonbridge & Malling Borough Council,3/10/2023,0041035260/32,41035260, 110.80,National Westminster Bank Plc,00894500,,Purchases,Parking On-Street,E10HD000040101,
http://statistics.data.gov.uk/id/local-authority/29UP,Tonbridge & Malling Borough Council,3/10/2023,0041035260/33,41035260, 25.34,National Westminster Bank Plc,00894500,,Sales,TIC Stock Account,K18AX000002002,
http://statistics.data.gov.uk/id/local-authority/29UP,Tonbridge & Malling Borough Council,3/10/2023,0041035260/5,41035260, 243.53,National Westminster Bank Plc,00894500,,Ext Fees/Prof & Tech,Training,D10DCDA1213561,
http://statistics.data.gov.uk/id/local-authority/29UP,Tonbridge & Malling Borough Council,3/13/2023,0032010059/1,32010059, 4500.00,Highgate Planning & Development Ltd,01838600,437493370,Application & Appeals,Development Management,A01AB000044194,320003422
http://statistics.data.gov.uk/id/local-authority/29UP,Tonbridge & Malling Borough Council,3/14/2023,0041035294/1,41035294, 59.95,Allpay Limited,01816500,,Giro / Swipe Card Charges,Local Revenue & NNDR Collect,D41QA000044083,
http://statistics.data.gov.uk/id/local-authority/29UP,Tonbridge & Malling Borough Council,3/15/2023,0011045723/1,11045723, 1217.80,Sellick Partnership Group Limited,01336800,,Temporary Staff,Legal Sals&Overheads,D01ARDR0011300,
http://statistics.data.gov.uk/id/local-authority/29UP,Tonbridge & Malling Borough Council,3/15/2023,0011045775/3,11045775, 166.80,Biffa Waste Services Ltd,01284500,,Trade Refuse Charges,Cleaning & Security,D21FD000044008,
http://statistics.data.gov.uk/id/local-authority/29UP,Tonbridge & Malling Borough Council,3/15/2023,0011045776/3,11045776, 48.72,Biffa Waste Services Ltd,01284500,,Trade Refuse Charges,Cleaning & Security,D21FD000044008,
http://statistics.data.gov.uk/id/local-authority/29UP,Tonbridge & Malling Borough Council,3/15/2023,0011045777/3,11045777, 48.72,Biffa Waste Services Ltd,01284500,,Trade Refuse Charges,Cleaning & Security,D21FD000044008,
http://statistics.data.gov.uk/id/local-authority/29UP,Tonbridge & Malling Borough Council,3/15/2023,0011045778/3,11045778, 193.27,Biffa Waste Services Ltd,01284500,,Trade Refuse Charges,Cleaning & Security,D21FD000044008,
http://statistics.data.gov.uk/id/local-authority/29UP,Tonbridge & Malling Borough Council,3/15/2023,0011045779/3,11045779, 85.20,Biffa Waste Services Ltd,01284500,,Trade Refuse Charges,Cleaning & Security,D21FD000044008,
http://statistics.data.gov.uk/id/local-authority/29UP,Tonbridge & Malling Borough Council,3/15/2023,0011045780/3,11045780, 298.69,Biffa Waste Services Ltd,01284500,,Trade Refuse Charges,Cleaning & Security,D21FD000044008,
http://statistics.data.gov.uk/id/local-authority/29UP,Tonbridge & Malling Borough Council,3/15/2023,0011045781/3,11045781, 1561.36,The Oyster Partnership,01196400,,Temporary Staff,Admin & Prop Sals&Overheads,D01AADA1111300,
http://statistics.data.gov.uk/id/local-authority/29UP,Tonbridge & Malling Borough Council,3/15/2023,0011045782/1,11045782, 250.00,REDACTED PERSONAL DATA,01497600,,Economic Development & Regen,Eco Dev & Reg Gen Bus Support,D52TD000047027,
http://statistics.data.gov.uk/id/local-authority/29UP,Tonbridge & Malling Borough Council,3/15/2023,0011045783/1,11045783, 912.00,Disclosure & Barring Service,00865900,,Professional Fees,Licences - Fee Paying,H27SH000044001,
http://statistics.data.gov.uk/id/local-authority/29UP,Tonbridge & Malling Borough Council,3/15/2023,0011045785/3,11045785, 1217.80,Sellick Partnership Group Limited,01336800,,Temporary Staff,Legal Sals&Overheads,D01ARDR0011300,
http://statistics.data.gov.uk/id/local-authority/29UP,Tonbridge & Malling Borough Council,3/15/2023,0011045786/3,11045786, 1028.83,Venn Group Ltd,00914300,,Temporary Staff,Legal Sals&Overheads,D01ARDR0011300,
http://statistics.data.gov.uk/id/local-authority/29UP,Tonbridge & Malling Borough Council,3/15/2023,0011045787/3,11045787, 2302.00,Thomson Snell & Passmore,00101700,,Legal Fees,Legal Sals&Overheads,D01ARDR0044002,
http://statistics.data.gov.uk/id/local-authority/29UP,Tonbridge & Malling Borough Council,3/15/2023,0011045788/3,11045788, 1079.20,TMS Protection Ltd,01744300,,Office Security,Ton Castle Council Chamber,D21FC000044047,
http://statistics.data.gov.uk/id/local-authority/29UP,Tonbridge & Malling Borough Council,3/15/2023,0011045788/4,11045788, 2812.00,TMS Protection Ltd,01744300,,Office Security,Tonbridge Gateway,D23TG000044047,
http://statistics.data.gov.uk/id/local-authority/29UP,Tonbridge & Malling Borough Council,3/15/2023,0011045790/3,11045790, 1862.67,GSF SANDYLIGHT LTD,01705300,,Temporary Staff,Admin & Prop Sals&Overheads,D01AADA0511300,
http://statistics.data.gov.uk/id/local-authority/29UP,Tonbridge & Malling Borough Council,3/15/2023,0011045791/3,11045791, 218.00,BML Building Services Ltd,01505000,,BRREP Response - General,PC - General,M15JAP50001997,
http://statistics.data.gov.uk/id/local-authority/29UP,Tonbridge & Malling Borough Council,3/15/2023,0011045792/1,11045792, 2212.50,BML Building Services Ltd,01505000,,BRREP Response - General,Shops & Maisonettes,M15NAP50001997,110070099
http://statistics.data.gov.uk/id/local-authority/29UP,Tonbridge & Malling Borough Council,3/15/2023,0011045793/1,11045793, 300.00,Willow Pumps Ltd,00114100,,BRREP Servicing - Pumping Stn,Ton Sportsgrnd Bldgs / Toilets,M15HCP20001931,110069721
http://statistics.data.gov.uk/id/local-authority/29UP,Tonbridge & Malling Borough Council,3/15/2023,0011045794/1,11045794, 1510.00,Safesite Limited,01029900,574362624,BRREP Servicing - safety line,Tonbridge Castle Gatehouse,M15HKP20001965,110069616
http://statistics.data.gov.uk/id/local-authority/29UP,Tonbridge & Malling Borough Council,3/15/2023,0011045795/1,11045795, 800.00,Broadwater Technologies,01534500,,BRREP Servicing - pool plant,Larkfield Leisure Centre,M15HDP20001910,110069588
http://statistics.data.gov.uk/id/local-authority/29UP,Tonbridge & Malling Borough Council,3/15/2023,0011045796/1,11045796, 559.58,Glaze-Tech Services Ltd,00779500,,BRREP Resp - Vandal / Break-In,Tonbridge Farm Pavillion,M15HGP50001998,110069927
http://statistics.data.gov.uk/id/local-authority/29UP,Tonbridge & Malling Borough Council,3/15/2023,0011045799/1,11045799, 6278.00,H20 Servicing Limited,00888800,808041553,BRREP General Maintenance,Tonbridge Swimming Pool,M15HBP10001900,110070029
http://statistics.data.gov.uk/id/local-authority/29UP,Tonbridge & Malling Borough Council,3/15/2023,0011045800/1,11045800, 289.00,NKM Fire Protection Ltd,01784600,,BRREP Servicing - FireAlarmSys,Tonbridge Swimming Pool,M15HBP20001937,110070087
http://statistics.data.gov.uk/id/local-authority/29UP,Tonbridge & Malling Borough Council,3/15/2023,0011045801/1,11045801, 943.00,Marlow Fire & Security (BBC)  Ltd,00008800,342427963,BRREP Servicing - Gas Ext Syst,Gibson Building West,M15KBP20001979,110070038
http://statistics.data.gov.uk/id/local-authority/29UP,Tonbridge & Malling Borough Council,3/15/2023,0011045802/1,11045802, 110.00,Triple S Lift Services,01344900,,BRREP Servicing - lifts,Angel Centre,M15HAP20001930,110069754
http://statistics.data.gov.uk/id/local-authority/29UP,Tonbridge & Malling Borough Council,3/15/2023,0011045803/1,11045803, 235.00,Automated Limited,00007000,,BRREP Plant renewals,Tonbridge Swimming Pool,M15HBP20001909,110070091
http://statistics.data.gov.uk/id/local-authority/29UP,Tonbridge & Malling Borough Council,3/15/2023,0011045804/1,11045804, 3193.00,H20 Servicing Limited,00888800,808041553,BRREP Reline/refill filters,Tonbridge Swimming Pool,M15HBP20001907,110070031
http://statistics.data.gov.uk/id/local-authority/29UP,Tonbridge & Malling Borough Council,3/15/2023,0011045805/1,11045805, 395.10,Broadwater Technologies,01534500,,BRREP Plant renewals,Larkfield Leisure Centre,M15HDP20001909,110070085
http://statistics.data.gov.uk/id/local-authority/29UP,Tonbridge & Malling Borough Council,3/15/2023,0011045806/1,11045806, 1089.00,Learnd UK,01226700,,BRREP BMS System Mntce/Upgrade,Larkfield Leisure Centre,M15HDP20001912,110069931
http://statistics.data.gov.uk/id/local-authority/29UP,Tonbridge & Malling Borough Council,3/15/2023,0011045807/1,11045807, 800.00,Loxton Installations Ltd,01278800,,BRREP Response - General,Shops & Maisonettes,M15NAP50001997,110070073
http://statistics.data.gov.uk/id/local-authority/29UP,Tonbridge & Malling Borough Council,3/15/2023,0011045808/1,11045808, 1463.00,H20 Servicing Limited,00888800,808041553,BRREP Pool tile repairs,Larkfield Leisure Centre,M15HDP20001906,110070095
http://statistics.data.gov.uk/id/local-authority/29UP,Tonbridge & Malling Borough Council,3/15/2023,0011045809/1,11045809, 1000.00,Quality Fire Safety Management Ltd (QFSM,01851800,,Other Expenses,Homeless Accommodation,P03AX000009908,110070033
http://statistics.data.gov.uk/id/local-authority/29UP,Tonbridge & Malling Borough Council,3/15/2023,0011045810/3,11045810, 2190.00,Betteridge & Milsom Ltd.,01441000,,Professional Fees,Land Review,D40PSTON144001,
http://statistics.data.gov.uk/id/local-authority/29UP,Tonbridge & Malling Borough Council,3/15/2023,0011045811/3,11045811, 280.00,G C Industrial Heating Services,00578100,,BRREP Response - General,Tonbridge Farm Pavillion,M15HGP50001997,
http://statistics.data.gov.uk/id/local-authority/29UP,Tonbridge & Malling Borough Council,3/15/2023,0011045812/3,11045812, 3.50,Royal Mail,00086200,,Purchases,Mailsort Stock Account,K37BR000001002,
http://statistics.data.gov.uk/id/local-authority/29UP,Tonbridge & Malling Borough Council,3/15/2023,0011045812/4,11045812, 4.48,Royal Mail,00086200,,Purchases,Mailsort Stock Account,K37BR000001002,
http://statistics.data.gov.uk/id/local-authority/29UP,Tonbridge & Malling Borough Council,3/15/2023,0011045812/5,11045812, 1390.48,Royal Mail,00086200,,Purchases,Mailsort Stock Account,K37BR000001002,
http://statistics.data.gov.uk/id/local-authority/29UP,Tonbridge & Malling Borough Council,3/15/2023,0011045813/3,11045813, 82.94,Royal Mail,00086200,,Postages - Business Reply,Electoral Registration,D31MF000045003,
http://statistics.data.gov.uk/id/local-authority/29UP,Tonbridge & Malling Borough Council,3/15/2023,0011045813/4,11045813, 14.50,Royal Mail,00086200,,Purchases,Business Reply Stock Account,K14AT000001002,
http://statistics.data.gov.uk/id/local-authority/29UP,Tonbridge & Malling Borough Council,3/15/2023,0011045814/3,11045814, 175.00,PV Environmental Surveys,00987200,,BRREP Asbestos monitoring,Leis Man Poult Wood Golf Centr,M15HEP30001993,
http://statistics.data.gov.uk/id/local-authority/29UP,Tonbridge & Malling Borough Council,3/15/2023,0011045815/3,11045815, 1875.00,HazleMcCormack Young LLP,01793100,,Professional Fees,Land Review,D40PSTON144001,
http://statistics.data.gov.uk/id/local-authority/29UP,Tonbridge & Malling Borough Council,3/15/2023,0011045816/1,11045816, 346.00,Tonbridge & Malling Leisure Trust,01469100,,Economic Development & Regen,Eco Dev & Reg Gen Bus Support,D52TD000047027,
http://statistics.data.gov.uk/id/local-authority/29UP,Tonbridge & Malling Borough Council,3/15/2023,0011045817/1,11045817, 1900.00,REDACTED PERSONAL DATA,01890300,,Other Expenses,Ukrainian Refugee Assistance,D54UA000048010,
http://statistics.data.gov.uk/id/local-authority/29UP,Tonbridge & Malling Borough Council,3/15/2023,0011045818/1,11045818, 602.11,Castle Water,01696500,,Water Charges (Metered),Buildings,D21FEDD1024001,
http://statistics.data.gov.uk/id/local-authority/29UP,Tonbridge & Malling Borough Council,3/15/2023,0011045819/3,11045819, 1561.36,The Oyster Partnership,01196400,,Temporary Staff,Admin & Prop Sals&Overheads,D01AADA1111300,
http://statistics.data.gov.uk/id/local-authority/29UP,Tonbridge & Malling Borough Council,3/15/2023,0011045820/3,11045820, 1499.84,Castle Water,01696500,,Estate Management Charge,Land Review,D40PS000020400,
http://statistics.data.gov.uk/id/local-authority/29UP,Tonbridge & Malling Borough Council,3/15/2023,0011045820/5,11045820, 0.64,Castle Water,01696500,,Estate Management Charge,Land Review,D40PS000020400,
http://statistics.data.gov.uk/id/local-authority/29UP,Tonbridge & Malling Borough Council,3/15/2023,0011045821/3,11045821, 215.52,Initial Washroom Hygiene,00048300,,Laundry - Roller Towels,Cleaning & Security,D21FD000042003,
http://statistics.data.gov.uk/id/local-authority/29UP,Tonbridge & Malling Borough Council,3/15/2023,0012008659/10,12008659, 9.00,O2 UK Ltd,01268000,,Mobile Telephones,Admin & Prop Sals&Overheads,D01AADA1245013,
http://statistics.data.gov.uk/id/local-authority/29UP,Tonbridge & Malling Borough Council,3/15/2023,0012008659/11,12008659, 3.00,O2 UK Ltd,01268000,,Mobile Telephones,Chief Exec Sals&Overheads,D01ACDC0045013,
http://statistics.data.gov.uk/id/local-authority/29UP,Tonbridge & Malling Borough Council,3/15/2023,0012008659/12,12008659, 3.00,O2 UK Ltd,01268000,,Mobile Telephones,Chief Exec Sals&Overheads,D01ACDC0145013,
http://statistics.data.gov.uk/id/local-authority/29UP,Tonbridge & Malling Borough Council,3/15/2023,0012008659/13,12008659, 3.00,O2 UK Ltd,01268000,,Mobile Telephones,Chief Exec Sals&Overheads,D01ACDC0245013,
http://statistics.data.gov.uk/id/local-authority/29UP,Tonbridge & Malling Borough Council,3/15/2023,0012008659/14,12008659, 3.00,O2 UK Ltd,01268000,,Mobile Telephones,Technical Sals&Overheads,D01AEDE0045013,
http://statistics.data.gov.uk/id/local-authority/29UP,Tonbridge & Malling Borough Council,3/15/2023,0012008659/15,12008659, 6.00,O2 UK Ltd,01268000,,Mobile Telephones,Technical Sals&Overheads,D01AEDE0145013,
http://statistics.data.gov.uk/id/local-authority/29UP,Tonbridge & Malling Borough Council,3/15/2023,0012008659/16,12008659, 9.50,O2 UK Ltd,01268000,,Mobile Telephones,Technical Sals&Overheads,D01AEDE0245013,
http://statistics.data.gov.uk/id/local-authority/29UP,Tonbridge & Malling Borough Council,3/15/2023,0012008659/17,12008659, 42.10,O2 UK Ltd,01268000,,Mobile Telephones,Technical Sals&Overheads,D01AEDE0445013,
http://statistics.data.gov.uk/id/local-authority/29UP,Tonbridge & Malling Borough Council,3/15/2023,0012008659/18,12008659, 3.00,O2 UK Ltd,01268000,,Mobile Telephones,Technical Sals&Overheads,D01AEDE0545013,
http://statistics.data.gov.uk/id/local-authority/29UP,Tonbridge & Malling Borough Council,3/15/2023,0012008659/19,12008659, 12.00,O2 UK Ltd,01268000,,Mobile Telephones,Finance Sals&Overheads,D01AFDF0045013,
http://statistics.data.gov.uk/id/local-authority/29UP,Tonbridge & Malling Borough Council,3/15/2023,0012008659/20,12008659, 6.00,O2 UK Ltd,01268000,,Mobile Telephones,Finance Sals&Overheads,D01AFDF0945013,
http://statistics.data.gov.uk/id/local-authority/29UP,Tonbridge & Malling Borough Council,3/15/2023,0012008659/21,12008659, 12.00,O2 UK Ltd,01268000,,Mobile Telephones,St Scene & Leis Sals&Overheads,D01AGDG0045013,
http://statistics.data.gov.uk/id/local-authority/29UP,Tonbridge & Malling Borough Council,3/15/2023,0012008659/22,12008659, 12.00,O2 UK Ltd,01268000,,Mobile Telephones,St Scene & Leis Sals&Overheads,D01AGDG0145013,
http://statistics.data.gov.uk/id/local-authority/29UP,Tonbridge & Malling Borough Council,3/15/2023,0012008659/23,12008659, 9.40,O2 UK Ltd,01268000,,Mobile Telephones,St Scene & Leis Sals&Overheads,D01AGDG0445013,
http://statistics.data.gov.uk/id/local-authority/29UP,Tonbridge & Malling Borough Council,3/15/2023,0012008659/24,12008659, 36.00,O2 UK Ltd,01268000,,Mobile Telephones,St Scene & Leis Sals&Overheads,D01AGDG2045013,
http://statistics.data.gov.uk/id/local-authority/29UP,Tonbridge & Malling Borough Council,3/15/2023,0012008659/25,12008659, 9.00,O2 UK Ltd,01268000,,Mobile Telephones,Planning Sals&Overheads,D01AJDJ0045013,
http://statistics.data.gov.uk/id/local-authority/29UP,Tonbridge & Malling Borough Council,3/15/2023,0012008659/26,12008659, 12.00,O2 UK Ltd,01268000,,Mobile Telephones,Planning Sals&Overheads,D01AJDJ0245013,
http://statistics.data.gov.uk/id/local-authority/29UP,Tonbridge & Malling Borough Council,3/15/2023,0012008659/27,12008659, 6.00,O2 UK Ltd,01268000,,Mobile Telephones,Legal Sals&Overheads,D01ARDR0045013,
http://statistics.data.gov.uk/id/local-authority/29UP,Tonbridge & Malling Borough Council,3/15/2023,0012008659/28,12008659, 12.00,O2 UK Ltd,01268000,,Mobile Telephones,Legal Sals&Overheads,D01ARDR0445013,
http://statistics.data.gov.uk/id/local-authority/29UP,Tonbridge & Malling Borough Council,3/15/2023,0012008659/29,12008659, 3.00,O2 UK Ltd,01268000,,Mobile Telephones,Legal Sals&Overheads,D01ARDR0745013,
http://statistics.data.gov.uk/id/local-authority/29UP,Tonbridge & Malling Borough Council,3/15/2023,0012008659/30,12008659, 3.00,O2 UK Ltd,01268000,,Mobile Telephones,Env Hlth & Hsg Sals&Overheads,D01AVDV0045013,
http://statistics.data.gov.uk/id/local-authority/29UP,Tonbridge & Malling Borough Council,3/15/2023,0012008659/31,12008659, 9.00,O2 UK Ltd,01268000,,Mobile Telephones,Env Hlth & Hsg Sals&Overheads,D01AVDV0145013,
http://statistics.data.gov.uk/id/local-authority/29UP,Tonbridge & Malling Borough Council,3/15/2023,0012008659/32,12008659, 6.00,O2 UK Ltd,01268000,,Mobile Telephones,Env Hlth & Hsg Sals&Overheads,D01AVDV0345013,
http://statistics.data.gov.uk/id/local-authority/29UP,Tonbridge & Malling Borough Council,3/15/2023,0012008659/33,12008659, 3.00,O2 UK Ltd,01268000,,Mobile Telephones,Env Hlth & Hsg Sals&Overheads,D01AVDV0745013,
http://statistics.data.gov.uk/id/local-authority/29UP,Tonbridge & Malling Borough Council,3/15/2023,0012008659/34,12008659, 6.00,O2 UK Ltd,01268000,,Mobile Telephones,Env Hlth & Hsg Sals&Overheads,D01AVDV0945013,
http://statistics.data.gov.uk/id/local-authority/29UP,Tonbridge & Malling Borough Council,3/15/2023,0012008659/35,12008659, 9.40,O2 UK Ltd,01268000,,Mobile Telephones,Customer Services,D23CS000045013,
http://statistics.data.gov.uk/id/local-authority/29UP,Tonbridge & Malling Borough Council,3/15/2023,0012008659/36,12008659, 3.00,O2 UK Ltd,01268000,,Mobile Telephones,Tonbridge Gateway,D23TG000045013,
http://statistics.data.gov.uk/id/local-authority/29UP,Tonbridge & Malling Borough Council,3/15/2023,0012008659/37,12008659, 627.00,O2 UK Ltd,01268000,,Leased Lines & Modems,Information Technology,D27KD000045011,
http://statistics.data.gov.uk/id/local-authority/29UP,Tonbridge & Malling Borough Council,3/15/2023,0012008659/38,12008659, 3.00,O2 UK Ltd,01268000,,Mobile Telephones,Mayoral & Other Member Support,D29LX000045013,
http://statistics.data.gov.uk/id/local-authority/29UP,Tonbridge & Malling Borough Council,3/15/2023,0012008659/39,12008659, 3.00,O2 UK Ltd,01268000,,Emergency Out of Hours Recharg,Refuse Collection,H20SA000045030,
http://statistics.data.gov.uk/id/local-authority/29UP,Tonbridge & Malling Borough Council,3/15/2023,0012008659/40,12008659, 3.00,O2 UK Ltd,01268000,,Emergency Out of Hours Recharg,Street Scene,H23SD000045030,
http://statistics.data.gov.uk/id/local-authority/29UP,Tonbridge & Malling Borough Council,3/15/2023,0012008659/7,12008659, 3.00,O2 UK Ltd,01268000,,Telephones - General,Open Spaces & Amenity Areas,B22LE000045010,
http://statistics.data.gov.uk/id/local-authority/29UP,Tonbridge & Malling Borough Council,3/15/2023,0012008659/8,12008659, 3.00,O2 UK Ltd,01268000,,Mobile Telephones,Admin & Prop Sals&Overheads,D01AADA0045013,
http://statistics.data.gov.uk/id/local-authority/29UP,Tonbridge & Malling Borough Council,3/15/2023,0012008659/9,12008659, 3.00,O2 UK Ltd,01268000,,Mobile Telephones,Admin & Prop Sals&Overheads,D01AADA1045013,
http://statistics.data.gov.uk/id/local-authority/29UP,Tonbridge & Malling Borough Council,3/15/2023,0012008660/1,12008660, 326.64,Imperial Civil Enforcement Solutions,00057200,,Software Hire & Support,Information Technology,D27KD000044059,
http://statistics.data.gov.uk/id/local-authority/29UP,Tonbridge & Malling Borough Council,3/15/2023,0012008661/1,12008661, 2642.50,Greenhalgh Kerr,01590200,,Bailiffs Commission,Local Revenue & NNDR Collect,D41QA000044075,
http://statistics.data.gov.uk/id/local-authority/29UP,Tonbridge & Malling Borough Council,3/15/2023,0021038458/3,21038458, 76.60,Castle Water,01696500,,Water Charges (Metered),Cemetery,B26MP000024001,
http://statistics.data.gov.uk/id/local-authority/29UP,Tonbridge & Malling Borough Council,3/15/2023,0021038460/1,21038460, 550.00,Arnold Tarmac Ltd,01685100,619126544,Maintenance of Grounds,Tonbridge Castle Grounds,B22LB000020402,210057130
http://statistics.data.gov.uk/id/local-authority/29UP,Tonbridge & Malling Borough Council,3/15/2023,0021038461/1,21038461, 460.06,Arnold Tarmac Ltd,01685100,619126544,Maintenance of Grounds,Tonbridge Castle Grounds,B22LB000020402,210057143
http://statistics.data.gov.uk/id/local-authority/29UP,Tonbridge & Malling Borough Council,3/15/2023,0021038462/1,21038462, 550.00,Arnold Tarmac Ltd,01685100,619126544,Maintenance of Grounds,Tonbridge Castle Grounds,B22LB000020402,210056985
http://statistics.data.gov.uk/id/local-authority/29UP,Tonbridge & Malling Borough Council,3/15/2023,0021038463/1,21038463, 550.00,Arnold Tarmac Ltd,01685100,619126544,Maintenance of Grounds,Sports Grounds,B13ET000020402,210057047
http://statistics.data.gov.uk/id/local-authority/29UP,Tonbridge & Malling Borough Council,3/15/2023,0021038464/1,21038464, 550.00,Arnold Tarmac Ltd,01685100,619126544,Maintenance of Grounds,Tonbridge Castle Grounds,B22LB000020402,210057128
http://statistics.data.gov.uk/id/local-authority/29UP,Tonbridge & Malling Borough Council,3/15/2023,0021038465/1,21038465, 6184.67,Accessible Solutions LTD,01539700,,Other Expenses,Disabled Facilities Grant Mand,P03AC000009908,
http://statistics.data.gov.uk/id/local-authority/29UP,Tonbridge & Malling Borough Council,3/15/2023,0021038466/1,21038466, 2230.45,Daytrad,01425400,,Other Expenses,Disabled Facilities Grant Mand,P03AC000009908,
http://statistics.data.gov.uk/id/local-authority/29UP,Tonbridge & Malling Borough Council,3/15/2023,0021038467/1,21038467, 321.18,Town & Country Housing Group,01385400,,Other Expenses,Disabled Facilities Grant Mand,P03AC000009908,
http://statistics.data.gov.uk/id/local-authority/29UP,Tonbridge & Malling Borough Council,3/15/2023,0021038468/1,21038468, 2410.00,Acorn Maintenance Services,01036000,,Other Expenses,Disabled Facilities Grant Mand,P03AC000009908,
http://statistics.data.gov.uk/id/local-authority/29UP,Tonbridge & Malling Borough Council,3/15/2023,0022027555/1,22027555, 3500.00,Smart Property Professionals,01815100,,Temporary Accommodation,Homelessness,C01AA000044051,
http://statistics.data.gov.uk/id/local-authority/29UP,Tonbridge & Malling Borough Council,3/15/2023,0022027556/3,22027556, 1540.00,Simon Niblett Lettings,00072600,,Temporary Accommodation,Homelessness,C01AA000044051,
http://statistics.data.gov.uk/id/local-authority/29UP,Tonbridge & Malling Borough Council,3/15/2023,0022027557/3,22027557, 9018.00,Simon Niblett Lettings,00072600,,Temporary Accommodation,Homelessness,C01AA000044051,
http://statistics.data.gov.uk/id/local-authority/29UP,Tonbridge & Malling Borough Council,3/15/2023,0022027558/1,22027558, 20449.00,Paramount Independent Property Suppliers,01595300,,Temporary Accommodation,Homelessness,C01AA000044051,
http://statistics.data.gov.uk/id/local-authority/29UP,Tonbridge & Malling Borough Council,3/15/2023,0022027559/1,22027559, 13.09,Maidstone Borough Council,01173700,,Council Tax,Homelessness,C01AA000023002,
http://statistics.data.gov.uk/id/local-authority/29UP,Tonbridge & Malling Borough Council,3/15/2023,0022027560/1,22027560, 749.99,Town & Country Housing Group,01385400,,Other Expenses,Disabled Facilities Grant Mand,P03AC000009908,
http://statistics.data.gov.uk/id/local-authority/29UP,Tonbridge & Malling Borough Council,3/15/2023,0022027561/1,22027561, 5208.28,Lifestyle (KENT) LTD,01348800,,Other Expenses,Disabled Facilities Grant Mand,P03AC000009908,
http://statistics.data.gov.uk/id/local-authority/29UP,Tonbridge & Malling Borough Council,3/15/2023,0022027562/1,22027562, 7936.00,Less Homeless Ltd,01489300,,Temporary Accommodation,Homelessness,C01AA000044051,
http://statistics.data.gov.uk/id/local-authority/29UP,Tonbridge & Malling Borough Council,3/15/2023,0022027563/1,22027563, 1708.00,Kent Housing,01503200,,Temporary Accommodation,Homelessness,C01AA000044051,
http://statistics.data.gov.uk/id/local-authority/29UP,Tonbridge & Malling Borough Council,3/15/2023,0022027564/1,22027564, 4732.00,House to Home Lettings Ltd ,01647600,,Temporary Accommodation,Homelessness,C01AA000044051,
http://statistics.data.gov.uk/id/local-authority/29UP,Tonbridge & Malling Borough Council,3/15/2023,0022027565/3,22027565, 59.87,EDF Energy Customers plc,01035000,,Electricity,Homelessness,C01AATNHS21002,
http://statistics.data.gov.uk/id/local-authority/29UP,Tonbridge & Malling Borough Council,3/15/2023,0022027566/1,22027566, 921.38,British Gas Services LTD,01260000,,Electricity,Homelessness,C01AA000021002,
http://statistics.data.gov.uk/id/local-authority/29UP,Tonbridge & Malling Borough Council,3/15/2023,0022027567/3,22027567, 582.75,Castle Water,01696500,,Water Charges (Metered),Public Conveniences,H22SCH00924001,
http://statistics.data.gov.uk/id/local-authority/29UP,Tonbridge & Malling Borough Council,3/15/2023,0022027568/3,22027568, 2380.90,Castle Water,01696500,,Water Charges (Metered),Public Conveniences,H22SCH01024001,
http://statistics.data.gov.uk/id/local-authority/29UP,Tonbridge & Malling Borough Council,3/15/2023,0031019288/1,31019288, 1175.50,Archway Highway Services Ltd,01398000,,Premises Repairs & Maintenance,Parking On-Street,E10HD000020601,310042938
http://statistics.data.gov.uk/id/local-authority/29UP,Tonbridge & Malling Borough Council,3/15/2023,0031019309/1,31019309, 35.18,KelticLimited,01000400,,Uniforms,Parking Off-Street,E10HA000042002,310042947
http://statistics.data.gov.uk/id/local-authority/29UP,Tonbridge & Malling Borough Council,3/15/2023,0031019309/2,31019309, 9.95,KelticLimited,01000400,,Uniforms,Parking Off-Street,E10HA000042002,310042947
http://statistics.data.gov.uk/id/local-authority/29UP,Tonbridge & Malling Borough Council,3/15/2023,0031019309/3,31019309, 52.77,KelticLimited,01000400,,Uniforms,Parking On-Street,E10HD000042002,310042947
http://statistics.data.gov.uk/id/local-authority/29UP,Tonbridge & Malling Borough Council,3/15/2023,0031019310/1,31019310, 28.78,KelticLimited,01000400,,Uniforms,Parking Off-Street,E10HA000042002,310042985
http://statistics.data.gov.uk/id/local-authority/29UP,Tonbridge & Malling Borough Council,3/15/2023,0031019310/10,31019310, 43.17,KelticLimited,01000400,,Uniforms,Parking On-Street,E10HD000042002,310042985
http://statistics.data.gov.uk/id/local-authority/29UP,Tonbridge & Malling Borough Council,3/15/2023,0031019310/2,31019310, 3.98,KelticLimited,01000400,,Uniforms,Parking Off-Street,E10HA000042002,310042985
http://statistics.data.gov.uk/id/local-authority/29UP,Tonbridge & Malling Borough Council,3/15/2023,0031019310/3,31019310, 17.90,KelticLimited,01000400,,Uniforms,Parking Off-Street,E10HA000042002,310042985
http://statistics.data.gov.uk/id/local-authority/29UP,Tonbridge & Malling Borough Council,3/15/2023,0031019310/4,31019310, 9.90,KelticLimited,01000400,,Uniforms,Parking Off-Street,E10HA000042002,310042985
http://statistics.data.gov.uk/id/local-authority/29UP,Tonbridge & Malling Borough Council,3/15/2023,0031019310/5,31019310, 19.18,KelticLimited,01000400,,Uniforms,Parking Off-Street,E10HA000042002,310042985
http://statistics.data.gov.uk/id/local-authority/29UP,Tonbridge & Malling Borough Council,3/15/2023,0031019310/6,31019310, 14.85,KelticLimited,01000400,,Uniforms,Parking On-Street,E10HD000042002,310042985
http://statistics.data.gov.uk/id/local-authority/29UP,Tonbridge & Malling Borough Council,3/15/2023,0031019310/7,31019310, 5.97,KelticLimited,01000400,,Uniforms,Parking On-Street,E10HD000042002,310042985
http://statistics.data.gov.uk/id/local-authority/29UP,Tonbridge & Malling Borough Council,3/15/2023,0031019310/8,31019310, 28.77,KelticLimited,01000400,,Uniforms,Parking On-Street,E10HD000042002,310042985
http://statistics.data.gov.uk/id/local-authority/29UP,Tonbridge & Malling Borough Council,3/15/2023,0031019310/9,31019310, 26.85,KelticLimited,01000400,,Uniforms,Parking On-Street,E10HD000042002,310042985
http://statistics.data.gov.uk/id/local-authority/29UP,Tonbridge & Malling Borough Council,3/15/2023,0032010106/1,32010106, 9093.00,Kent County Council,00322500,,Development of Local Plan,Development of Local Plan,A01AE000044023,320003430
http://statistics.data.gov.uk/id/local-authority/29UP,Tonbridge & Malling Borough Council,3/15/2023,0032010107/1,32010107, 2108.00,JBA Consulting,01599000,665300941,Development of Local Plan,Development of Local Plan,A01AE000044023,320003466
http://statistics.data.gov.uk/id/local-authority/29UP,Tonbridge & Malling Borough Council,3/15/2023,0032010108/3,32010108, 171.36,KM Media Group Ltd,00053900,,Advertising General,Development Management,A01ABZ99944216,
http://statistics.data.gov.uk/id/local-authority/29UP,Tonbridge & Malling Borough Council,3/15/2023,0032010109/3,32010109, 1938.00,Vivid Resourcing,01773700,,Temporary Staff,Planning Sals&Overheads,D01AJDJ0111300,
http://statistics.data.gov.uk/id/local-authority/29UP,Tonbridge & Malling Borough Council,3/15/2023,0032010110/3,32010110, 1612.50,Carrington West Limited,01844500,,Temporary Staff,Planning Sals&Overheads,D01AJDJ0111300,
http://statistics.data.gov.uk/id/local-authority/29UP,Tonbridge & Malling Borough Council,3/15/2023,0032010112/3,32010112, 1740.00,G2 Recruitment Solutions,01786000,,Temporary Staff,Planning Sals&Overheads,D01AJDJ0111300,
http://statistics.data.gov.uk/id/local-authority/29UP,Tonbridge & Malling Borough Council,3/15/2023,0032010113/3,32010113, 3080.00,G2 Recruitment Solutions,01786000,,Temporary Staff,Planning Sals&Overheads,D01AJDJ0111300,
http://statistics.data.gov.uk/id/local-authority/29UP,Tonbridge & Malling Borough Council,3/15/2023,0032010114/3,32010114, 1659.33,The Oyster Partnership,01196400,,Temporary Staff,Planning Sals&Overheads,D01AJDJ0111300,
http://statistics.data.gov.uk/id/local-authority/29UP,Tonbridge & Malling Borough Council,3/15/2023,0032010115/3,32010115, 1763.18,The Oyster Partnership,01196400,,Temporary Staff,Planning Sals&Overheads,D01AJDJ0111300,
http://statistics.data.gov.uk/id/local-authority/29UP,Tonbridge & Malling Borough Council,3/15/2023,0032010116/3,32010116, 1747.10,The Oyster Partnership,01196400,,Temporary Staff,Planning Sals&Overheads,D01AJDJ0111300,
http://statistics.data.gov.uk/id/local-authority/29UP,Tonbridge & Malling Borough Council,3/15/2023,0041035264/3,41035264, 480.07,Morgan Hunt UK Ltd,01086900,,Temporary Staff,Finance Sals&Overheads,D01AFDF1111300,
http://statistics.data.gov.uk/id/local-authority/29UP,Tonbridge & Malling Borough Council,3/15/2023,0041035265/1,41035265, 80.00,WorldPay Ltd,01402000,991280207,Credit Card Commission,Banking Arrangements,D43QK000044082,
http://statistics.data.gov.uk/id/local-authority/29UP,Tonbridge & Malling Borough Council,3/15/2023,0041035265/2,41035265, 75.28,WorldPay Ltd,01402000,991280207,Credit Card Commission,Banking Arrangements,D43QK000044082,
http://statistics.data.gov.uk/id/local-authority/29UP,Tonbridge & Malling Borough Council,3/15/2023,0041035265/3,41035265, 0.64,WorldPay Ltd,01402000,991280207,Credit Card Commission,Banking Arrangements,D43QK000044082,
http://statistics.data.gov.uk/id/local-authority/29UP,Tonbridge & Malling Borough Council,3/15/2023,0041035266/1,41035266, 80.00,WorldPay Ltd,01402000,991280207,Credit Card Commission,Banking Arrangements,D43QK000044082,
http://statistics.data.gov.uk/id/local-authority/29UP,Tonbridge & Malling Borough Council,3/15/2023,0041035266/2,41035266, 196.72,WorldPay Ltd,01402000,991280207,Credit Card Commission,Banking Arrangements,D43QK000044082,
http://statistics.data.gov.uk/id/local-authority/29UP,Tonbridge & Malling Borough Council,3/15/2023,0041035266/3,41035266, 1.52,WorldPay Ltd,01402000,991280207,Credit Card Commission,Banking Arrangements,D43QK000044082,
http://statistics.data.gov.uk/id/local-authority/29UP,Tonbridge & Malling Borough Council,3/15/2023,0041035267/1,41035267, 80.00,WorldPay Ltd,01402000,991280207,Credit Card Commission,Banking Arrangements,D43QK000044082,
http://statistics.data.gov.uk/id/local-authority/29UP,Tonbridge & Malling Borough Council,3/15/2023,0041035267/2,41035267, 125.52,WorldPay Ltd,01402000,991280207,Credit Card Commission,Banking Arrangements,D43QK000044082,
http://statistics.data.gov.uk/id/local-authority/29UP,Tonbridge & Malling Borough Council,3/15/2023,0041035267/3,41035267, 0.08,WorldPay Ltd,01402000,991280207,Credit Card Commission,Banking Arrangements,D43QK000044082,
http://statistics.data.gov.uk/id/local-authority/29UP,Tonbridge & Malling Borough Council,3/15/2023,0041035268/1,41035268, 950.00,NEC Software Solutions UK Ltd,01073900,202159745,Other Expenses,Housing Benefits,C05CL000048010,410032359
http://statistics.data.gov.uk/id/local-authority/29UP,Tonbridge & Malling Borough Council,3/15/2023,0041035269/1,41035269, 75.00,Rundle & Co Ltd,00087200,,Bailiffs Commission,Local Revenue & NNDR Collect,D41QA000044075,
http://statistics.data.gov.uk/id/local-authority/29UP,Tonbridge & Malling Borough Council,3/15/2023,0041035274/3,41035274, 633.13,Morgan Hunt UK Ltd,01086900,,Temporary Staff,Finance Sals&Overheads,D01AFDF1111300,
http://statistics.data.gov.uk/id/local-authority/29UP,Tonbridge & Malling Borough Council,3/15/2023,0041035275/1,41035275, 450.00,Airey Consultancy Services Ltd,01760800,,Contract Services,Finance Sals&Overheads,D01AF000044005,
http://statistics.data.gov.uk/id/local-authority/29UP,Tonbridge & Malling Borough Council,3/15/2023,0041035275/2,41035275, 450.00,Airey Consultancy Services Ltd,01760800,,Contract Services,Finance Sals&Overheads,D01AF000044005,
http://statistics.data.gov.uk/id/local-authority/29UP,Tonbridge & Malling Borough Council,3/15/2023,0041035281/1,41035281, 167.56,Maidstone Borough Council,01173700,,Bailiffs Commission,Local Revenue & NNDR Collect,D41QA000044075,
http://statistics.data.gov.uk/id/local-authority/29UP,Tonbridge & Malling Borough Council,3/15/2023,0041035282/1,41035282, 3918.72,Maidstone Borough Council,01173700,,Bailiffs Commission,Local Revenue & NNDR Collect,D41QA000044075,
http://statistics.data.gov.uk/id/local-authority/29UP,Tonbridge & Malling Borough Council,3/15/2023,0041035283/1,41035283, 7913.50,Rundle & Co Ltd,00087200,,Bailiffs Commission,Local Revenue & NNDR Collect,D41QA000044075,
http://statistics.data.gov.uk/id/local-authority/29UP,Tonbridge & Malling Borough Council,3/15/2023,0041035284/1,41035284, 1459.31,Rundle & Co Ltd,00087200,,Bailiffs Commission,Local Revenue & NNDR Collect,D41QA000044075,
http://statistics.data.gov.uk/id/local-authority/29UP,Tonbridge & Malling Borough Council,3/15/2023,0041035291/1,41035291, 1642.75,Rundle & Co Ltd,00087200,,Bailiffs Commission,Local Revenue & NNDR Collect,D41QA000044075,
http://statistics.data.gov.uk/id/local-authority/29UP,Tonbridge & Malling Borough Council,3/15/2023,0041035295/1,41035295, 2000.00,Church of the Good Shepherd,01369900,,Charitable / Voluntary Organis,Grants & Payments to Vol Orgn,D37PACV1947005,
http://statistics.data.gov.uk/id/local-authority/29UP,Tonbridge & Malling Borough Council,3/16/2023,0041035298/1,41035298, 211.70,National Westminster Bank Plc,00069400,,Bank Charges,Banking Arrangements,D43QK000044222,
http://statistics.data.gov.uk/id/local-authority/29UP,Tonbridge & Malling Borough Council,3/22/2023,0011045784/3,11045784, 748.00,Thomson Snell & Passmore,00101700,,Legal Fees,Legal Sals&Overheads,D01ARDR0044002,
http://statistics.data.gov.uk/id/local-authority/29UP,Tonbridge & Malling Borough Council,3/22/2023,0011045823/3,11045823, 63.14,KCS - KCC,00054200,,Estate Management Charge,Land Review,D40PS000020400,
http://statistics.data.gov.uk/id/local-authority/29UP,Tonbridge & Malling Borough Council,3/22/2023,0011045824/3,11045824, 111.73,KCS - KCC,00054200,,Estate Management Charge,Land Review,D40PS000020400,
http://statistics.data.gov.uk/id/local-authority/29UP,Tonbridge & Malling Borough Council,3/22/2023,0011045825/3,11045825, 187.52,KCS - KCC,00054200,,Estate Management Charge,Land Review,D40PS000020400,
http://statistics.data.gov.uk/id/local-authority/29UP,Tonbridge & Malling Borough Council,3/22/2023,0011045826/3,11045826, 50.47,KCS - KCC,00054200,,Estate Management Charge,Land Review,D40PS000020400,
http://statistics.data.gov.uk/id/local-authority/29UP,Tonbridge & Malling Borough Council,3/22/2023,0011045827/3,11045827, 12.90,Royal Mail,00086200,,Postages - Business Reply,Electoral Registration,D31MF000045003,
http://statistics.data.gov.uk/id/local-authority/29UP,Tonbridge & Malling Borough Council,3/22/2023,0011045829/3,11045829, 589.41,KH Recruitment Ltd,01738900,,Temporary Staff,Personnel Sals&Overheads,D01ABDB0311300,
http://statistics.data.gov.uk/id/local-authority/29UP,Tonbridge & Malling Borough Council,3/22/2023,0011045831/1,11045831, 462.00,BML Building Services Ltd,01505000,,BRREP Response - General,Tonbridge Castle / CAB,M15KFP50001997,110070045
http://statistics.data.gov.uk/id/local-authority/29UP,Tonbridge & Malling Borough Council,3/22/2023,0011045833/1,11045833, 739.00,Colt International Ltd,01231300,,BRREP Servicing-roller shutter,Angel Centre,M15HAP20001928,110069713
http://statistics.data.gov.uk/id/local-authority/29UP,Tonbridge & Malling Borough Council,3/22/2023,0011045834/1,11045834, 624.00,BML Building Services Ltd,01505000,,BRREP Response - General,Shops & Maisonettes,M15NAP50001997,110070097
http://statistics.data.gov.uk/id/local-authority/29UP,Tonbridge & Malling Borough Council,3/22/2023,0011045835/1,11045835, 300.00,Willow Pumps Ltd,00114100,,BRREP Servicing - Pumping Stn,Vale Rise Depot,M15LCP20001931,110069721
http://statistics.data.gov.uk/id/local-authority/29UP,Tonbridge & Malling Borough Council,3/22/2023,0011045836/3,11045836, 185.00,GreenFish Consulting part of JCML Consul,01627700,,BRREP Energy Efficiency Regs,Shops & Maisonettes,M15NAP30001976,
http://statistics.data.gov.uk/id/local-authority/29UP,Tonbridge & Malling Borough Council,3/22/2023,0011045837/3,11045837, 1217.80,Sellick Partnership Group Limited,01336800,,Temporary Staff,Legal Sals&Overheads,D01ARDR0011300,
http://statistics.data.gov.uk/id/local-authority/29UP,Tonbridge & Malling Borough Council,3/22/2023,0011045838/1,11045838, 794.31,Kohler Mira Limited,00902600,779588443,BRREP Servicing - pool plant,Tonbridge Swimming Pool,M15HBP20001910,110069846
http://statistics.data.gov.uk/id/local-authority/29UP,Tonbridge & Malling Borough Council,3/22/2023,0011045839/1,11045839, 183.00,Chillmech Limited,00978700,,BRREP Servicing-Air Condition,Leis Man Poult Wood Golf Centr,M15HEP20001935,110069500
http://statistics.data.gov.uk/id/local-authority/29UP,Tonbridge & Malling Borough Council,3/22/2023,0011045840/1,11045840, 78.50,Triple S Lift Services,01344900,,BRREP Servicing - lifts,Gibson Building East,M15KGP20001930,110069752
http://statistics.data.gov.uk/id/local-authority/29UP,Tonbridge & Malling Borough Council,3/22/2023,0011045841/1,11045841, 79.00,BML Building Services Ltd,01505000,,BRREP Response - General,Larkfield Leisure Centre,M15HDP50001997,110070094
http://statistics.data.gov.uk/id/local-authority/29UP,Tonbridge & Malling Borough Council,3/22/2023,0011045842/1,11045842, 208.00,Southern Lightning Engineers Ltd,00094000,,BRREP Servicing-Lightning Prot,Tonbridge Castle Gatehouse,M15HKP20001942,110069166
http://statistics.data.gov.uk/id/local-authority/29UP,Tonbridge & Malling Borough Council,3/22/2023,0011045843/1,11045843, 2535.38,Envirocure Limited,00963300,,BRREP General Maintenance,Larkfield Leisure Centre,M15HDP30001900,110069756
http://statistics.data.gov.uk/id/local-authority/29UP,Tonbridge & Malling Borough Council,3/22/2023,0011045844/3,11045844, 120.10,KCS - KCC,00054200,,Estate Management Charge,Land Review,D40PS000020400,
http://statistics.data.gov.uk/id/local-authority/29UP,Tonbridge & Malling Borough Council,3/22/2023,0011045845/3,11045845, 2367.49,KCS - KCC,00054200,,Gas,Buildings,D21FEDD6021003,
http://statistics.data.gov.uk/id/local-authority/29UP,Tonbridge & Malling Borough Council,3/22/2023,0011045846/3,11045846, 4714.62,KCS - KCC,00054200,,Gas,Buildings,D21FEDD1021003,
http://statistics.data.gov.uk/id/local-authority/29UP,Tonbridge & Malling Borough Council,3/22/2023,0011045847/3,11045847, 1568.15,Royal Mail,00086200,,Purchases,Mailsort Stock Account,K37BR000001002,
http://statistics.data.gov.uk/id/local-authority/29UP,Tonbridge & Malling Borough Council,3/22/2023,0011045847/4,11045847, 13.52,Royal Mail,00086200,,Purchases,Mailsort Stock Account,K37BR000001002,
http://statistics.data.gov.uk/id/local-authority/29UP,Tonbridge & Malling Borough Council,3/22/2023,0011045848/3,11045848, 62.05,Royal Mail,00086200,,Postages - Business Reply,Electoral Registration,D31MF000045003,
http://statistics.data.gov.uk/id/local-authority/29UP,Tonbridge & Malling Borough Council,3/22/2023,0011045848/4,11045848, 11.61,Royal Mail,00086200,,Postages - Business Reply,Electoral Registration,D31MF000045003,
http://statistics.data.gov.uk/id/local-authority/29UP,Tonbridge & Malling Borough Council,3/22/2023,0011045854/3,11045854, 7837.96,KCS - KCC,00054200,,Electricity,Buildings,D21FEDD1021002,
http://statistics.data.gov.uk/id/local-authority/29UP,Tonbridge & Malling Borough Council,3/22/2023,0011045855/3,11045855, 6181.96,KCS - KCC,00054200,,Electricity,Buildings,D21FEDD5021002,
http://statistics.data.gov.uk/id/local-authority/29UP,Tonbridge & Malling Borough Council,3/22/2023,0011045856/3,11045856, 4273.52,KCS - KCC,00054200,,Electricity,Buildings,D21FEDD6021002,
http://statistics.data.gov.uk/id/local-authority/29UP,Tonbridge & Malling Borough Council,3/22/2023,0011045857/1,11045857, 225.00,Lemon Drainage Services LTD,01761600,,BRREP Servicing - Pumping Stn,Pleasure Grounds & Open Spaces,M15HHP20001931,110069460
http://statistics.data.gov.uk/id/local-authority/29UP,Tonbridge & Malling Borough Council,3/22/2023,0011045858/1,11045858, 298.00,Castle Water,01696500,,Water Charges (Metered),Buildings,D21FEDD5024001,
http://statistics.data.gov.uk/id/local-authority/29UP,Tonbridge & Malling Borough Council,3/22/2023,0012008662/1,12008662, 89.95,CCS Media Ltd,00018000,,Purchases,Information Technology,D27KD000040101,410032324
http://statistics.data.gov.uk/id/local-authority/29UP,Tonbridge & Malling Borough Council,3/22/2023,0012008662/2,12008662, 17.45,CCS Media Ltd,00018000,,Purchases,Information Technology,D27KD000040101,410032324
http://statistics.data.gov.uk/id/local-authority/29UP,Tonbridge & Malling Borough Council,3/22/2023,0012008662/3,12008662, 5.00,CCS Media Ltd,00018000,,Delivery Expenses,Information Technology,D27KD000044069,410032324
http://statistics.data.gov.uk/id/local-authority/29UP,Tonbridge & Malling Borough Council,3/22/2023,0012008663/1,12008663, 174.95,CCS Media Ltd,00018000,,Purchases,Information Technology,D27KD000040101,410032365
http://statistics.data.gov.uk/id/local-authority/29UP,Tonbridge & Malling Borough Council,3/22/2023,0012008663/2,12008663, 2.00,CCS Media Ltd,00018000,,Delivery Expenses,Information Technology,D27KD000044069,410032365
http://statistics.data.gov.uk/id/local-authority/29UP,Tonbridge & Malling Borough Council,3/22/2023,0012008664/1,12008664, 37.14,Phoenix Software Ltd,00077400,755349015,Software Hire & Support,Information Technology,D27KD000044059,410032355
http://statistics.data.gov.uk/id/local-authority/29UP,Tonbridge & Malling Borough Council,3/22/2023,0012008664/2,12008664, 10.00,Phoenix Software Ltd,00077400,755349015,Delivery Expenses,Information Technology,D27KD000044069,410032355
http://statistics.data.gov.uk/id/local-authority/29UP,Tonbridge & Malling Borough Council,3/22/2023,0012008665/1,12008665, 5000.00,Tunbridge Wells Borough Council,00844600,,Subscriptions,Information Technology,D27KD000047002,410032366
http://statistics.data.gov.uk/id/local-authority/29UP,Tonbridge & Malling Borough Council,3/22/2023,0012008666/3,12008666, 27552.00,NTT United Kingdom Ltd,01747000,,Software Hire & Support,Information Technology,D27KD000044059,
http://statistics.data.gov.uk/id/local-authority/29UP,Tonbridge & Malling Borough Council,3/22/2023,0012008667/3,12008667, 18003.57,Phoenix Software Ltd,00077400,755349015,Software Hire & Support,Information Technology,D27KD000044059,
http://statistics.data.gov.uk/id/local-authority/29UP,Tonbridge & Malling Borough Council,3/22/2023,0021038469/3,21038469, 660.00,SWS Countryside & Landscape,01567200,,Health & Safety - Trees,Countryside/Woodland Mgt,B22LG000044045,
http://statistics.data.gov.uk/id/local-authority/29UP,Tonbridge & Malling Borough Council,3/22/2023,0021038470/1,21038470, 685.66,Atlas Facilities Managment Limited ,01075900,,Gates / Security,Patrolling,B22LF000044017,210056716
http://statistics.data.gov.uk/id/local-authority/29UP,Tonbridge & Malling Borough Council,3/22/2023,0021038471/3,21038471, 799.70,Discount Displays,01068700,,Economic Development & Regen,Eco Dev & Reg Gen Bus Support,D52TD000047027,
http://statistics.data.gov.uk/id/local-authority/29UP,Tonbridge & Malling Borough Council,3/22/2023,0021038472/1,21038472, 69.00,Monitor Pest Control Ltd,01476700,,Rodent Control,Open Spaces & Amenity Areas,B22LE000044053,210056767
http://statistics.data.gov.uk/id/local-authority/29UP,Tonbridge & Malling Borough Council,3/22/2023,0021038473/1,21038473, 195.00,Monitor Pest Control Ltd,01476700,,Rodent Control,Open Spaces & Amenity Areas,B22LE000044053,210056721
http://statistics.data.gov.uk/id/local-authority/29UP,Tonbridge & Malling Borough Council,3/22/2023,0021038474/1,21038474, 340.00,David Hodgkinson Photographer,01068900,,Marketing,Events Development,B41TJZ99944215,210057154
http://statistics.data.gov.uk/id/local-authority/29UP,Tonbridge & Malling Borough Council,3/22/2023,0021038476/1,21038476, 3521.00,JJ Martin (Catering Appliance Superstore,01884700,179505141,Initial Furniture & Equipment,Capital Renewals Leisure,P05KGBC0309906,210057114
http://statistics.data.gov.uk/id/local-authority/29UP,Tonbridge & Malling Borough Council,3/22/2023,0021038477/1,21038477, 803.00,Woolmer Sports,01875600,,Initial Furniture & Equipment,Capital Renewals Leisure,P05KGBC0209906,210057071
http://statistics.data.gov.uk/id/local-authority/29UP,Tonbridge & Malling Borough Council,3/22/2023,0021038478/1,21038478, 600.00,West Kent Big Band,01848100,,Events Support,Events Development,B41TJ000044041,210057149
http://statistics.data.gov.uk/id/local-authority/29UP,Tonbridge & Malling Borough Council,3/22/2023,0022027569/1,22027569, 675.00,PSR Lighting & Signs Ltd,01265400,,Air Quality Monitoring,Environmental Protection,H32SN000054016,220003216
http://statistics.data.gov.uk/id/local-authority/29UP,Tonbridge & Malling Borough Council,3/22/2023,0022027570/3,22027570, 245.00,Countrystyle Group,00835900,781981681,Collection of Card,Dry Recycling,H34SR000054008,
http://statistics.data.gov.uk/id/local-authority/29UP,Tonbridge & Malling Borough Council,3/22/2023,0022027571/1,22027571, 5784.00,Under My Roof Ltd,01806700,,Temporary Accommodation,Homelessness,C01AA000044051,
http://statistics.data.gov.uk/id/local-authority/29UP,Tonbridge & Malling Borough Council,3/22/2023,0022027572/1,22027572, 4141.44,Clarion Housing,01776300,,Temporary Accommodation,Homelessness,C01AA000044051,
http://statistics.data.gov.uk/id/local-authority/29UP,Tonbridge & Malling Borough Council,3/22/2023,0022027573/3,22027573, 59.90,British Telecommunications Plc,00012800,,Purchases,Homelessness,C01AATNPR40101,
http://statistics.data.gov.uk/id/local-authority/29UP,Tonbridge & Malling Borough Council,3/22/2023,0022027574/3,22027574, 32.06,Bulb Energy Ltd,01799000,214948301,Electricity,Homelessness,C01AATNPR21002,
http://statistics.data.gov.uk/id/local-authority/29UP,Tonbridge & Malling Borough Council,3/22/2023,0022027575/3,22027575, 821.66,British Gas Services LTD,01260000,,Electricity,Homelessness,C01AAMAUN21002,
http://statistics.data.gov.uk/id/local-authority/29UP,Tonbridge & Malling Borough Council,3/22/2023,0022027576/3,22027576, 396.43,British Gas Services LTD,01260000,,Electricity,Homelessness,C01AAMAUN21002,
http://statistics.data.gov.uk/id/local-authority/29UP,Tonbridge & Malling Borough Council,3/22/2023,0022027577/3,22027577, 981.00,British Gas Services LTD,01260000,,Electricity,Homelessness,C01AAMAUN21002,
http://statistics.data.gov.uk/id/local-authority/29UP,Tonbridge & Malling Borough Council,3/22/2023,0022027578/3,22027578, 99.04,British Gas,01148500,,Electricity,Homelessness,C01AAMAUN21002,
http://statistics.data.gov.uk/id/local-authority/29UP,Tonbridge & Malling Borough Council,3/22/2023,0022027579/1,22027579, 2016.00,1st  Steps Housing Kent,01716100,,Temporary Accommodation,Homelessness,C01AA000044051,
http://statistics.data.gov.uk/id/local-authority/29UP,Tonbridge & Malling Borough Council,3/22/2023,0022027580/1,22027580, 2011.20,The Care Group-Housing & Care Trust,01699600,,Temporary Accommodation,Homelessness,C01AA000044051,
http://statistics.data.gov.uk/id/local-authority/29UP,Tonbridge & Malling Borough Council,3/22/2023,0022027581/1,22027581, 23160.00,Social & Community Care,01768400,,Temporary Accommodation,Homelessness,C01AA000044051,
http://statistics.data.gov.uk/id/local-authority/29UP,Tonbridge & Malling Borough Council,3/22/2023,0022027582/3,22027582, 638.38,E.ON - Next,01790900,,Electricity,Homelessness,C01AATNPR21002,
http://statistics.data.gov.uk/id/local-authority/29UP,Tonbridge & Malling Borough Council,3/22/2023,0022027584/1,22027584, 4606.00,Kent Accommodation Ltd,01722000,,Temporary Accommodation,Homelessness,C01AA000044051,
http://statistics.data.gov.uk/id/local-authority/29UP,Tonbridge & Malling Borough Council,3/22/2023,0022027585/3,22027585, 8893.00,SPA CAFFE LIMITED,00127100,,Temporary Accommodation,Homelessness,C01AA000044051,
http://statistics.data.gov.uk/id/local-authority/29UP,Tonbridge & Malling Borough Council,3/22/2023,0022027587/1,22027587, 5110.00,Premier Property Providers,01785400,,Temporary Accommodation,Homelessness,C01AA000044051,
http://statistics.data.gov.uk/id/local-authority/29UP,Tonbridge & Malling Borough Council,3/22/2023,0022027591/3,22027591, 480.00,Britains Limited,01743900,,Repairs & Mtce to Buildings,Homelessness,C01AATNHS20101,
http://statistics.data.gov.uk/id/local-authority/29UP,Tonbridge & Malling Borough Council,3/22/2023,0022027592/1,22027592, 125.84,Enviro Technology Services PLC,01461300,,Air Quality Monitoring,Environmental Protection,H32SN000054016,220003308
http://statistics.data.gov.uk/id/local-authority/29UP,Tonbridge & Malling Borough Council,3/22/2023,0022027593/1,22027593, 125.84,Enviro Technology Services PLC,01461300,,Air Quality Monitoring,Environmental Protection,H32SN000054016,220003173
http://statistics.data.gov.uk/id/local-authority/29UP,Tonbridge & Malling Borough Council,3/22/2023,0022027594/1,22027594, 11.99,KCS - KCC,00054200,,Stationery,Env Hlth & Hsg Sals&Overheads,D01AVDV0643003,220003313
http://statistics.data.gov.uk/id/local-authority/29UP,Tonbridge & Malling Borough Council,3/22/2023,0022027594/2,22027594, 2.92,KCS - KCC,00054200,,Stationery,Env Hlth & Hsg Sals&Overheads,D01AVDV0643003,220003313
http://statistics.data.gov.uk/id/local-authority/29UP,Tonbridge & Malling Borough Council,3/22/2023,0022027595/3,22027595, 1097.10,Lucy and Martin Recycling LTD,01694200,,Vehicle Licences,Dry Recycling,H34SR000030105,
http://statistics.data.gov.uk/id/local-authority/29UP,Tonbridge & Malling Borough Council,3/22/2023,0022027596/3,22027596, 360.00,On Site Wheelie Washers,01069700,,Other Expenses,Refuse Collection,H20SA000048010,
http://statistics.data.gov.uk/id/local-authority/29UP,Tonbridge & Malling Borough Council,3/22/2023,0022027597/1,22027597, 806.00,Ricardo- AEA- Ltd,00445700,,Professional Membership,Env Hlth & Hsg Sals&Overheads,D01AVDV0347001,220003318
http://statistics.data.gov.uk/id/local-authority/29UP,Tonbridge & Malling Borough Council,3/22/2023,0031019313/1,31019313, 297.50,SKF Contractors Ltd,00092000,,Repair & Mtce of Fixed Plant,Boro Highways & Emergency Oper,E01AA000020501,310042989
http://statistics.data.gov.uk/id/local-authority/29UP,Tonbridge & Malling Borough Council,3/22/2023,0031019314/1,31019314, 500.00,Traffic Enforcement Centre,00604200,,Adjudication & Enforcement Ser,Parking Off-Street,E10HA000044230,
http://statistics.data.gov.uk/id/local-authority/29UP,Tonbridge & Malling Borough Council,3/22/2023,0031019314/2,31019314, 500.00,Traffic Enforcement Centre,00604200,,Adjudication & Enforcement Ser,Parking On-Street,E10HD000044230,
http://statistics.data.gov.uk/id/local-authority/29UP,Tonbridge & Malling Borough Council,3/22/2023,0031019315/3,31019315, 1813.70,CDER Group,01773300,,Adjudication & Enforcement Ser,Parking Off-Street,E10HA000044230,
http://statistics.data.gov.uk/id/local-authority/29UP,Tonbridge & Malling Borough Council,3/22/2023,0031019316/1,31019316, 144.00,Citiguard Security (UK) Ltd,01872100,200436269,Professional Fees,Parking Off-Street,E10HA000044001,310042927
http://statistics.data.gov.uk/id/local-authority/29UP,Tonbridge & Malling Borough Council,3/22/2023,0031019317/3,31019317, 52.78,Npower Ltd,01675800,,Electricity,Parking Off-Street,E10HA000021002,
http://statistics.data.gov.uk/id/local-authority/29UP,Tonbridge & Malling Borough Council,3/22/2023,0031019318/3,31019318, 101.17,Npower Ltd,01675800,,Electricity,Parking Off-Street,E10HA000021002,
http://statistics.data.gov.uk/id/local-authority/29UP,Tonbridge & Malling Borough Council,3/22/2023,0031019319/3,31019319, 239.91,Npower Ltd,01675800,,Electricity,Parking Off-Street,E10HA000021002,
http://statistics.data.gov.uk/id/local-authority/29UP,Tonbridge & Malling Borough Council,3/22/2023,0031019320/1,31019320, 900.25,G & G Signs,01178400,,Purchases,Boro Highways & Emergency Oper,E01AA000040101,310042991
http://statistics.data.gov.uk/id/local-authority/29UP,Tonbridge & Malling Borough Council,3/22/2023,0031019320/2,31019320, 60.00,G & G Signs,01178400,,Purchases,Boro Highways & Emergency Oper,E01AA000040101,310042991
http://statistics.data.gov.uk/id/local-authority/29UP,Tonbridge & Malling Borough Council,3/22/2023,0031019324/1,31019324, 395.00,Lemon Drainage Services LTD,01761600,,Sewerage Charges,Haysden Country Park,B22LC000024003,310042997
http://statistics.data.gov.uk/id/local-authority/29UP,Tonbridge & Malling Borough Council,3/22/2023,0031019325/1,31019325, 670.00,DSSL Group Ltd,01839500,,CCTV Monitoring Station,Security Services Management,E09GA000051020,310042949
http://statistics.data.gov.uk/id/local-authority/29UP,Tonbridge & Malling Borough Council,3/22/2023,0032010119/1,32010119, 3720.00,Hadlow Parish Council,00041400,,Payments,S106 - Commuted Sums,M04AD000001001,
http://statistics.data.gov.uk/id/local-authority/29UP,Tonbridge & Malling Borough Council,3/22/2023,0032010120/1,32010120, 290.00,Mr John & Mrs Linda Court,01891100,,Application & Appeals,Development Management,A01AB000044194,
http://statistics.data.gov.uk/id/local-authority/29UP,Tonbridge & Malling Borough Council,3/22/2023,0032010121/3,32010121, 1612.50,Carrington West Limited,01844500,,Temporary Staff,Planning Sals&Overheads,D01AJDJ0111300,
http://statistics.data.gov.uk/id/local-authority/29UP,Tonbridge & Malling Borough Council,3/22/2023,0032010122/3,32010122, 1740.00,G2 Recruitment Solutions,01786000,,Temporary Staff,Planning Sals&Overheads,D01AJDJ0111300,
http://statistics.data.gov.uk/id/local-authority/29UP,Tonbridge & Malling Borough Council,3/22/2023,0032010123/1,32010123, 4280.06,Land Use Consulting Ltd,01838700,,Development of Local Plan,Development of Local Plan,A01AE000044023,320003397
http://statistics.data.gov.uk/id/local-authority/29UP,Tonbridge & Malling Borough Council,3/22/2023,0032010124/1,32010124, 5682.00,Land Use Consulting Ltd,01838700,,Development of Local Plan,Development of Local Plan,A01AE000044023,320003397
http://statistics.data.gov.uk/id/local-authority/29UP,Tonbridge & Malling Borough Council,3/22/2023,0032010125/3,32010125, 1739.00,The Oyster Partnership,01196400,,Temporary Staff,Planning Sals&Overheads,D01AJDJ0111300,
http://statistics.data.gov.uk/id/local-authority/29UP,Tonbridge & Malling Borough Council,3/22/2023,0032010126/3,32010126, 1659.68,The Oyster Partnership,01196400,,Temporary Staff,Planning Sals&Overheads,D01AJDJ0111300,
http://statistics.data.gov.uk/id/local-authority/29UP,Tonbridge & Malling Borough Council,3/22/2023,0032010127/3,32010127, 1652.58,The Oyster Partnership,01196400,,Temporary Staff,Planning Sals&Overheads,D01AJDJ0111300,
http://statistics.data.gov.uk/id/local-authority/29UP,Tonbridge & Malling Borough Council,3/22/2023,0032010128/3,32010128, 940.50,Vivid Resourcing,01773700,,Temporary Staff,Planning Sals&Overheads,D01AJDJ0111300,
http://statistics.data.gov.uk/id/local-authority/29UP,Tonbridge & Malling Borough Council,3/22/2023,0041035305/3,41035305, 46280.00,Kent County Council,00322500,,Temporary Staff,Finance Sals&Overheads,D01AFDF0611300,
http://statistics.data.gov.uk/id/local-authority/29UP,Tonbridge & Malling Borough Council,3/22/2023,0041035310/3,41035310, 556.60,Morgan Hunt UK Ltd,01086900,,Temporary Staff,Finance Sals&Overheads,D01AFDF1111300,
http://statistics.data.gov.uk/id/local-authority/29UP,Tonbridge & Malling Borough Council,3/22/2023,0041035312/1,41035312, 19.98,Amazon EU SARL,01738400,,Purchases,Finance Sals&Overheads,D01AFDF1140101,410032364
http://statistics.data.gov.uk/id/local-authority/29UP,Tonbridge & Malling Borough Council,3/22/2023,0041035316/1,41035316, 2367.00,H.M. Revenue & Customs,00048400,,Levy Payment,Apprenticeship Scheme,D10DE000013700,
http://statistics.data.gov.uk/id/local-authority/29UP,Tonbridge & Malling Borough Council,3/22/2023,0051008794/1,51008794, 948.00,Government Events,01890400,,Ext Fees/Prof & Tech,Training,D10DCDA1213561,510010622
http://statistics.data.gov.uk/id/local-authority/29UP,Tonbridge & Malling Borough Council,3/23/2023,0041035322/1,41035322, 20.11,WorldPay Ltd,01402000,991280207,Credit Card Commission,Banking Arrangements,D43QK000044082,
http://statistics.data.gov.uk/id/local-authority/29UP,Tonbridge & Malling Borough Council,3/23/2023,0041035323/1,41035323, 68.00,National Westminster Bank Plc,00069400,,Bank Charges,Banking Arrangements,D43QK000044222,
http://statistics.data.gov.uk/id/local-authority/29UP,Tonbridge & Malling Borough Council,3/23/2023,0041035325/1,41035325, 143.04,WorldPay ,01568000,,Credit Card Commission,Banking Arrangements,D43QK000044082,
http://statistics.data.gov.uk/id/local-authority/29UP,Tonbridge & Malling Borough Council,3/23/2023,0041035326/1,41035326, 325.06,WorldPay ,01568000,,Credit Card Commission,Banking Arrangements,D43QK000044082,
http://statistics.data.gov.uk/id/local-authority/29UP,Tonbridge & Malling Borough Council,3/23/2023,0041035327/1,41035327, 1858.27,WorldPay ,01568000,,Credit Card Commission,Banking Arrangements,D43QK000044082,
http://statistics.data.gov.uk/id/local-authority/29UP,Tonbridge & Malling Borough Council,3/23/2023,0041035327/2,41035327, 236.87,WorldPay ,01568000,,Credit Card Commission,Banking Arrangements,D43QK000044082,
http://statistics.data.gov.uk/id/local-authority/29UP,Tonbridge & Malling Borough Council,3/24/2023,0022027583/1,22027583, 7098.61,Clarion Housing,01078200,,Homelessness Reduction Initiat,Homelessness,C01AA000048019,
http://statistics.data.gov.uk/id/local-authority/29UP,Tonbridge & Malling Borough Council,3/24/2023,0022027588/1,22027588, 7990.62,Clarion Housing,01078200,,Contribution from Other Bodies,Homelessness,C01AACV1995001,
http://statistics.data.gov.uk/id/local-authority/29UP,Tonbridge & Malling Borough Council,3/24/2023,0022027589/1,22027589, 6571.98,Clarion Housing,01078200,,Homelessness Reduction Initiat,Homelessness,C01AA000048019,
http://statistics.data.gov.uk/id/local-authority/29UP,Tonbridge & Malling Borough Council,3/24/2023,0022027590/1,22027590, 7273.34,Clarion Housing,01078200,,Contribution from Other Bodies,Homelessness,C01AACV1995001,
http://statistics.data.gov.uk/id/local-authority/29UP,Tonbridge & Malling Borough Council,3/24/2023,0022027598/1,22027598, 2631.37,Town & Country Housing Group,01385400,,Homelessness Reduction Initiat,Homelessness,C01AA000048019,
http://statistics.data.gov.uk/id/local-authority/29UP,Tonbridge & Malling Borough Council,3/24/2023,0041035328/1,41035328, 5000.00,Tonbridge Baptist Church,00401200,,Charitable / Voluntary Organis,Grants & Payments to Vol Orgn,D37PACV1947005,
http://statistics.data.gov.uk/id/local-authority/29UP,Tonbridge & Malling Borough Council,3/28/2023,0041035331/12,41035331, 108.58,National Westminster Bank Plc,00894500,,Purchases,Information Technology,D27KD000040101,
http://statistics.data.gov.uk/id/local-authority/29UP,Tonbridge & Malling Borough Council,3/28/2023,0041035331/13,41035331, 16.43,National Westminster Bank Plc,00894500,,Software Hire & Support,Information Technology,D27KD000044059,
http://statistics.data.gov.uk/id/local-authority/29UP,Tonbridge & Malling Borough Council,3/28/2023,0041035331/14,41035331, 49.00,National Westminster Bank Plc,00894500,,Information & Publicity,Information & Publicity,D32MJ000044076,
http://statistics.data.gov.uk/id/local-authority/29UP,Tonbridge & Malling Borough Council,3/28/2023,0041035331/16,41035331, 145.00,National Westminster Bank Plc,00894500,,Vehicle Licences,Parking Off-Street,E10HA000030105,
http://statistics.data.gov.uk/id/local-authority/29UP,Tonbridge & Malling Borough Council,3/28/2023,0041035331/17,41035331, 89.00,National Westminster Bank Plc,00894500,,Vehicle Licences,Parking Off-Street,E10HA000030105,
http://statistics.data.gov.uk/id/local-authority/29UP,Tonbridge & Malling Borough Council,3/28/2023,0041035331/18,41035331, 217.50,National Westminster Bank Plc,00894500,,Vehicle Licences,Parking On-Street,E10HD000030105,
http://statistics.data.gov.uk/id/local-authority/29UP,Tonbridge & Malling Borough Council,3/28/2023,0041035331/19,41035331, 133.50,National Westminster Bank Plc,00894500,,Vehicle Licences,Parking On-Street,E10HD000030105,
http://statistics.data.gov.uk/id/local-authority/29UP,Tonbridge & Malling Borough Council,3/28/2023,0041035331/20,41035331, 16.62,National Westminster Bank Plc,00894500,,Professional Fees,Licences - Fee Paying,H27SH000044001,
http://statistics.data.gov.uk/id/local-authority/29UP,Tonbridge & Malling Borough Council,3/28/2023,0041035331/21,41035331, 37.33,National Westminster Bank Plc,00894500,,Sales,TIC Stock Account,K18AX000002002,
http://statistics.data.gov.uk/id/local-authority/29UP,Tonbridge & Malling Borough Council,3/28/2023,0041035331/3,41035331, 78.00,National Westminster Bank Plc,00894500,,Purchases,Tonbridge Castle Gatehouse,B40TG000040101,
http://statistics.data.gov.uk/id/local-authority/29UP,Tonbridge & Malling Borough Council,3/28/2023,0041035331/4,41035331, 6.55,National Westminster Bank Plc,00894500,,Purchases,Tonbridge Castle Gatehouse,B40TG000040101,
http://statistics.data.gov.uk/id/local-authority/29UP,Tonbridge & Malling Borough Council,3/28/2023,0041035331/5,41035331, 80.98,National Westminster Bank Plc,00894500,,Purchases,Tonbridge Castle Gatehouse,B40TG000040101,
http://statistics.data.gov.uk/id/local-authority/29UP,Tonbridge & Malling Borough Council,3/28/2023,0041035331/6,41035331, 408.33,National Westminster Bank Plc,00894500,,Purchases - Exhibits,Tonbridge Castle Gatehouse,B40TG000040106,
http://statistics.data.gov.uk/id/local-authority/29UP,Tonbridge & Malling Borough Council,3/28/2023,0041035331/7,41035331, 225.36,National Westminster Bank Plc,00894500,,Purchases - Exhibits,Tonbridge Castle Gatehouse,B40TG000040106,
http://statistics.data.gov.uk/id/local-authority/29UP,Tonbridge & Malling Borough Council,3/28/2023,0041035331/8,41035331, 35.00,National Westminster Bank Plc,00894500,,Purchases,Admin & Prop Sals&Overheads,D01AA000040101,
http://statistics.data.gov.uk/id/local-authority/29UP,Tonbridge & Malling Borough Council,3/28/2023,0041035331/9,41035331, 116.67,National Westminster Bank Plc,00894500,,Purchases,Ton Castle Council Chamber,D21FC000040101,
http://statistics.data.gov.uk/id/local-authority/29UP,Tonbridge & Malling Borough Council,3/28/2023,0041035353/1,41035353, 2000.00,St Katherines School & Nursery,01868400,,Charitable / Voluntary Organis,Grants & Payments to Vol Orgn,D37PACV1947005,
http://statistics.data.gov.uk/id/local-authority/29UP,Tonbridge & Malling Borough Council,3/29/2023,0011045789/9,11045789, 216.00,Brachers Solicitors,00512000,,Legal Fees,Legal Sals&Overheads,D01ARDR0044002,
http://statistics.data.gov.uk/id/local-authority/29UP,Tonbridge & Malling Borough Council,3/29/2023,0011045859/1,11045859, 1308.72,Kent County Council,00322500,,Kent Highways,Local Land Charges,D35NK000044240,
http://statistics.data.gov.uk/id/local-authority/29UP,Tonbridge & Malling Borough Council,3/29/2023,0011045860/1,11045860, 171.36,KM Media Group Ltd,00053900,,Advertising General,Local Revenue & NNDR Collect,D41QAZ99944216,
http://statistics.data.gov.uk/id/local-authority/29UP,Tonbridge & Malling Borough Council,3/29/2023,0011045861/1,11045861, 440.89,KCS - KCC,00054200,,Estate Management Charge,Land Review,D40PS000020400,
http://statistics.data.gov.uk/id/local-authority/29UP,Tonbridge & Malling Borough Council,3/29/2023,0011045862/1,11045862, 1217.80,Sellick Partnership Group Limited,01336800,,Temporary Staff,Legal Sals&Overheads,D01ARDR0011300,
http://statistics.data.gov.uk/id/local-authority/29UP,Tonbridge & Malling Borough Council,3/29/2023,0011045863/1,11045863, 1500.00,Antalis,01556800,317187204,Purchases - Paper,Printing,D22GA000040102,
http://statistics.data.gov.uk/id/local-authority/29UP,Tonbridge & Malling Borough Council,3/29/2023,0011045864/1,11045864, 150.00,BML Building Services Ltd,01505000,,Repairs & Mtce to Buildings,Homelessness,C01AATNHS20101,
http://statistics.data.gov.uk/id/local-authority/29UP,Tonbridge & Malling Borough Council,3/29/2023,0011045865/1,11045865, 1052.34,Scottish Water Business Stream Ltd,01641100,,Estate Management Charge,Land Review,D40PS000020400,
http://statistics.data.gov.uk/id/local-authority/29UP,Tonbridge & Malling Borough Council,3/29/2023,0011045866/1,11045866, 937.50,HazleMcCormack Young LLP,01793100,,Professional Fees,Land Review,D40PSTON144001,
http://statistics.data.gov.uk/id/local-authority/29UP,Tonbridge & Malling Borough Council,3/29/2023,0011045867/1,11045867, 1453.68,The Oyster Partnership,01196400,,Temporary Staff,Admin & Prop Sals&Overheads,D01AADA1111300,
http://statistics.data.gov.uk/id/local-authority/29UP,Tonbridge & Malling Borough Council,3/29/2023,0011045868/1,11045868, 172.00,Hadene Engineering Ltd,00041900,,Other Expenses,Homeless Accommodation,P03AX000009908,
http://statistics.data.gov.uk/id/local-authority/29UP,Tonbridge & Malling Borough Council,3/29/2023,0011045869/1,11045869, 1507.52,The Oyster Partnership,01196400,,Temporary Staff,Admin & Prop Sals&Overheads,D01AADA1111300,
http://statistics.data.gov.uk/id/local-authority/29UP,Tonbridge & Malling Borough Council,3/29/2023,0011045870/1,11045870, 270.00,G C Industrial Heating Services,00578100,,BRREP Servicing - Sadia Tea,Gibson Building East,M15KGP20001932,
http://statistics.data.gov.uk/id/local-authority/29UP,Tonbridge & Malling Borough Council,3/29/2023,0011045871/1,11045871, 27.08,Scottish Water Business Stream Ltd,01641100,,Estate Management Charge,Land Review,D40PS000020400,
http://statistics.data.gov.uk/id/local-authority/29UP,Tonbridge & Malling Borough Council,3/29/2023,0011045872/1,11045872, 824.00,BML Building Services Ltd,01505000,,BRREP External decoration,PC - General,M15JAP20001921,110070058
http://statistics.data.gov.uk/id/local-authority/29UP,Tonbridge & Malling Borough Council,3/29/2023,0011045873/1,11045873, 785.25,K T Fire Protection Ltd,00057000,,BRREP Servicing - FireAlarmSys,Tonbridge Farm Pavillion,M15HGP20001937,110070003
http://statistics.data.gov.uk/id/local-authority/29UP,Tonbridge & Malling Borough Council,3/29/2023,0011045875/1,11045875, 154.72,Chubb Fire & Security Ltd,00115400,174605362,BRREP Servicing-IntruderAlarm,Tonbridge Swimming Pool,M15HBP20001939,110070112
http://statistics.data.gov.uk/id/local-authority/29UP,Tonbridge & Malling Borough Council,3/29/2023,0011045877/1,11045877, 2033.98,Marine And Industrial Pump Services,00062800,662127842,BRREP Servicing - pool plant,Larkfield Leisure Centre,M15HDP20001910,110069953
http://statistics.data.gov.uk/id/local-authority/29UP,Tonbridge & Malling Borough Council,3/29/2023,0011045878/1,11045878, 285.00,Envirocure Limited,00963300,,BRREP Legionella Certification,Pleasure Grounds & Open Spaces,M15HHP30001995,110069984
http://statistics.data.gov.uk/id/local-authority/29UP,Tonbridge & Malling Borough Council,3/29/2023,0011045879/1,11045879, 172.00,Hadene Engineering Ltd,00041900,,Other Expenses,Homeless Accommodation,P03AX000009908,110070104
http://statistics.data.gov.uk/id/local-authority/29UP,Tonbridge & Malling Borough Council,3/29/2023,0011045880/1,11045880, 1231.00,Spy Alarms Ltd,01608800,,BRREP Servicing-IntruderAlarm,Gibson Building East,M15KGP20001939,110070101
http://statistics.data.gov.uk/id/local-authority/29UP,Tonbridge & Malling Borough Council,3/29/2023,0011045881/1,11045881, 323.10,DORMA UK Ltd,00413500,549361128,BRREP Servicing-entrance doors,Tonbridge Castle / CAB,M15KFP20001927,110069939
http://statistics.data.gov.uk/id/local-authority/29UP,Tonbridge & Malling Borough Council,3/29/2023,0011045882/1,11045882, 79.00,BML Building Services Ltd,01505000,,BRREP Response - General,Shops & Maisonettes,M15NAP50001997,110070106
http://statistics.data.gov.uk/id/local-authority/29UP,Tonbridge & Malling Borough Council,3/29/2023,0011045883/1,11045883, 900.00,BML Building Services Ltd,01505000,,Repairs & Mtce to Buildings,Homelessness,C01AATNHS20101,110070103
http://statistics.data.gov.uk/id/local-authority/29UP,Tonbridge & Malling Borough Council,3/29/2023,0011045884/1,11045884, 25000.00,BML Building Services Ltd,01505000,,BRREP General Maintenance,Tonbridge Castle Gatehouse,M15HKP10001900,110070127
http://statistics.data.gov.uk/id/local-authority/29UP,Tonbridge & Malling Borough Council,3/29/2023,0011045885/1,11045885, 1188.50,H20 Servicing Limited,00888800,808041553,BRREP Servicing - pool plant,Larkfield Leisure Centre,M15HDP20001910,110069697
http://statistics.data.gov.uk/id/local-authority/29UP,Tonbridge & Malling Borough Council,3/29/2023,0011045886/1,11045886, 1047.50,H20 Servicing Limited,00888800,808041553,BRREP Servicing - pool plant,Tonbridge Swimming Pool,M15HBP20001910,110069697
http://statistics.data.gov.uk/id/local-authority/29UP,Tonbridge & Malling Borough Council,3/29/2023,0011045887/1,11045887, 409.50,Shaw & Sons Ltd,00090300,,Purchases,Conduct of Elections,D31MG000040101,110070000
http://statistics.data.gov.uk/id/local-authority/29UP,Tonbridge & Malling Borough Council,3/29/2023,0011045888/1,11045888, 174.00,Peoplesafe -  Skyguard Ltd,01779900,,Purchases,Ton Castle Council Chamber,D21FC000040101,110069881
http://statistics.data.gov.uk/id/local-authority/29UP,Tonbridge & Malling Borough Council,3/29/2023,0011045888/2,11045888, 174.00,Peoplesafe -  Skyguard Ltd,01779900,,Community Safety Initiatives,Community Safety,D30MA000048134,110069881
http://statistics.data.gov.uk/id/local-authority/29UP,Tonbridge & Malling Borough Council,3/29/2023,0011045888/3,11045888, 522.00,Peoplesafe -  Skyguard Ltd,01779900,,Purchases,Electoral Registration,D31MF000040101,110069881
http://statistics.data.gov.uk/id/local-authority/29UP,Tonbridge & Malling Borough Council,3/29/2023,0011045888/4,11045888, 522.00,Peoplesafe -  Skyguard Ltd,01779900,,Purchases,Licences - Fee Paying,H27SH000040101,110069881
http://statistics.data.gov.uk/id/local-authority/29UP,Tonbridge & Malling Borough Council,3/29/2023,0011045889/1,11045889, 503.00,Automated Limited,00007000,,BRREP Pool hall lighting mntce,Tonbridge Swimming Pool,M15HBP20001913,110070136
http://statistics.data.gov.uk/id/local-authority/29UP,Tonbridge & Malling Borough Council,3/29/2023,0011045890/1,11045890, 69.04,Royal Mail,00086200,,Postages - Business Reply,Electoral Registration,D31MF000045003,
http://statistics.data.gov.uk/id/local-authority/29UP,Tonbridge & Malling Borough Council,3/29/2023,0011045890/2,11045890, 5.00,Royal Mail,00086200,,Purchases,Business Reply Stock Account,K14AT000001002,
http://statistics.data.gov.uk/id/local-authority/29UP,Tonbridge & Malling Borough Council,3/29/2023,0011045891/1,11045891, 2097.70,Royal Mail,00086200,,Purchases,Mailsort Stock Account,K37BR000001002,
http://statistics.data.gov.uk/id/local-authority/29UP,Tonbridge & Malling Borough Council,3/29/2023,0011045891/2,11045891, 1.75,Royal Mail,00086200,,Purchases,Mailsort Stock Account,K37BR000001002,
http://statistics.data.gov.uk/id/local-authority/29UP,Tonbridge & Malling Borough Council,3/29/2023,0011045891/3,11045891, 6.72,Royal Mail,00086200,,Purchases,Mailsort Stock Account,K37BR000001002,
http://statistics.data.gov.uk/id/local-authority/29UP,Tonbridge & Malling Borough Council,3/29/2023,0011045892/1,11045892, 15483.84,Mace Limited,01837400,,Economic Development & Regen,Eco Dev & Reg Gen Bus Support,D52TD000047027,
http://statistics.data.gov.uk/id/local-authority/29UP,Tonbridge & Malling Borough Council,3/29/2023,0011045892/2,11045892, 20000.00,Mace Limited,01837400,,Initiatives,UK Shared Prosperity Fund,D52TH000048135,
http://statistics.data.gov.uk/id/local-authority/29UP,Tonbridge & Malling Borough Council,3/29/2023,0011045894/1,11045894, 1646.12,Venn Group Ltd,00914300,,Temporary Staff,Legal Sals&Overheads,D01ARDR0011300,
http://statistics.data.gov.uk/id/local-authority/29UP,Tonbridge & Malling Borough Council,3/29/2023,0011045895/1,11045895, 589.41,KH Recruitment Ltd,01738900,,Temporary Staff,Personnel Sals&Overheads,D01ABDB0311300,
http://statistics.data.gov.uk/id/local-authority/29UP,Tonbridge & Malling Borough Council,3/29/2023,0011045896/1,11045896, 1642.50,Betteridge & Milsom Ltd.,01441000,,Professional Fees,Land Review,D40PSTON144001,
http://statistics.data.gov.uk/id/local-authority/29UP,Tonbridge & Malling Borough Council,3/29/2023,0011045897/1,11045897, 280.00,G C Industrial Heating Services,00578100,,BRREP Response - General,Tonbridge Cemetery,M15HJP50001997,110070116
http://statistics.data.gov.uk/id/local-authority/29UP,Tonbridge & Malling Borough Council,3/29/2023,0011045898/1,11045898, 690.00,G C Industrial Heating Services,00578100,,BRREP Response - General,Tonbridge Cemetery,M15HJP50001997,110070084
http://statistics.data.gov.uk/id/local-authority/29UP,Tonbridge & Malling Borough Council,3/29/2023,0011045900/1,11045900, 1892.96,Automated Limited,00007000,,BRREP IEE Testing,Tonbridge Swimming Pool,M15HBP30001991,110070134
http://statistics.data.gov.uk/id/local-authority/29UP,Tonbridge & Malling Borough Council,3/29/2023,0011045901/1,11045901, 280.00,G C Industrial Heating Services,00578100,,BRREP Response - General,Gibson Building West,M15KBP50001997,110070093
http://statistics.data.gov.uk/id/local-authority/29UP,Tonbridge & Malling Borough Council,3/29/2023,0011045902/1,11045902, 360.00,Marine And Industrial Pump Services,00062800,662127842,BRREP Servicing - sump pumps,Tonbridge Swimming Pool,M15HBP20001911,110069733
http://statistics.data.gov.uk/id/local-authority/29UP,Tonbridge & Malling Borough Council,3/29/2023,0011045903/1,11045903, 555.48,Automated Limited,00007000,,BRREP Response - General,Leybourne Lakes Country Park,M15HLP50001997,110070133
http://statistics.data.gov.uk/id/local-authority/29UP,Tonbridge & Malling Borough Council,3/29/2023,0011045904/1,11045904, 868.00,Automated Limited,00007000,,BRREP Serv Internal Lighting,Angel Centre,M15HAP20001957,110069999
http://statistics.data.gov.uk/id/local-authority/29UP,Tonbridge & Malling Borough Council,3/29/2023,0011045905/1,11045905, 280.00,Automated Limited,00007000,,BRREP IEE Testing,Tonbridge Swimming Pool,M15HBP30001991,110069735
http://statistics.data.gov.uk/id/local-authority/29UP,Tonbridge & Malling Borough Council,3/29/2023,0011045905/2,11045905, 280.00,Automated Limited,00007000,,BRREP IEE Testing,Tonbridge Swimming Pool,M15HBP30001991,110069735
http://statistics.data.gov.uk/id/local-authority/29UP,Tonbridge & Malling Borough Council,3/29/2023,0011045905/3,11045905, 280.00,Automated Limited,00007000,,BRREP IEE Testing,Tonbridge Swimming Pool,M15HBP30001991,110069735
http://statistics.data.gov.uk/id/local-authority/29UP,Tonbridge & Malling Borough Council,3/29/2023,0011045905/4,11045905, 280.00,Automated Limited,00007000,,BRREP IEE Testing,Tonbridge Swimming Pool,M15HBP30001991,110069735
http://statistics.data.gov.uk/id/local-authority/29UP,Tonbridge & Malling Borough Council,3/29/2023,0011045906/3,11045906, 520.00,G C Industrial Heating Services,00578100,,BRREP Servicing - pool plant,Larkfield Leisure Centre,M15HDP20001910,
http://statistics.data.gov.uk/id/local-authority/29UP,Tonbridge & Malling Borough Council,3/29/2023,0011045907/3,11045907, 150.00,BML Building Services Ltd,01505000,,BRREP Resp - Vandal / Break-In,PC - General,M15JAP50001998,
http://statistics.data.gov.uk/id/local-authority/29UP,Tonbridge & Malling Borough Council,3/29/2023,0011045908/3,11045908, 125.00,BML Building Services Ltd,01505000,,BRREP Window/door repairs,PC - General,M15JAP20001919,
http://statistics.data.gov.uk/id/local-authority/29UP,Tonbridge & Malling Borough Council,3/29/2023,0011045909/3,11045909, 310.00,G C Industrial Heating Services,00578100,,BRREP Response - General,Tonbridge Farm Pavillion,M15HGP50001997,
http://statistics.data.gov.uk/id/local-authority/29UP,Tonbridge & Malling Borough Council,3/29/2023,0011045910/1,11045910, 912.00,TMS Protection Ltd,01744300,,BRREP Response - General,Tonbridge Swimming Pool,M15HBP50001997,110070107
http://statistics.data.gov.uk/id/local-authority/29UP,Tonbridge & Malling Borough Council,3/29/2023,0011045911/1,11045911, 254.98,Automated Limited,00007000,,BRREP Response - General,Grnd Mtce Poult Wood Golf Cent,M15HFP50001997,110070131
http://statistics.data.gov.uk/id/local-authority/29UP,Tonbridge & Malling Borough Council,3/29/2023,0011045912/1,11045912, 150.00,Automated Limited,00007000,,BRREP Serv Internal Lighting,Leis Man Poult Wood Golf Centr,M15HEP20001957,110070132
http://statistics.data.gov.uk/id/local-authority/29UP,Tonbridge & Malling Borough Council,3/29/2023,0012008669/1,12008669, 314.93,CCS Media Ltd,00018000,,Purchases,Information Technology,D27KD000040101,410032367
http://statistics.data.gov.uk/id/local-authority/29UP,Tonbridge & Malling Borough Council,3/29/2023,0012008669/2,12008669, 119.97,CCS Media Ltd,00018000,,Purchases,Information Technology,D27KD000040101,410032367
http://statistics.data.gov.uk/id/local-authority/29UP,Tonbridge & Malling Borough Council,3/29/2023,0012008669/3,12008669, 2.00,CCS Media Ltd,00018000,,Delivery Expenses,Information Technology,D27KD000044069,410032367
http://statistics.data.gov.uk/id/local-authority/29UP,Tonbridge & Malling Borough Council,3/29/2023,0012008670/1,12008670, 13783.82,Frontier Software Plc,00231900,,Software Hire & Support,Information Technology,D27KD000044059,410032361
http://statistics.data.gov.uk/id/local-authority/29UP,Tonbridge & Malling Borough Council,3/29/2023,0012008671/1,12008671, 759.60,NEC Software Solutions UK Ltd,01073900,202159745,Software Hire & Support,Information Technology,D27KD000044059,410032336
http://statistics.data.gov.uk/id/local-authority/29UP,Tonbridge & Malling Borough Council,3/29/2023,0012008672/1,12008672, 240.00,NEC Software Solutions UK Ltd,01073900,202159745,Software Hire & Support,Information Technology,D27KD000044059,410032337
http://statistics.data.gov.uk/id/local-authority/29UP,Tonbridge & Malling Borough Council,3/29/2023,0012008673/1,12008673, 12.38,Phoenix Software Ltd,00077400,755349015,Software Hire & Support,Information Technology,D27KD000044059,110070122
http://statistics.data.gov.uk/id/local-authority/29UP,Tonbridge & Malling Borough Council,3/29/2023,0012008674/3,12008674, 173.08,British Telecommunications Plc,00012800,,Telephones - Rentals,General Admin Telephones,D24GT000045005,
http://statistics.data.gov.uk/id/local-authority/29UP,Tonbridge & Malling Borough Council,3/29/2023,0012008675/3,12008675, 5.28,KCS - KCC,00054200,,Copy Charges,Multi Function Devices,D22GB000040125,
http://statistics.data.gov.uk/id/local-authority/29UP,Tonbridge & Malling Borough Council,3/29/2023,0012008676/1,12008676, 149.90,CCS Media Ltd,00018000,,Purchases,Information Technology,D27KD000040101,410032370
http://statistics.data.gov.uk/id/local-authority/29UP,Tonbridge & Malling Borough Council,3/29/2023,0012008676/2,12008676, 2.00,CCS Media Ltd,00018000,,Delivery Expenses,Information Technology,D27KD000044069,410032370
http://statistics.data.gov.uk/id/local-authority/29UP,Tonbridge & Malling Borough Council,3/29/2023,0012008677/1,12008677, 6.00,Vanquish Tech,01798700,124406447,Delivery Expenses,Information Technology,D27KD000044069,410032368
http://statistics.data.gov.uk/id/local-authority/29UP,Tonbridge & Malling Borough Council,3/29/2023,0012008677/2,12008677, 757.90,Vanquish Tech,01798700,124406447,Initial Furniture & Equipment,Capital Renewals IT,P06FBFB1009906,410032368
http://statistics.data.gov.uk/id/local-authority/29UP,Tonbridge & Malling Borough Council,3/29/2023,0021038479/1,21038479, 1462.50,Color & Co,01891800,,Initial Furniture & Equipment,Capital Renewals Leisure,P05KGBC0409906,210057166
http://statistics.data.gov.uk/id/local-authority/29UP,Tonbridge & Malling Borough Council,3/29/2023,0021038480/1,21038480, 1585.00,SWS Countryside & Landscape,01567200,,Health & Safety - Trees,Countryside/Woodland Mgt,B22LG000044045,210057066
http://statistics.data.gov.uk/id/local-authority/29UP,Tonbridge & Malling Borough Council,3/29/2023,0021038481/1,21038481, 300.00,SWS Countryside & Landscape,01567200,,Maintenance of Grounds,Open Spaces & Amenity Areas,B22LE000020402,210056913
http://statistics.data.gov.uk/id/local-authority/29UP,Tonbridge & Malling Borough Council,3/29/2023,0021038482/1,21038482, 788.74,Streetmaster (South Wales) Ltd,00222100,,Maintenance of Grounds,Tonbridge Castle Grounds,B22LB000020402,210057085
http://statistics.data.gov.uk/id/local-authority/29UP,Tonbridge & Malling Borough Council,3/29/2023,0021038483/1,21038483, 4453.33,Leybourne Parish Council,00162300,,Community Group Funding,Leisure Planning & Policy,B37SD000047028,210057151
http://statistics.data.gov.uk/id/local-authority/29UP,Tonbridge & Malling Borough Council,3/29/2023,0021038484/1,21038484, 607.37,KCC - L.A.S.E.R Commercial Services ,00184300,,Electricity,Tonbridge Castle Grounds,B22LB000021002,
http://statistics.data.gov.uk/id/local-authority/29UP,Tonbridge & Malling Borough Council,3/29/2023,0021038485/1,21038485, 199.83,KCC - L.A.S.E.R Commercial Services ,00184300,,Electricity,Cemetery,B26MP000021002,
http://statistics.data.gov.uk/id/local-authority/29UP,Tonbridge & Malling Borough Council,3/29/2023,0021038486/1,21038486, 1032.81,KCC - L.A.S.E.R Commercial Services ,00184300,,Electricity,Cemetery,B26MP000021002,
http://statistics.data.gov.uk/id/local-authority/29UP,Tonbridge & Malling Borough Council,3/29/2023,0021038487/1,21038487, 3122.20,KCC - L.A.S.E.R Commercial Services ,00184300,,Electricity,Haysden Country Park,B22LC000021002,
http://statistics.data.gov.uk/id/local-authority/29UP,Tonbridge & Malling Borough Council,3/29/2023,0021038488/1,21038488, 625.00,Medway Valley Countryside PartnershipKCC,00780000,,Medway Valley Partnership,Countryside/Woodland Mgt,B22LH000051013,210056931
http://statistics.data.gov.uk/id/local-authority/29UP,Tonbridge & Malling Borough Council,3/29/2023,0021038488/2,21038488, 6000.00,Medway Valley Countryside PartnershipKCC,00780000,,Medway Valley Partnership,Countryside/Woodland Mgt,B22LH000051013,210056931
http://statistics.data.gov.uk/id/local-authority/29UP,Tonbridge & Malling Borough Council,3/29/2023,0021038489/1,21038489, 23754.66,Landscape Services Ltd,00057600,,Grounds Maintenance Contract,Sports Grounds,B13ET000050103,
http://statistics.data.gov.uk/id/local-authority/29UP,Tonbridge & Malling Borough Council,3/29/2023,0021038489/10,21038489, 173.66,Landscape Services Ltd,00057600,,Grounds Maintenance Contract,Churchyards St Stephens,B28MY000050103,
http://statistics.data.gov.uk/id/local-authority/29UP,Tonbridge & Malling Borough Council,3/29/2023,0021038489/11,21038489, 191.95,Landscape Services Ltd,00057600,,Grounds Maintenance Contract,Grounds,D21FF000050103,
http://statistics.data.gov.uk/id/local-authority/29UP,Tonbridge & Malling Borough Council,3/29/2023,0021038489/12,21038489, 364.05,Landscape Services Ltd,00057600,,Maintenance of Grounds,Parking Off-Street,E10HA000020402,
http://statistics.data.gov.uk/id/local-authority/29UP,Tonbridge & Malling Borough Council,3/29/2023,0021038489/13,21038489, 1141.69,Landscape Services Ltd,00057600,,Maintenance of Grounds,Parking Off-Street,E10HAE00120402,
http://statistics.data.gov.uk/id/local-authority/29UP,Tonbridge & Malling Borough Council,3/29/2023,0021038489/14,21038489, 108.41,Landscape Services Ltd,00057600,,Maintenance of Grounds,Parking Off-Street,E10HAE00220402,
http://statistics.data.gov.uk/id/local-authority/29UP,Tonbridge & Malling Borough Council,3/29/2023,0021038489/15,21038489, 98.31,Landscape Services Ltd,00057600,,Maintenance of Grounds,Parking Off-Street,E10HAE00320402,
http://statistics.data.gov.uk/id/local-authority/29UP,Tonbridge & Malling Borough Council,3/29/2023,0021038489/16,21038489, 24.52,Landscape Services Ltd,00057600,,Maintenance of Grounds,Parking Off-Street,E10HAE00420402,
http://statistics.data.gov.uk/id/local-authority/29UP,Tonbridge & Malling Borough Council,3/29/2023,0021038489/17,21038489, 0.63,Landscape Services Ltd,00057600,,Maintenance of Grounds,Parking Off-Street,E10HAE00520402,
http://statistics.data.gov.uk/id/local-authority/29UP,Tonbridge & Malling Borough Council,3/29/2023,0021038489/18,21038489, 68.63,Landscape Services Ltd,00057600,,Maintenance of Grounds,Parking Off-Street,E10HAE00620402,
http://statistics.data.gov.uk/id/local-authority/29UP,Tonbridge & Malling Borough Council,3/29/2023,0021038489/19,21038489, 160.24,Landscape Services Ltd,00057600,,Maintenance of Grounds,Parking Off-Street,E10HAE01020402,
http://statistics.data.gov.uk/id/local-authority/29UP,Tonbridge & Malling Borough Council,3/29/2023,0021038489/2,21038489, 8244.55,Landscape Services Ltd,00057600,,Grounds Maintenance Contract,Tonbridge Castle Grounds,B22LB000050103,
http://statistics.data.gov.uk/id/local-authority/29UP,Tonbridge & Malling Borough Council,3/29/2023,0021038489/20,21038489, 3.55,Landscape Services Ltd,00057600,,Maintenance of Grounds,Parking Off-Street,E10HAE01220402,
http://statistics.data.gov.uk/id/local-authority/29UP,Tonbridge & Malling Borough Council,3/29/2023,0021038489/21,21038489, 7.83,Landscape Services Ltd,00057600,,Maintenance of Grounds,Parking Off-Street,E10HAE01320402,
http://statistics.data.gov.uk/id/local-authority/29UP,Tonbridge & Malling Borough Council,3/29/2023,0021038489/22,21038489, 32.60,Landscape Services Ltd,00057600,,Maintenance of Grounds,Parking Off-Street,E10HAE01520402,
http://statistics.data.gov.uk/id/local-authority/29UP,Tonbridge & Malling Borough Council,3/29/2023,0021038489/23,21038489, 63.69,Landscape Services Ltd,00057600,,Maintenance of Grounds,Parking Off-Street,E10HAE01620402,
http://statistics.data.gov.uk/id/local-authority/29UP,Tonbridge & Malling Borough Council,3/29/2023,0021038489/24,21038489, 25.88,Landscape Services Ltd,00057600,,Maintenance of Grounds,Parking Off-Street,E10HAE01720402,
http://statistics.data.gov.uk/id/local-authority/29UP,Tonbridge & Malling Borough Council,3/29/2023,0021038489/25,21038489, 15.90,Landscape Services Ltd,00057600,,Maintenance of Grounds,Parking Off-Street,E10HAE02120402,
http://statistics.data.gov.uk/id/local-authority/29UP,Tonbridge & Malling Borough Council,3/29/2023,0021038489/26,21038489, 25.32,Landscape Services Ltd,00057600,,Maintenance of Grounds,Parking Off-Street,E10HAE02320402,
http://statistics.data.gov.uk/id/local-authority/29UP,Tonbridge & Malling Borough Council,3/29/2023,0021038489/27,21038489, 97.05,Landscape Services Ltd,00057600,,Maintenance of Grounds,Parking Off-Street,E10HAE02820402,
http://statistics.data.gov.uk/id/local-authority/29UP,Tonbridge & Malling Borough Council,3/29/2023,0021038489/28,21038489, 26.28,Landscape Services Ltd,00057600,,Maintenance of Grounds,Parking Off-Street,E10HAE04020402,
http://statistics.data.gov.uk/id/local-authority/29UP,Tonbridge & Malling Borough Council,3/29/2023,0021038489/29,21038489, 86.65,Landscape Services Ltd,00057600,,Maintenance of Grounds,Parking Off-Street,E10HAE04520402,
http://statistics.data.gov.uk/id/local-authority/29UP,Tonbridge & Malling Borough Council,3/29/2023,0021038489/3,21038489, 62.73,Landscape Services Ltd,00057600,,Trade Refuse Charges,Haysden Country Park,B22LC000044008,
http://statistics.data.gov.uk/id/local-authority/29UP,Tonbridge & Malling Borough Council,3/29/2023,0021038489/4,21038489, 538.16,Landscape Services Ltd,00057600,,Litter Collection,Haysden Country Park,B22LC000044061,
http://statistics.data.gov.uk/id/local-authority/29UP,Tonbridge & Malling Borough Council,3/29/2023,0021038489/5,21038489, 1849.86,Landscape Services Ltd,00057600,,Grounds Maintenance Contract,Haysden Country Park,B22LC000050103,
http://statistics.data.gov.uk/id/local-authority/29UP,Tonbridge & Malling Borough Council,3/29/2023,0021038489/6,21038489, 645.29,Landscape Services Ltd,00057600,,Grounds Maintenance Contract,Haysden Country Park,B22LC000050103,
http://statistics.data.gov.uk/id/local-authority/29UP,Tonbridge & Malling Borough Council,3/29/2023,0021038489/7,21038489, 13694.83,Landscape Services Ltd,00057600,,Grounds Maintenance Contract,Open Spaces & Amenity Areas,B22LE000050103,
http://statistics.data.gov.uk/id/local-authority/29UP,Tonbridge & Malling Borough Council,3/29/2023,0021038489/8,21038489, 5057.79,Landscape Services Ltd,00057600,,Grounds Maintenance Contract,Cemetery,B26MP000050103,
http://statistics.data.gov.uk/id/local-authority/29UP,Tonbridge & Malling Borough Council,3/29/2023,0021038489/9,21038489, 238.80,Landscape Services Ltd,00057600,,Grounds Maintenance Contract,Churchyards St Peter & St Paul,B28MX000050103,
http://statistics.data.gov.uk/id/local-authority/29UP,Tonbridge & Malling Borough Council,3/29/2023,0021038491/1,21038491, 558.69,Landscape Services Ltd,00057600,,Grounds Maintenance Contract,Churchyards St Peter & St Paul,B28MX000050103,210056758
http://statistics.data.gov.uk/id/local-authority/29UP,Tonbridge & Malling Borough Council,3/29/2023,0021038494/1,21038494, 5980.22,Clarion Housing Association Ltd,01892600,,Homelessness Reduction Initiat,Homelessness,C01AA000048019,
http://statistics.data.gov.uk/id/local-authority/29UP,Tonbridge & Malling Borough Council,3/29/2023,0021038495/1,21038495, 1758.71,Castle Water,01696500,,Water Charges (Metered),Haysden Country Park,B22LC000024001,
http://statistics.data.gov.uk/id/local-authority/29UP,Tonbridge & Malling Borough Council,3/29/2023,0021038496/1,21038496, 400.00,PSR Lighting & Signs Ltd,01265400,,Tonbridge Christmas Lighting,Eco Dev & Reg Ton Chris Light,D52TF000047015,210057140
http://statistics.data.gov.uk/id/local-authority/29UP,Tonbridge & Malling Borough Council,3/29/2023,0021038497/1,21038497, 307.50,Home Leisure Direct Limited,01891900,,Initial Furniture & Equipment,Capital Renewals Leisure,P05KGBC0209906,210057161
http://statistics.data.gov.uk/id/local-authority/29UP,Tonbridge & Malling Borough Council,3/29/2023,0021038498/1,21038498, 1667.45,Fenland Leisure Products Ltd,01675100,,Maintenance of Play Equipment,Open Spaces & Amenity Areas,B22LE000020503,210057155
http://statistics.data.gov.uk/id/local-authority/29UP,Tonbridge & Malling Borough Council,3/29/2023,0021038499/1,21038499, 339.66,Landscape Services Ltd,00057600,,Maintenance of Grounds,Sports Grounds,B13ET000020402,210057167
http://statistics.data.gov.uk/id/local-authority/29UP,Tonbridge & Malling Borough Council,3/29/2023,0021038500/1,21038500, 737.00,Landscape Services Ltd,00057600,,Grounds Maintenance Contract,Cemetery,B26MP000050103,
http://statistics.data.gov.uk/id/local-authority/29UP,Tonbridge & Malling Borough Council,3/29/2023,0022027599/1,22027599, 2266.43,KCC - L.A.S.E.R Commercial Services ,00184300,,Electricity,Public Conveniences,H22SCH00921002,
http://statistics.data.gov.uk/id/local-authority/29UP,Tonbridge & Malling Borough Council,3/29/2023,0022027600/1,22027600, 335.00,On Site Wheelie Washers,01069700,,Other Expenses,Refuse Collection,H20SA000048010,
http://statistics.data.gov.uk/id/local-authority/29UP,Tonbridge & Malling Borough Council,3/29/2023,0022027602/1,22027602, 65.88,Peoplesafe -  Skyguard Ltd,01779900,,Minimum Energy Efficiency Proj,Private Sector Housing Renewal,C03BD000044032,
http://statistics.data.gov.uk/id/local-authority/29UP,Tonbridge & Malling Borough Council,3/29/2023,0022027603/1,22027603, 131.76,Peoplesafe -  Skyguard Ltd,01779900,,Purchases,Env Hlth & Hsg Sals&Overheads,D01AVDV0340101,
http://statistics.data.gov.uk/id/local-authority/29UP,Tonbridge & Malling Borough Council,3/29/2023,0022027604/1,22027604, 17272.50,Craemer UK LTD,01616400,,Initial Furniture & Equipment,Refuse Bins Growth/Replacement,P02DA000009906,220003281
http://statistics.data.gov.uk/id/local-authority/29UP,Tonbridge & Malling Borough Council,3/29/2023,0022027605/1,22027605, 16302.00,Craemer UK LTD,01616400,,Initial Furniture & Equipment,New Waste Growth/Replacement,P02CF000009906,220003283
http://statistics.data.gov.uk/id/local-authority/29UP,Tonbridge & Malling Borough Council,3/29/2023,0022027606/1,22027606, 16302.00,Craemer UK LTD,01616400,,Initial Furniture & Equipment,Refuse Bins Growth/Replacement,P02DA000009906,220003281
http://statistics.data.gov.uk/id/local-authority/29UP,Tonbridge & Malling Borough Council,3/29/2023,0022027607/1,22027607, 2800.00,Dolphin Stairlifts,00698900,,Other Expenses,Disabled Facilities Grant Mand,P03AC000009908,
http://statistics.data.gov.uk/id/local-authority/29UP,Tonbridge & Malling Borough Council,3/29/2023,0022027608/1,22027608, 385.00,Premiere Projects,00201200,,Other Expenses,Disabled Facilities Grant Mand,P03AC000009908,
http://statistics.data.gov.uk/id/local-authority/29UP,Tonbridge & Malling Borough Council,3/29/2023,0022027609/1,22027609, 109.81,E.ON - Next,01790900,,Electricity,Homelessness,C01AATNPR21002,
http://statistics.data.gov.uk/id/local-authority/29UP,Tonbridge & Malling Borough Council,3/29/2023,0022027610/1,22027610, 150.00,Town & Country Housing Group,01385400,,Countywide DFG Project,Private Sector Housing Renewal,C03BD000044031,
http://statistics.data.gov.uk/id/local-authority/29UP,Tonbridge & Malling Borough Council,3/29/2023,0022027611/1,22027611, 847.60,Town & Country Housing Group,01385400,,Countywide DFG Project,Private Sector Housing Renewal,C03BD000044031,
http://statistics.data.gov.uk/id/local-authority/29UP,Tonbridge & Malling Borough Council,3/29/2023,0022027612/1,22027612, 8.95,KCS - KCC,00054200,,General,Environmental Protection,H32SN000054012,220003323
http://statistics.data.gov.uk/id/local-authority/29UP,Tonbridge & Malling Borough Council,3/29/2023,0022027613/1,22027613, 11.99,KCS - KCC,00054200,,Purchases,St Scene & Leis Sals&Overheads,D01AG000040101,220003323
http://statistics.data.gov.uk/id/local-authority/29UP,Tonbridge & Malling Borough Council,3/29/2023,0022027613/2,22027613, 4.49,KCS - KCC,00054200,,General,Environmental Protection,H32SN000054012,220003323
http://statistics.data.gov.uk/id/local-authority/29UP,Tonbridge & Malling Borough Council,3/29/2023,0022027613/3,22027613, 29.99,KCS - KCC,00054200,,General,Environmental Protection,H32SN000054012,220003323
http://statistics.data.gov.uk/id/local-authority/29UP,Tonbridge & Malling Borough Council,3/29/2023,0022027613/4,22027613, 29.99,KCS - KCC,00054200,,General,Environmental Protection,H32SN000054012,220003323
http://statistics.data.gov.uk/id/local-authority/29UP,Tonbridge & Malling Borough Council,3/29/2023,0022027613/5,22027613, 20.85,KCS - KCC,00054200,,General,Environmental Protection,H32SN000054012,220003323
http://statistics.data.gov.uk/id/local-authority/29UP,Tonbridge & Malling Borough Council,3/29/2023,0022027614/1,22027614, 234.75,Language Line,00835100,,Professional Fees,Homelessness,C01AA000044001,
http://statistics.data.gov.uk/id/local-authority/29UP,Tonbridge & Malling Borough Council,3/29/2023,0022027615/1,22027615, 387.37,Urbaser LTD,01718800,,Maintenance of Grounds,Sports Grounds,B13ET000020402,
http://statistics.data.gov.uk/id/local-authority/29UP,Tonbridge & Malling Borough Council,3/29/2023,0022027615/10,22027615, 60.22,Urbaser LTD,01718800,,Maintenance of Grounds,Grounds,D21FF000020402,
http://statistics.data.gov.uk/id/local-authority/29UP,Tonbridge & Malling Borough Council,3/29/2023,0022027615/11,22027615, 184.19,Urbaser LTD,01718800,,Maintenance of Grounds,Parking Off-Street,E10HA000020402,
http://statistics.data.gov.uk/id/local-authority/29UP,Tonbridge & Malling Borough Council,3/29/2023,0022027615/12,22027615, 4686.59,Urbaser LTD,01718800,,Maintenance of Grounds,Parking Off-Street,E10HAE00120402,
http://statistics.data.gov.uk/id/local-authority/29UP,Tonbridge & Malling Borough Council,3/29/2023,0022027615/13,22027615, 504.84,Urbaser LTD,01718800,,Maintenance of Grounds,Parking Off-Street,E10HAE00220402,
http://statistics.data.gov.uk/id/local-authority/29UP,Tonbridge & Malling Borough Council,3/29/2023,0022027615/14,22027615, 315.82,Urbaser LTD,01718800,,Maintenance of Grounds,Parking Off-Street,E10HAE00320402,
http://statistics.data.gov.uk/id/local-authority/29UP,Tonbridge & Malling Borough Council,3/29/2023,0022027615/15,22027615, 1651.73,Urbaser LTD,01718800,,Maintenance of Grounds,Parking Off-Street,E10HAE00420402,
http://statistics.data.gov.uk/id/local-authority/29UP,Tonbridge & Malling Borough Council,3/29/2023,0022027615/16,22027615, 274.48,Urbaser LTD,01718800,,Maintenance of Grounds,Parking Off-Street,E10HAE00520402,
http://statistics.data.gov.uk/id/local-authority/29UP,Tonbridge & Malling Borough Council,3/29/2023,0022027615/17,22027615, 1023.71,Urbaser LTD,01718800,,Maintenance of Grounds,Parking Off-Street,E10HAE00620402,
http://statistics.data.gov.uk/id/local-authority/29UP,Tonbridge & Malling Borough Council,3/29/2023,0022027615/18,22027615, 8.63,Urbaser LTD,01718800,,Maintenance of Grounds,Parking Off-Street,E10HAE00820402,
http://statistics.data.gov.uk/id/local-authority/29UP,Tonbridge & Malling Borough Council,3/29/2023,0022027615/19,22027615, 8.52,Urbaser LTD,01718800,,Maintenance of Grounds,Parking Off-Street,E10HAE00920402,
http://statistics.data.gov.uk/id/local-authority/29UP,Tonbridge & Malling Borough Council,3/29/2023,0022027615/2,22027615, 82.44,Urbaser LTD,01718800,,Maintenance of Grounds,Poult Wood Golf Centre,B21KE000020402,
http://statistics.data.gov.uk/id/local-authority/29UP,Tonbridge & Malling Borough Council,3/29/2023,0022027615/20,22027615, 20.23,Urbaser LTD,01718800,,Maintenance of Grounds,Parking Off-Street,E10HAE01020402,
http://statistics.data.gov.uk/id/local-authority/29UP,Tonbridge & Malling Borough Council,3/29/2023,0022027615/21,22027615, 96.12,Urbaser LTD,01718800,,Maintenance of Grounds,Parking Off-Street,E10HAE01120402,
http://statistics.data.gov.uk/id/local-authority/29UP,Tonbridge & Malling Borough Council,3/29/2023,0022027615/22,22027615, 60.48,Urbaser LTD,01718800,,Maintenance of Grounds,Parking Off-Street,E10HAE01220402,
http://statistics.data.gov.uk/id/local-authority/29UP,Tonbridge & Malling Borough Council,3/29/2023,0022027615/23,22027615, 1146.81,Urbaser LTD,01718800,,Maintenance of Grounds,Parking Off-Street,E10HAE01320402,
http://statistics.data.gov.uk/id/local-authority/29UP,Tonbridge & Malling Borough Council,3/29/2023,0022027615/24,22027615, 87.22,Urbaser LTD,01718800,,Maintenance of Grounds,Parking Off-Street,E10HAE01420402,
http://statistics.data.gov.uk/id/local-authority/29UP,Tonbridge & Malling Borough Council,3/29/2023,0022027615/25,22027615, 268.78,Urbaser LTD,01718800,,Maintenance of Grounds,Parking Off-Street,E10HAE01520402,
http://statistics.data.gov.uk/id/local-authority/29UP,Tonbridge & Malling Borough Council,3/29/2023,0022027615/26,22027615, 289.08,Urbaser LTD,01718800,,Maintenance of Grounds,Parking Off-Street,E10HAE01620402,
http://statistics.data.gov.uk/id/local-authority/29UP,Tonbridge & Malling Borough Council,3/29/2023,0022027615/27,22027615, 853.41,Urbaser LTD,01718800,,Maintenance of Grounds,Parking Off-Street,E10HAE01720402,
http://statistics.data.gov.uk/id/local-authority/29UP,Tonbridge & Malling Borough Council,3/29/2023,0022027615/28,22027615, 244.95,Urbaser LTD,01718800,,Maintenance of Grounds,Parking Off-Street,E10HAE01920402,
http://statistics.data.gov.uk/id/local-authority/29UP,Tonbridge & Malling Borough Council,3/29/2023,0022027615/29,22027615, 538.07,Urbaser LTD,01718800,,Maintenance of Grounds,Parking Off-Street,E10HAE02020402,
http://statistics.data.gov.uk/id/local-authority/29UP,Tonbridge & Malling Borough Council,3/29/2023,0022027615/3,22027615, 34.02,Urbaser LTD,01718800,,Maintenance of Grounds,Haysden Country Park,B22LC000020402,
http://statistics.data.gov.uk/id/local-authority/29UP,Tonbridge & Malling Borough Council,3/29/2023,0022027615/30,22027615, 18.68,Urbaser LTD,01718800,,Maintenance of Grounds,Parking Off-Street,E10HAE02120402,
http://statistics.data.gov.uk/id/local-authority/29UP,Tonbridge & Malling Borough Council,3/29/2023,0022027615/31,22027615, 123.00,Urbaser LTD,01718800,,Maintenance of Grounds,Parking Off-Street,E10HAE02220402,
http://statistics.data.gov.uk/id/local-authority/29UP,Tonbridge & Malling Borough Council,3/29/2023,0022027615/32,22027615, 1034.02,Urbaser LTD,01718800,,Maintenance of Grounds,Parking Off-Street,E10HAE02320402,
http://statistics.data.gov.uk/id/local-authority/29UP,Tonbridge & Malling Borough Council,3/29/2023,0022027615/33,22027615, 2.67,Urbaser LTD,01718800,,Maintenance of Grounds,Parking Off-Street,E10HAE02720402,
http://statistics.data.gov.uk/id/local-authority/29UP,Tonbridge & Malling Borough Council,3/29/2023,0022027615/34,22027615, 375.72,Urbaser LTD,01718800,,Maintenance of Grounds,Parking Off-Street,E10HAE02820402,
http://statistics.data.gov.uk/id/local-authority/29UP,Tonbridge & Malling Borough Council,3/29/2023,0022027615/35,22027615, 6.77,Urbaser LTD,01718800,,Maintenance of Grounds,Parking Off-Street,E10HAE02920402,
http://statistics.data.gov.uk/id/local-authority/29UP,Tonbridge & Malling Borough Council,3/29/2023,0022027615/36,22027615, 39.82,Urbaser LTD,01718800,,Maintenance of Grounds,Parking Off-Street,E10HAE03020402,
http://statistics.data.gov.uk/id/local-authority/29UP,Tonbridge & Malling Borough Council,3/29/2023,0022027615/37,22027615, 33.88,Urbaser LTD,01718800,,Maintenance of Grounds,Parking Off-Street,E10HAE03120402,
http://statistics.data.gov.uk/id/local-authority/29UP,Tonbridge & Malling Borough Council,3/29/2023,0022027615/38,22027615, 718.40,Urbaser LTD,01718800,,Maintenance of Grounds,Parking Off-Street,E10HAE04020402,
http://statistics.data.gov.uk/id/local-authority/29UP,Tonbridge & Malling Borough Council,3/29/2023,0022027615/39,22027615, 498.26,Urbaser LTD,01718800,,Maintenance of Grounds,Parking Off-Street,E10HAE04220402,
http://statistics.data.gov.uk/id/local-authority/29UP,Tonbridge & Malling Borough Council,3/29/2023,0022027615/4,22027615, 26.13,Urbaser LTD,01718800,,Dog Bin Emptying,Haysden Country Park,B22LC000044012,
http://statistics.data.gov.uk/id/local-authority/29UP,Tonbridge & Malling Borough Council,3/29/2023,0022027615/40,22027615, 1430.15,Urbaser LTD,01718800,,Maintenance of Grounds,Parking Off-Street,E10HAE04520402,
http://statistics.data.gov.uk/id/local-authority/29UP,Tonbridge & Malling Borough Council,3/29/2023,0022027615/41,22027615, 92676.10,Urbaser LTD,01718800,,Contract Payments,Refuse Collection,H20SA000054001,
http://statistics.data.gov.uk/id/local-authority/29UP,Tonbridge & Malling Borough Council,3/29/2023,0022027615/42,22027615, 946.15,Urbaser LTD,01718800,,Responsible Dog Ownership,Street Scene,H23SD000044050,
http://statistics.data.gov.uk/id/local-authority/29UP,Tonbridge & Malling Borough Council,3/29/2023,0022027615/43,22027615, 56523.64,Urbaser LTD,01718800,,Contract Payments,Street Scene,H23SD000054001,
http://statistics.data.gov.uk/id/local-authority/29UP,Tonbridge & Malling Borough Council,3/29/2023,0022027615/44,22027615, 356.30,Urbaser LTD,01718800,,General Maintenance,Dry Recycling,H34SR000020301,
http://statistics.data.gov.uk/id/local-authority/29UP,Tonbridge & Malling Borough Council,3/29/2023,0022027615/45,22027615, 84198.36,Urbaser LTD,01718800,,Contract Payments,Dry Recycling,H34SR000054001,
http://statistics.data.gov.uk/id/local-authority/29UP,Tonbridge & Malling Borough Council,3/29/2023,0022027615/46,22027615, 32945.93,Urbaser LTD,01718800,,Contract Payments,Food Recycling,H34SS000054001,
http://statistics.data.gov.uk/id/local-authority/29UP,Tonbridge & Malling Borough Council,3/29/2023,0022027615/47,22027615, 17888.09,Urbaser LTD,01718800,,Contract Payments,Garden Waste Recycling,H34ST000054001,
http://statistics.data.gov.uk/id/local-authority/29UP,Tonbridge & Malling Borough Council,3/29/2023,0022027615/5,22027615, 740.63,Urbaser LTD,01718800,,Maintenance of Grounds,Open Spaces & Amenity Areas,B22LE000020402,
